Organisation Name,Organisation Code,Unique Ref No,Effective Date,Directorate,Supplier Name,Payment Date,Net amount,Purpose of Spend,"Procurement Classification 
(Higher level)","Procurement Classification
(Lower level)",CAPITAL / REVENUE,,,,,
Walsall Council,http://opendatacommunities.org/id/metropolitan-district-council/walsall ,WC158-1,31.01.24,ECONOMY & ENVIRONMENT CAPITAL,10SQUARED LTD,18/01/2024,"-1,602.00",7200-Purchase of Furniture & Equipment,CAPITAL,"VEHICLES,PLANT,EQUIPMENT & MACHINERY",CAPITAL
Walsall Council,http://opendatacommunities.org/id/metropolitan-district-council/walsall ,WC158-2,31.01.24,ECONOMY & ENVIRONMENT CAPITAL,10SQUARED LTD,18/01/2024,-486.50,7200-Purchase of Furniture & Equipment,CAPITAL,"VEHICLES,PLANT,EQUIPMENT & MACHINERY",CAPITAL
Walsall Council,http://opendatacommunities.org/id/metropolitan-district-council/walsall ,WC158-3,31.01.24,ECONOMY & ENVIRONMENT CAPITAL,10SQUARED LTD,18/01/2024,973.00,7200-Purchase of Furniture & Equipment,CAPITAL,"VEHICLES,PLANT,EQUIPMENT & MACHINERY",CAPITAL
Walsall Council,http://opendatacommunities.org/id/metropolitan-district-council/walsall ,WC158-4,31.01.24,ECONOMY & ENVIRONMENT CAPITAL,10SQUARED LTD,18/01/2024,"3,204.00",7200-Purchase of Furniture & Equipment,CAPITAL,"VEHICLES,PLANT,EQUIPMENT & MACHINERY",CAPITAL
Walsall Council,http://opendatacommunities.org/id/metropolitan-district-council/walsall ,WC158-5,31.01.24,RESOURCES AND TRANSFORMATION,11KBW,15/01/2024,"16,925.00",6610-School Only Payments - Catering,THIRD PARTY PAYMENTS,INDEPENDENT UNIT WITHIN COUNCIL,REVENUE
Walsall Council,http://opendatacommunities.org/id/metropolitan-district-council/walsall ,WC158-6,31.01.24,RESOURCES AND TRANSFORMATION,11KBW,15/01/2024,270.00,6610-School Only Payments - Catering,THIRD PARTY PAYMENTS,INDEPENDENT UNIT WITHIN COUNCIL,REVENUE
Walsall Council,http://opendatacommunities.org/id/metropolitan-district-council/walsall ,WC158-7,31.01.24,CHILDRENS,1ST STAFF LTD,26/01/2024,"4,500.00",1220-Professional Fees & Services,SUPPLIES & SERVICES,SERVICES,REVENUE
Walsall Council,http://opendatacommunities.org/id/metropolitan-district-council/walsall ,WC158-8,31.01.24,CHILDRENS,1ST STAFF LTD,30/01/2024,"2,340.00",1220-Professional Fees & Services,SUPPLIES & SERVICES,SERVICES,REVENUE
Walsall Council,http://opendatacommunities.org/id/metropolitan-district-council/walsall ,WC158-9,31.01.24,CHILDRENS,247 CARS (WILLENHALL) LIMITED,17/01/2024,"1,451.79",1220-Professional Fees & Services,SUPPLIES & SERVICES,SERVICES,REVENUE
Walsall Council,http://opendatacommunities.org/id/metropolitan-district-council/walsall ,WC158-10,31.01.24,CHILDRENS,247 CARS (WILLENHALL) LIMITED,17/01/2024,251.36,1220-Professional Fees & Services,SUPPLIES & SERVICES,SERVICES,REVENUE
Walsall Council,http://opendatacommunities.org/id/metropolitan-district-council/walsall ,WC158-11,31.01.24,CHILDRENS,247 CARS (WILLENHALL) LIMITED,02/01/2024,"1,330.00",6241-Hire of Vehicle with Driver,TRANSPORT,DIRECT TRANSPORT COSTS,REVENUE
Walsall Council,http://opendatacommunities.org/id/metropolitan-district-council/walsall ,WC158-12,31.01.24,CHILDRENS,247 CARS (WILLENHALL) LIMITED,02/01/2024,"2,272.00",6241-Hire of Vehicle with Driver,TRANSPORT,DIRECT TRANSPORT COSTS,REVENUE
Walsall Council,http://opendatacommunities.org/id/metropolitan-district-council/walsall ,WC158-13,31.01.24,CHILDRENS,247 CARS (WILLENHALL) LIMITED,02/01/2024,"2,272.00",6241-Hire of Vehicle with Driver,TRANSPORT,DIRECT TRANSPORT COSTS,REVENUE
Walsall Council,http://opendatacommunities.org/id/metropolitan-district-council/walsall ,WC158-14,31.01.24,CHILDRENS,247 CARS (WILLENHALL) LIMITED,02/01/2024,"2,272.00",6241-Hire of Vehicle with Driver,TRANSPORT,DIRECT TRANSPORT COSTS,REVENUE
Walsall Council,http://opendatacommunities.org/id/metropolitan-district-council/walsall ,WC158-15,31.01.24,CHILDRENS,247 CARS (WILLENHALL) LIMITED,02/01/2024,"2,272.00",6241-Hire of Vehicle with Driver,TRANSPORT,DIRECT TRANSPORT COSTS,REVENUE
Walsall Council,http://opendatacommunities.org/id/metropolitan-district-council/walsall ,WC158-16,31.01.24,CHILDRENS,247 CARS (WILLENHALL) LIMITED,02/01/2024,"1,600.00",6241-Hire of Vehicle with Driver,TRANSPORT,DIRECT TRANSPORT COSTS,REVENUE
Walsall Council,http://opendatacommunities.org/id/metropolitan-district-council/walsall ,WC158-17,31.01.24,CHILDRENS,247 CARS (WILLENHALL) LIMITED,02/01/2024,"1,850.00",6241-Hire of Vehicle with Driver,TRANSPORT,DIRECT TRANSPORT COSTS,REVENUE
Walsall Council,http://opendatacommunities.org/id/metropolitan-district-council/walsall ,WC158-18,31.01.24,CHILDRENS,247 CARS (WILLENHALL) LIMITED,02/01/2024,"1,850.00",6241-Hire of Vehicle with Driver,TRANSPORT,DIRECT TRANSPORT COSTS,REVENUE
Walsall Council,http://opendatacommunities.org/id/metropolitan-district-council/walsall ,WC158-19,31.01.24,CHILDRENS,247 CARS (WILLENHALL) LIMITED,02/01/2024,"2,885.00",6241-Hire of Vehicle with Driver,TRANSPORT,DIRECT TRANSPORT COSTS,REVENUE
Walsall Council,http://opendatacommunities.org/id/metropolitan-district-council/walsall ,WC158-20,31.01.24,CHILDRENS,247 CARS (WILLENHALL) LIMITED,02/01/2024,"2,602.60",6241-Hire of Vehicle with Driver,TRANSPORT,DIRECT TRANSPORT COSTS,REVENUE
Walsall Council,http://opendatacommunities.org/id/metropolitan-district-council/walsall ,WC158-21,31.01.24,CHILDRENS,247 CARS (WILLENHALL) LIMITED,02/01/2024,"2,822.00",6241-Hire of Vehicle with Driver,TRANSPORT,DIRECT TRANSPORT COSTS,REVENUE
Walsall Council,http://opendatacommunities.org/id/metropolitan-district-council/walsall ,WC158-22,31.01.24,CHILDRENS,247 CARS (WILLENHALL) LIMITED,02/01/2024,"1,130.88",6241-Hire of Vehicle with Driver,TRANSPORT,DIRECT TRANSPORT COSTS,REVENUE
Walsall Council,http://opendatacommunities.org/id/metropolitan-district-council/walsall ,WC158-23,31.01.24,CHILDRENS,247 CARS (WILLENHALL) LIMITED,02/01/2024,"2,437.00",6241-Hire of Vehicle with Driver,TRANSPORT,DIRECT TRANSPORT COSTS,REVENUE
Walsall Council,http://opendatacommunities.org/id/metropolitan-district-council/walsall ,WC158-24,31.01.24,CHILDRENS,247 CARS (WILLENHALL) LIMITED,02/01/2024,"2,272.00",6241-Hire of Vehicle with Driver,TRANSPORT,DIRECT TRANSPORT COSTS,REVENUE
Walsall Council,http://opendatacommunities.org/id/metropolitan-district-council/walsall ,WC158-25,31.01.24,CHILDRENS,247 CARS (WILLENHALL) LIMITED,02/01/2024,"2,272.00",6241-Hire of Vehicle with Driver,TRANSPORT,DIRECT TRANSPORT COSTS,REVENUE
Walsall Council,http://opendatacommunities.org/id/metropolitan-district-council/walsall ,WC158-26,31.01.24,CHILDRENS,247 CARS (WILLENHALL) LIMITED,02/01/2024,"2,272.00",6241-Hire of Vehicle with Driver,TRANSPORT,DIRECT TRANSPORT COSTS,REVENUE
Walsall Council,http://opendatacommunities.org/id/metropolitan-district-council/walsall ,WC158-27,31.01.24,CHILDRENS,247 CARS (WILLENHALL) LIMITED,02/01/2024,"1,342.44",6241-Hire of Vehicle with Driver,TRANSPORT,DIRECT TRANSPORT COSTS,REVENUE
Walsall Council,http://opendatacommunities.org/id/metropolitan-district-council/walsall ,WC158-28,31.01.24,CHILDRENS,247 CARS (WILLENHALL) LIMITED,02/01/2024,961.20,6241-Hire of Vehicle with Driver,TRANSPORT,DIRECT TRANSPORT COSTS,REVENUE
Walsall Council,http://opendatacommunities.org/id/metropolitan-district-council/walsall ,WC158-29,31.01.24,CHILDRENS,247 CARS (WILLENHALL) LIMITED,02/01/2024,"2,720.00",6241-Hire of Vehicle with Driver,TRANSPORT,DIRECT TRANSPORT COSTS,REVENUE
Walsall Council,http://opendatacommunities.org/id/metropolitan-district-council/walsall ,WC158-30,31.01.24,CHILDRENS,247 CARS (WILLENHALL) LIMITED,02/01/2024,"2,272.00",6241-Hire of Vehicle with Driver,TRANSPORT,DIRECT TRANSPORT COSTS,REVENUE
Walsall Council,http://opendatacommunities.org/id/metropolitan-district-council/walsall ,WC158-31,31.01.24,CHILDRENS,247 CARS (WILLENHALL) LIMITED,02/01/2024,"2,400.00",6241-Hire of Vehicle with Driver,TRANSPORT,DIRECT TRANSPORT COSTS,REVENUE
Walsall Council,http://opendatacommunities.org/id/metropolitan-district-council/walsall ,WC158-32,31.01.24,CHILDRENS,247 CARS (WILLENHALL) LIMITED,02/01/2024,"2,400.60",6241-Hire of Vehicle with Driver,TRANSPORT,DIRECT TRANSPORT COSTS,REVENUE
Walsall Council,http://opendatacommunities.org/id/metropolitan-district-council/walsall ,WC158-33,31.01.24,CHILDRENS,247 CARS (WILLENHALL) LIMITED,02/01/2024,"3,316.60",6241-Hire of Vehicle with Driver,TRANSPORT,DIRECT TRANSPORT COSTS,REVENUE
Walsall Council,http://opendatacommunities.org/id/metropolitan-district-council/walsall ,WC158-34,31.01.24,CHILDRENS,247 CARS (WILLENHALL) LIMITED,02/01/2024,"3,621.40",6241-Hire of Vehicle with Driver,TRANSPORT,DIRECT TRANSPORT COSTS,REVENUE
Walsall Council,http://opendatacommunities.org/id/metropolitan-district-council/walsall ,WC158-35,31.01.24,CHILDRENS,247 CARS (WILLENHALL) LIMITED,02/01/2024,"2,554.00",6241-Hire of Vehicle with Driver,TRANSPORT,DIRECT TRANSPORT COSTS,REVENUE
Walsall Council,http://opendatacommunities.org/id/metropolitan-district-council/walsall ,WC158-36,31.01.24,CHILDRENS,247 CARS (WILLENHALL) LIMITED,02/01/2024,"-2,682.50",6241-Hire of Vehicle with Driver,TRANSPORT,DIRECT TRANSPORT COSTS,REVENUE
Walsall Council,http://opendatacommunities.org/id/metropolitan-district-council/walsall ,WC158-37,31.01.24,CHILDRENS,247 CARS (WILLENHALL) LIMITED,02/01/2024,"1,850.00",6241-Hire of Vehicle with Driver,TRANSPORT,DIRECT TRANSPORT COSTS,REVENUE
Walsall Council,http://opendatacommunities.org/id/metropolitan-district-council/walsall ,WC158-38,31.01.24,CHILDRENS,247 CARS (WILLENHALL) LIMITED,02/01/2024,"2,272.00",6241-Hire of Vehicle with Driver,TRANSPORT,DIRECT TRANSPORT COSTS,REVENUE
Walsall Council,http://opendatacommunities.org/id/metropolitan-district-council/walsall ,WC158-39,31.01.24,CHILDRENS,247 CARS (WILLENHALL) LIMITED,02/01/2024,"2,114.60",6241-Hire of Vehicle with Driver,TRANSPORT,DIRECT TRANSPORT COSTS,REVENUE
Walsall Council,http://opendatacommunities.org/id/metropolitan-district-council/walsall ,WC158-40,31.01.24,CHILDRENS,247 CARS (WILLENHALL) LIMITED,02/01/2024,"1,892.00",6241-Hire of Vehicle with Driver,TRANSPORT,DIRECT TRANSPORT COSTS,REVENUE
Walsall Council,http://opendatacommunities.org/id/metropolitan-district-council/walsall ,WC158-41,31.01.24,CHILDRENS,247 CARS (WILLENHALL) LIMITED,02/01/2024,"2,191.60",6241-Hire of Vehicle with Driver,TRANSPORT,DIRECT TRANSPORT COSTS,REVENUE
Walsall Council,http://opendatacommunities.org/id/metropolitan-district-council/walsall ,WC158-42,31.01.24,CHILDRENS,247 CARS (WILLENHALL) LIMITED,02/01/2024,"3,697.60",6241-Hire of Vehicle with Driver,TRANSPORT,DIRECT TRANSPORT COSTS,REVENUE
Walsall Council,http://opendatacommunities.org/id/metropolitan-district-council/walsall ,WC158-43,31.01.24,CHILDRENS,247 CARS (WILLENHALL) LIMITED,02/01/2024,"1,780.00",6241-Hire of Vehicle with Driver,TRANSPORT,DIRECT TRANSPORT COSTS,REVENUE
Walsall Council,http://opendatacommunities.org/id/metropolitan-district-council/walsall ,WC158-44,31.01.24,CHILDRENS,247 CARS (WILLENHALL) LIMITED,02/01/2024,759.60,6241-Hire of Vehicle with Driver,TRANSPORT,DIRECT TRANSPORT COSTS,REVENUE
Walsall Council,http://opendatacommunities.org/id/metropolitan-district-council/walsall ,WC158-45,31.01.24,CHILDRENS,247 CARS (WILLENHALL) LIMITED,02/01/2024,"3,028.60",6241-Hire of Vehicle with Driver,TRANSPORT,DIRECT TRANSPORT COSTS,REVENUE
Walsall Council,http://opendatacommunities.org/id/metropolitan-district-council/walsall ,WC158-46,31.01.24,CHILDRENS,247 CARS (WILLENHALL) LIMITED,02/01/2024,"2,498.00",6241-Hire of Vehicle with Driver,TRANSPORT,DIRECT TRANSPORT COSTS,REVENUE
Walsall Council,http://opendatacommunities.org/id/metropolitan-district-council/walsall ,WC158-47,31.01.24,CHILDRENS,247 CARS (WILLENHALL) LIMITED,02/01/2024,"2,015.20",6241-Hire of Vehicle with Driver,TRANSPORT,DIRECT TRANSPORT COSTS,REVENUE
Walsall Council,http://opendatacommunities.org/id/metropolitan-district-council/walsall ,WC158-48,31.01.24,CHILDRENS,247 CARS (WILLENHALL) LIMITED,02/01/2024,"2,272.00",6241-Hire of Vehicle with Driver,TRANSPORT,DIRECT TRANSPORT COSTS,REVENUE
Walsall Council,http://opendatacommunities.org/id/metropolitan-district-council/walsall ,WC158-49,31.01.24,CHILDRENS,247 CARS (WILLENHALL) LIMITED,02/01/2024,"2,033.00",6241-Hire of Vehicle with Driver,TRANSPORT,DIRECT TRANSPORT COSTS,REVENUE
Walsall Council,http://opendatacommunities.org/id/metropolitan-district-council/walsall ,WC158-50,31.01.24,CHILDRENS,247 CARS (WILLENHALL) LIMITED,02/01/2024,"2,060.00",6241-Hire of Vehicle with Driver,TRANSPORT,DIRECT TRANSPORT COSTS,REVENUE
Walsall Council,http://opendatacommunities.org/id/metropolitan-district-council/walsall ,WC158-51,31.01.24,CHILDRENS,247 CARS (WILLENHALL) LIMITED,02/01/2024,"1,605.50",6241-Hire of Vehicle with Driver,TRANSPORT,DIRECT TRANSPORT COSTS,REVENUE
Walsall Council,http://opendatacommunities.org/id/metropolitan-district-council/walsall ,WC158-52,31.01.24,CHILDRENS,247 CARS (WILLENHALL) LIMITED,02/01/2024,"1,481.60",6241-Hire of Vehicle with Driver,TRANSPORT,DIRECT TRANSPORT COSTS,REVENUE
Walsall Council,http://opendatacommunities.org/id/metropolitan-district-council/walsall ,WC158-53,31.01.24,CHILDRENS,247 CARS (WILLENHALL) LIMITED,02/01/2024,"2,622.00",6241-Hire of Vehicle with Driver,TRANSPORT,DIRECT TRANSPORT COSTS,REVENUE
Walsall Council,http://opendatacommunities.org/id/metropolitan-district-council/walsall ,WC158-54,31.01.24,CHILDRENS,247 CARS (WILLENHALL) LIMITED,02/01/2024,610.50,6241-Hire of Vehicle with Driver,TRANSPORT,DIRECT TRANSPORT COSTS,REVENUE
Walsall Council,http://opendatacommunities.org/id/metropolitan-district-council/walsall ,WC158-55,31.01.24,CHILDRENS,247 CARS (WILLENHALL) LIMITED,29/01/2024,925.00,6241-Hire of Vehicle with Driver,TRANSPORT,DIRECT TRANSPORT COSTS,REVENUE
Walsall Council,http://opendatacommunities.org/id/metropolitan-district-council/walsall ,WC158-56,31.01.24,CHILDRENS,247 CARS (WILLENHALL) LIMITED,29/01/2024,925.00,6241-Hire of Vehicle with Driver,TRANSPORT,DIRECT TRANSPORT COSTS,REVENUE
Walsall Council,http://opendatacommunities.org/id/metropolitan-district-council/walsall ,WC158-57,31.01.24,CHILDRENS,247 CARS (WILLENHALL) LIMITED,29/01/2024,"1,022.40",6241-Hire of Vehicle with Driver,TRANSPORT,DIRECT TRANSPORT COSTS,REVENUE
Walsall Council,http://opendatacommunities.org/id/metropolitan-district-council/walsall ,WC158-58,31.01.24,CHILDRENS,247 CARS (WILLENHALL) LIMITED,29/01/2024,963.00,6241-Hire of Vehicle with Driver,TRANSPORT,DIRECT TRANSPORT COSTS,REVENUE
Walsall Council,http://opendatacommunities.org/id/metropolitan-district-council/walsall ,WC158-59,31.01.24,CHILDRENS,247 CARS (WILLENHALL) LIMITED,29/01/2024,"1,030.00",6241-Hire of Vehicle with Driver,TRANSPORT,DIRECT TRANSPORT COSTS,REVENUE
Walsall Council,http://opendatacommunities.org/id/metropolitan-district-council/walsall ,WC158-60,31.01.24,CHILDRENS,247 CARS (WILLENHALL) LIMITED,29/01/2024,"1,022.40",6241-Hire of Vehicle with Driver,TRANSPORT,DIRECT TRANSPORT COSTS,REVENUE
Walsall Council,http://opendatacommunities.org/id/metropolitan-district-council/walsall ,WC158-61,31.01.24,CHILDRENS,247 CARS (WILLENHALL) LIMITED,29/01/2024,"1,680.00",6241-Hire of Vehicle with Driver,TRANSPORT,DIRECT TRANSPORT COSTS,REVENUE
Walsall Council,http://opendatacommunities.org/id/metropolitan-district-council/walsall ,WC158-62,31.01.24,CHILDRENS,247 CARS (WILLENHALL) LIMITED,29/01/2024,"1,680.42",6241-Hire of Vehicle with Driver,TRANSPORT,DIRECT TRANSPORT COSTS,REVENUE
Walsall Council,http://opendatacommunities.org/id/metropolitan-district-council/walsall ,WC158-63,31.01.24,CHILDRENS,247 CARS (WILLENHALL) LIMITED,29/01/2024,"1,658.30",6241-Hire of Vehicle with Driver,TRANSPORT,DIRECT TRANSPORT COSTS,REVENUE
Walsall Council,http://opendatacommunities.org/id/metropolitan-district-council/walsall ,WC158-64,31.01.24,CHILDRENS,247 CARS (WILLENHALL) LIMITED,29/01/2024,"1,810.70",6241-Hire of Vehicle with Driver,TRANSPORT,DIRECT TRANSPORT COSTS,REVENUE
Walsall Council,http://opendatacommunities.org/id/metropolitan-district-council/walsall ,WC158-65,31.01.24,CHILDRENS,247 CARS (WILLENHALL) LIMITED,29/01/2024,"1,249.00",6241-Hire of Vehicle with Driver,TRANSPORT,DIRECT TRANSPORT COSTS,REVENUE
Walsall Council,http://opendatacommunities.org/id/metropolitan-district-council/walsall ,WC158-66,31.01.24,CHILDRENS,247 CARS (WILLENHALL) LIMITED,29/01/2024,"1,007.60",6241-Hire of Vehicle with Driver,TRANSPORT,DIRECT TRANSPORT COSTS,REVENUE
Walsall Council,http://opendatacommunities.org/id/metropolitan-district-council/walsall ,WC158-67,31.01.24,CHILDRENS,247 CARS (WILLENHALL) LIMITED,29/01/2024,845.00,6241-Hire of Vehicle with Driver,TRANSPORT,DIRECT TRANSPORT COSTS,REVENUE
Walsall Council,http://opendatacommunities.org/id/metropolitan-district-council/walsall ,WC158-68,31.01.24,CHILDRENS,247 CARS (WILLENHALL) LIMITED,29/01/2024,740.80,6241-Hire of Vehicle with Driver,TRANSPORT,DIRECT TRANSPORT COSTS,REVENUE
Walsall Council,http://opendatacommunities.org/id/metropolitan-district-council/walsall ,WC158-69,31.01.24,CHILDRENS,247 CARS (WILLENHALL) LIMITED,29/01/2024,"1,048.80",6241-Hire of Vehicle with Driver,TRANSPORT,DIRECT TRANSPORT COSTS,REVENUE
Walsall Council,http://opendatacommunities.org/id/metropolitan-district-council/walsall ,WC158-70,31.01.24,CHILDRENS,247 CARS (WILLENHALL) LIMITED,29/01/2024,610.50,6241-Hire of Vehicle with Driver,TRANSPORT,DIRECT TRANSPORT COSTS,REVENUE
Walsall Council,http://opendatacommunities.org/id/metropolitan-district-council/walsall ,WC158-71,31.01.24,CHILDRENS,247 CARS (WILLENHALL) LIMITED,29/01/2024,"4,720.00",6241-Hire of Vehicle with Driver,TRANSPORT,DIRECT TRANSPORT COSTS,REVENUE
Walsall Council,http://opendatacommunities.org/id/metropolitan-district-council/walsall ,WC158-72,31.01.24,CHILDRENS,247 CARS (WILLENHALL) LIMITED,29/01/2024,665.00,6241-Hire of Vehicle with Driver,TRANSPORT,DIRECT TRANSPORT COSTS,REVENUE
Walsall Council,http://opendatacommunities.org/id/metropolitan-district-council/walsall ,WC158-73,31.01.24,CHILDRENS,247 CARS (WILLENHALL) LIMITED,29/01/2024,"1,022.40",6241-Hire of Vehicle with Driver,TRANSPORT,DIRECT TRANSPORT COSTS,REVENUE
Walsall Council,http://opendatacommunities.org/id/metropolitan-district-council/walsall ,WC158-74,31.01.24,CHILDRENS,247 CARS (WILLENHALL) LIMITED,29/01/2024,"1,022.40",6241-Hire of Vehicle with Driver,TRANSPORT,DIRECT TRANSPORT COSTS,REVENUE
Walsall Council,http://opendatacommunities.org/id/metropolitan-district-council/walsall ,WC158-75,31.01.24,CHILDRENS,247 CARS (WILLENHALL) LIMITED,29/01/2024,"1,022.40",6241-Hire of Vehicle with Driver,TRANSPORT,DIRECT TRANSPORT COSTS,REVENUE
Walsall Council,http://opendatacommunities.org/id/metropolitan-district-council/walsall ,WC158-76,31.01.24,CHILDRENS,247 CARS (WILLENHALL) LIMITED,29/01/2024,"1,022.40",6241-Hire of Vehicle with Driver,TRANSPORT,DIRECT TRANSPORT COSTS,REVENUE
Walsall Council,http://opendatacommunities.org/id/metropolitan-district-council/walsall ,WC158-77,31.01.24,CHILDRENS,247 CARS (WILLENHALL) LIMITED,29/01/2024,720.00,6241-Hire of Vehicle with Driver,TRANSPORT,DIRECT TRANSPORT COSTS,REVENUE
Walsall Council,http://opendatacommunities.org/id/metropolitan-district-council/walsall ,WC158-78,31.01.24,CHILDRENS,247 CARS (WILLENHALL) LIMITED,29/01/2024,"1,442.50",6241-Hire of Vehicle with Driver,TRANSPORT,DIRECT TRANSPORT COSTS,REVENUE
Walsall Council,http://opendatacommunities.org/id/metropolitan-district-council/walsall ,WC158-79,31.01.24,CHILDRENS,247 CARS (WILLENHALL) LIMITED,29/01/2024,"1,171.17",6241-Hire of Vehicle with Driver,TRANSPORT,DIRECT TRANSPORT COSTS,REVENUE
Walsall Council,http://opendatacommunities.org/id/metropolitan-district-council/walsall ,WC158-80,31.01.24,CHILDRENS,247 CARS (WILLENHALL) LIMITED,29/01/2024,"1,975.40",6241-Hire of Vehicle with Driver,TRANSPORT,DIRECT TRANSPORT COSTS,REVENUE
Walsall Council,http://opendatacommunities.org/id/metropolitan-district-council/walsall ,WC158-81,31.01.24,CHILDRENS,247 CARS (WILLENHALL) LIMITED,29/01/2024,565.44,6241-Hire of Vehicle with Driver,TRANSPORT,DIRECT TRANSPORT COSTS,REVENUE
Walsall Council,http://opendatacommunities.org/id/metropolitan-district-council/walsall ,WC158-82,31.01.24,CHILDRENS,247 CARS (WILLENHALL) LIMITED,29/01/2024,"1,218.50",6241-Hire of Vehicle with Driver,TRANSPORT,DIRECT TRANSPORT COSTS,REVENUE
Walsall Council,http://opendatacommunities.org/id/metropolitan-district-council/walsall ,WC158-83,31.01.24,CHILDRENS,247 CARS (WILLENHALL) LIMITED,29/01/2024,"1,022.40",6241-Hire of Vehicle with Driver,TRANSPORT,DIRECT TRANSPORT COSTS,REVENUE
Walsall Council,http://opendatacommunities.org/id/metropolitan-district-council/walsall ,WC158-84,31.01.24,CHILDRENS,247 CARS (WILLENHALL) LIMITED,29/01/2024,"1,022.40",6241-Hire of Vehicle with Driver,TRANSPORT,DIRECT TRANSPORT COSTS,REVENUE
Walsall Council,http://opendatacommunities.org/id/metropolitan-district-council/walsall ,WC158-85,31.01.24,CHILDRENS,247 CARS (WILLENHALL) LIMITED,29/01/2024,"1,022.40",6241-Hire of Vehicle with Driver,TRANSPORT,DIRECT TRANSPORT COSTS,REVENUE
Walsall Council,http://opendatacommunities.org/id/metropolitan-district-council/walsall ,WC158-86,31.01.24,CHILDRENS,247 CARS (WILLENHALL) LIMITED,29/01/2024,671.22,6241-Hire of Vehicle with Driver,TRANSPORT,DIRECT TRANSPORT COSTS,REVENUE
Walsall Council,http://opendatacommunities.org/id/metropolitan-district-council/walsall ,WC158-87,31.01.24,CHILDRENS,247 CARS (WILLENHALL) LIMITED,29/01/2024,480.60,6241-Hire of Vehicle with Driver,TRANSPORT,DIRECT TRANSPORT COSTS,REVENUE
Walsall Council,http://opendatacommunities.org/id/metropolitan-district-council/walsall ,WC158-88,31.01.24,CHILDRENS,247 CARS (WILLENHALL) LIMITED,29/01/2024,"1,768.00",6241-Hire of Vehicle with Driver,TRANSPORT,DIRECT TRANSPORT COSTS,REVENUE
Walsall Council,http://opendatacommunities.org/id/metropolitan-district-council/walsall ,WC158-89,31.01.24,CHILDRENS,247 CARS (WILLENHALL) LIMITED,29/01/2024,"1,277.00",6241-Hire of Vehicle with Driver,TRANSPORT,DIRECT TRANSPORT COSTS,REVENUE
Walsall Council,http://opendatacommunities.org/id/metropolitan-district-council/walsall ,WC158-90,31.01.24,CHILDRENS,247 CARS (WILLENHALL) LIMITED,29/01/2024,925.00,6241-Hire of Vehicle with Driver,TRANSPORT,DIRECT TRANSPORT COSTS,REVENUE
Walsall Council,http://opendatacommunities.org/id/metropolitan-district-council/walsall ,WC158-91,31.01.24,CHILDRENS,247 CARS (WILLENHALL) LIMITED,29/01/2024,"1,022.40",6241-Hire of Vehicle with Driver,TRANSPORT,DIRECT TRANSPORT COSTS,REVENUE
Walsall Council,http://opendatacommunities.org/id/metropolitan-district-council/walsall ,WC158-92,31.01.24,CHILDRENS,247 CARS (WILLENHALL) LIMITED,29/01/2024,"1,480.22",6241-Hire of Vehicle with Driver,TRANSPORT,DIRECT TRANSPORT COSTS,REVENUE
Walsall Council,http://opendatacommunities.org/id/metropolitan-district-council/walsall ,WC158-93,31.01.24,CHILDRENS,247 CARS (WILLENHALL) LIMITED,29/01/2024,946.00,6241-Hire of Vehicle with Driver,TRANSPORT,DIRECT TRANSPORT COSTS,REVENUE
Walsall Council,http://opendatacommunities.org/id/metropolitan-district-council/walsall ,WC158-94,31.01.24,CHILDRENS,247 CARS (WILLENHALL) LIMITED,29/01/2024,986.22,6241-Hire of Vehicle with Driver,TRANSPORT,DIRECT TRANSPORT COSTS,REVENUE
Walsall Council,http://opendatacommunities.org/id/metropolitan-district-council/walsall ,WC158-95,31.01.24,CHILDRENS,247 CARS (WILLENHALL) LIMITED,29/01/2024,"1,630.17",6241-Hire of Vehicle with Driver,TRANSPORT,DIRECT TRANSPORT COSTS,REVENUE
Walsall Council,http://opendatacommunities.org/id/metropolitan-district-council/walsall ,WC158-96,31.01.24,CHILDRENS,247 CARS (WILLENHALL) LIMITED,29/01/2024,801.00,6241-Hire of Vehicle with Driver,TRANSPORT,DIRECT TRANSPORT COSTS,REVENUE
Walsall Council,http://opendatacommunities.org/id/metropolitan-district-council/walsall ,WC158-97,31.01.24,CHILDRENS,247 CARS (WILLENHALL) LIMITED,29/01/2024,"1,362.87",6241-Hire of Vehicle with Driver,TRANSPORT,DIRECT TRANSPORT COSTS,REVENUE
Walsall Council,http://opendatacommunities.org/id/metropolitan-district-council/walsall ,WC158-98,31.01.24,RESOURCES AND TRANSFORMATION,3 SPIRIT UK TRAINING & CONSULTANCY,02/01/2024,700.00,6625-Consultant Fees,SUPPLIES & SERVICES,SERVICES,REVENUE
Walsall Council,http://opendatacommunities.org/id/metropolitan-district-council/walsall ,WC158-99,31.01.24,CHILDRENS,5 CARE SERVICES LTD,01/01/2024,342.00,6220-Professional Fees & Services,SUPPLIES & SERVICES,SERVICES,REVENUE
Walsall Council,http://opendatacommunities.org/id/metropolitan-district-council/walsall ,WC158-100,31.01.24,ADULT SOCIAL CARE,5 CARE SERVICES LTD,11/01/2024,"2,592.00",6554-Professional Services-Priv Contractor & Other Agencies,THIRD PARTY PAYMENTS,PRIVATE CONTRACTOR,REVENUE
Walsall Council,http://opendatacommunities.org/id/metropolitan-district-council/walsall ,WC158-101,31.01.24,CHILDRENS,5 CARE SERVICES LTD,04/01/2024,288.00,6220-Professional Fees & Services,SUPPLIES & SERVICES,SERVICES,REVENUE
Walsall Council,http://opendatacommunities.org/id/metropolitan-district-council/walsall ,WC158-102,31.01.24,CHILDRENS,5 CARE SERVICES LTD,04/01/2024,"2,340.00",6220-Professional Fees & Services,SUPPLIES & SERVICES,SERVICES,REVENUE
Walsall Council,http://opendatacommunities.org/id/metropolitan-district-council/walsall ,WC158-103,31.01.24,CHILDRENS,5 CARE SERVICES LTD,03/01/2024,"1,080.00",6222-Support Under Section 23 of The Childrens Act,THIRD PARTY PAYMENTS,PRIVATE CONTRACTOR,REVENUE
Walsall Council,http://opendatacommunities.org/id/metropolitan-district-council/walsall ,WC158-104,31.01.24,CHILDRENS,5 CARE SERVICES LTD,11/01/2024,"2,520.00",6220-Professional Fees & Services,SUPPLIES & SERVICES,SERVICES,REVENUE
Walsall Council,http://opendatacommunities.org/id/metropolitan-district-council/walsall ,WC158-105,31.01.24,CHILDRENS,5 CARE SERVICES LTD,30/01/2024,288.00,6211-Other Expenses,SUPPLIES & SERVICES,EXPENSES,REVENUE
Walsall Council,http://opendatacommunities.org/id/metropolitan-district-council/walsall ,WC158-106,31.01.24,CHILDRENS,5 CARE SERVICES LTD,30/01/2024,288.00,6211-Other Expenses,SUPPLIES & SERVICES,EXPENSES,REVENUE
Walsall Council,http://opendatacommunities.org/id/metropolitan-district-council/walsall ,WC158-107,31.01.24,CHILDRENS,5 CARE SERVICES LTD,26/01/2024,310.50,6220-Professional Fees & Services,SUPPLIES & SERVICES,SERVICES,REVENUE
Walsall Council,http://opendatacommunities.org/id/metropolitan-district-council/walsall ,WC158-108,31.01.24,CHILDRENS,5 CARE SERVICES LTD,26/01/2024,"2,304.00",6220-Professional Fees & Services,SUPPLIES & SERVICES,SERVICES,REVENUE
Walsall Council,http://opendatacommunities.org/id/metropolitan-district-council/walsall ,WC158-109,31.01.24,ADULT SOCIAL CARE,5 CARE SERVICES LTD,02/01/2024,756.00,6541-Domiciliary Care,THIRD PARTY PAYMENTS,PRIVATE CONTRACTOR,REVENUE
Walsall Council,http://opendatacommunities.org/id/metropolitan-district-council/walsall ,WC158-110,31.01.24,ADULT SOCIAL CARE,5 CARE SERVICES LTD,02/01/2024,630.00,6541-Domiciliary Care,THIRD PARTY PAYMENTS,PRIVATE CONTRACTOR,REVENUE
Walsall Council,http://opendatacommunities.org/id/metropolitan-district-council/walsall ,WC158-111,31.01.24,ADULT SOCIAL CARE,5 CARE SERVICES LTD,02/01/2024,774.00,6541-Domiciliary Care,THIRD PARTY PAYMENTS,PRIVATE CONTRACTOR,REVENUE
Walsall Council,http://opendatacommunities.org/id/metropolitan-district-council/walsall ,WC158-112,31.01.24,ADULT SOCIAL CARE,5 CARE SERVICES LTD,02/01/2024,283.50,6541-Domiciliary Care,THIRD PARTY PAYMENTS,PRIVATE CONTRACTOR,REVENUE
Walsall Council,http://opendatacommunities.org/id/metropolitan-district-council/walsall ,WC158-113,31.01.24,ADULT SOCIAL CARE,5 CARE SERVICES LTD,02/01/2024,567.00,6541-Domiciliary Care,THIRD PARTY PAYMENTS,PRIVATE CONTRACTOR,REVENUE
Walsall Council,http://opendatacommunities.org/id/metropolitan-district-council/walsall ,WC158-114,31.01.24,ADULT SOCIAL CARE,5 CARE SERVICES LTD,02/01/2024,567.00,6541-Domiciliary Care,THIRD PARTY PAYMENTS,PRIVATE CONTRACTOR,REVENUE
Walsall Council,http://opendatacommunities.org/id/metropolitan-district-council/walsall ,WC158-115,31.01.24,ADULT SOCIAL CARE,5 CARE SERVICES LTD,02/01/2024,"1,386.00",6541-Domiciliary Care,THIRD PARTY PAYMENTS,PRIVATE CONTRACTOR,REVENUE
Walsall Council,http://opendatacommunities.org/id/metropolitan-district-council/walsall ,WC158-116,31.01.24,ADULT SOCIAL CARE,5 CARE SERVICES LTD,02/01/2024,324.00,6541-Domiciliary Care,THIRD PARTY PAYMENTS,PRIVATE CONTRACTOR,REVENUE
Walsall Council,http://opendatacommunities.org/id/metropolitan-district-council/walsall ,WC158-117,31.01.24,ADULT SOCIAL CARE,5 CARE SERVICES LTD,02/01/2024,756.00,6541-Domiciliary Care,THIRD PARTY PAYMENTS,PRIVATE CONTRACTOR,REVENUE
Walsall Council,http://opendatacommunities.org/id/metropolitan-district-council/walsall ,WC158-118,31.01.24,ADULT SOCIAL CARE,5 CARE SERVICES LTD,02/01/2024,283.50,6541-Domiciliary Care,THIRD PARTY PAYMENTS,PRIVATE CONTRACTOR,REVENUE
Walsall Council,http://opendatacommunities.org/id/metropolitan-district-council/walsall ,WC158-119,31.01.24,ADULT SOCIAL CARE,5 CARE SERVICES LTD,02/01/2024,819.00,6541-Domiciliary Care,THIRD PARTY PAYMENTS,PRIVATE CONTRACTOR,REVENUE
Walsall Council,http://opendatacommunities.org/id/metropolitan-district-council/walsall ,WC158-120,31.01.24,ADULT SOCIAL CARE,5 CARE SERVICES LTD,02/01/2024,283.50,6541-Domiciliary Care,THIRD PARTY PAYMENTS,PRIVATE CONTRACTOR,REVENUE
Walsall Council,http://opendatacommunities.org/id/metropolitan-district-council/walsall ,WC158-121,31.01.24,ADULT SOCIAL CARE,5 CARE SERVICES LTD,02/01/2024,"1,080.00",6541-Domiciliary Care,THIRD PARTY PAYMENTS,PRIVATE CONTRACTOR,REVENUE
Walsall Council,http://opendatacommunities.org/id/metropolitan-district-council/walsall ,WC158-122,31.01.24,ADULT SOCIAL CARE,5 CARE SERVICES LTD,02/01/2024,630.00,6541-Domiciliary Care,THIRD PARTY PAYMENTS,PRIVATE CONTRACTOR,REVENUE
Walsall Council,http://opendatacommunities.org/id/metropolitan-district-council/walsall ,WC158-123,31.01.24,ADULT SOCIAL CARE,5 CARE SERVICES LTD,02/01/2024,"1,008.00",6541-Domiciliary Care,THIRD PARTY PAYMENTS,PRIVATE CONTRACTOR,REVENUE
Walsall Council,http://opendatacommunities.org/id/metropolitan-district-council/walsall ,WC158-124,31.01.24,ADULT SOCIAL CARE,5 CARE SERVICES LTD,02/01/2024,567.00,6541-Domiciliary Care,THIRD PARTY PAYMENTS,PRIVATE CONTRACTOR,REVENUE
Walsall Council,http://opendatacommunities.org/id/metropolitan-district-council/walsall ,WC158-125,31.01.24,ADULT SOCIAL CARE,5 CARE SERVICES LTD,02/01/2024,256.50,6541-Domiciliary Care,THIRD PARTY PAYMENTS,PRIVATE CONTRACTOR,REVENUE
Walsall Council,http://opendatacommunities.org/id/metropolitan-district-council/walsall ,WC158-126,31.01.24,ADULT SOCIAL CARE,5 CARE SERVICES LTD,02/01/2024,378.00,6541-Domiciliary Care,THIRD PARTY PAYMENTS,PRIVATE CONTRACTOR,REVENUE
Walsall Council,http://opendatacommunities.org/id/metropolitan-district-council/walsall ,WC158-127,31.01.24,ADULT SOCIAL CARE,5 CARE SERVICES LTD,02/01/2024,486.00,6541-Domiciliary Care,THIRD PARTY PAYMENTS,PRIVATE CONTRACTOR,REVENUE
Walsall Council,http://opendatacommunities.org/id/metropolitan-district-council/walsall ,WC158-128,31.01.24,ADULT SOCIAL CARE,5 CARE SERVICES LTD,02/01/2024,294.00,6541-Domiciliary Care,THIRD PARTY PAYMENTS,PRIVATE CONTRACTOR,REVENUE
Walsall Council,http://opendatacommunities.org/id/metropolitan-district-council/walsall ,WC158-129,31.01.24,ADULT SOCIAL CARE,5 CARE SERVICES LTD,02/01/2024,567.00,6541-Domiciliary Care,THIRD PARTY PAYMENTS,PRIVATE CONTRACTOR,REVENUE
Walsall Council,http://opendatacommunities.org/id/metropolitan-district-council/walsall ,WC158-130,31.01.24,ADULT SOCIAL CARE,5 CARE SERVICES LTD,02/01/2024,567.00,6541-Domiciliary Care,THIRD PARTY PAYMENTS,PRIVATE CONTRACTOR,REVENUE
Walsall Council,http://opendatacommunities.org/id/metropolitan-district-council/walsall ,WC158-131,31.01.24,ADULT SOCIAL CARE,5 CARE SERVICES LTD,02/01/2024,504.00,6541-Domiciliary Care,THIRD PARTY PAYMENTS,PRIVATE CONTRACTOR,REVENUE
Walsall Council,http://opendatacommunities.org/id/metropolitan-district-council/walsall ,WC158-132,31.01.24,ADULT SOCIAL CARE,5 CARE SERVICES LTD,02/01/2024,666.00,6541-Domiciliary Care,THIRD PARTY PAYMENTS,PRIVATE CONTRACTOR,REVENUE
Walsall Council,http://opendatacommunities.org/id/metropolitan-district-council/walsall ,WC158-133,31.01.24,ADULT SOCIAL CARE,5 CARE SERVICES LTD,02/01/2024,567.00,6541-Domiciliary Care,THIRD PARTY PAYMENTS,PRIVATE CONTRACTOR,REVENUE
Walsall Council,http://opendatacommunities.org/id/metropolitan-district-council/walsall ,WC158-134,31.01.24,ADULT SOCIAL CARE,5 CARE SERVICES LTD,02/01/2024,283.50,6541-Domiciliary Care,THIRD PARTY PAYMENTS,PRIVATE CONTRACTOR,REVENUE
Walsall Council,http://opendatacommunities.org/id/metropolitan-district-council/walsall ,WC158-135,31.01.24,ADULT SOCIAL CARE,5 CARE SERVICES LTD,02/01/2024,567.00,6541-Domiciliary Care,THIRD PARTY PAYMENTS,PRIVATE CONTRACTOR,REVENUE
Walsall Council,http://opendatacommunities.org/id/metropolitan-district-council/walsall ,WC158-136,31.01.24,ADULT SOCIAL CARE,5 CARE SERVICES LTD,02/01/2024,630.00,6541-Domiciliary Care,THIRD PARTY PAYMENTS,PRIVATE CONTRACTOR,REVENUE
Walsall Council,http://opendatacommunities.org/id/metropolitan-district-council/walsall ,WC158-137,31.01.24,ADULT SOCIAL CARE,5 CARE SERVICES LTD,02/01/2024,328.50,6541-Domiciliary Care,THIRD PARTY PAYMENTS,PRIVATE CONTRACTOR,REVENUE
Walsall Council,http://opendatacommunities.org/id/metropolitan-district-council/walsall ,WC158-138,31.01.24,ADULT SOCIAL CARE,5 CARE SERVICES LTD,02/01/2024,-405.00,6541-Domiciliary Care,THIRD PARTY PAYMENTS,PRIVATE CONTRACTOR,REVENUE
Walsall Council,http://opendatacommunities.org/id/metropolitan-district-council/walsall ,WC158-139,31.01.24,ADULT SOCIAL CARE,5 CARE SERVICES LTD,02/01/2024,567.00,6541-Domiciliary Care,THIRD PARTY PAYMENTS,PRIVATE CONTRACTOR,REVENUE
Walsall Council,http://opendatacommunities.org/id/metropolitan-district-council/walsall ,WC158-140,31.01.24,ADULT SOCIAL CARE,5 CARE SERVICES LTD,02/01/2024,351.00,6541-Domiciliary Care,THIRD PARTY PAYMENTS,PRIVATE CONTRACTOR,REVENUE
Walsall Council,http://opendatacommunities.org/id/metropolitan-district-council/walsall ,WC158-141,31.01.24,ADULT SOCIAL CARE,5 CARE SERVICES LTD,02/01/2024,756.00,6541-Domiciliary Care,THIRD PARTY PAYMENTS,PRIVATE CONTRACTOR,REVENUE
Walsall Council,http://opendatacommunities.org/id/metropolitan-district-council/walsall ,WC158-142,31.01.24,ADULT SOCIAL CARE,5 CARE SERVICES LTD,02/01/2024,630.00,6541-Domiciliary Care,THIRD PARTY PAYMENTS,PRIVATE CONTRACTOR,REVENUE
Walsall Council,http://opendatacommunities.org/id/metropolitan-district-council/walsall ,WC158-143,31.01.24,ADULT SOCIAL CARE,5 CARE SERVICES LTD,02/01/2024,283.50,6541-Domiciliary Care,THIRD PARTY PAYMENTS,PRIVATE CONTRACTOR,REVENUE
Walsall Council,http://opendatacommunities.org/id/metropolitan-district-council/walsall ,WC158-144,31.01.24,ADULT SOCIAL CARE,5 CARE SERVICES LTD,02/01/2024,"1,296.00",6541-Domiciliary Care,THIRD PARTY PAYMENTS,PRIVATE CONTRACTOR,REVENUE
Walsall Council,http://opendatacommunities.org/id/metropolitan-district-council/walsall ,WC158-145,31.01.24,ADULT SOCIAL CARE,5 CARE SERVICES LTD,02/01/2024,567.00,6541-Domiciliary Care,THIRD PARTY PAYMENTS,PRIVATE CONTRACTOR,REVENUE
Walsall Council,http://opendatacommunities.org/id/metropolitan-district-council/walsall ,WC158-146,31.01.24,ADULT SOCIAL CARE,5 CARE SERVICES LTD,02/01/2024,567.00,6541-Domiciliary Care,THIRD PARTY PAYMENTS,PRIVATE CONTRACTOR,REVENUE
Walsall Council,http://opendatacommunities.org/id/metropolitan-district-council/walsall ,WC158-147,31.01.24,ADULT SOCIAL CARE,5 CARE SERVICES LTD,02/01/2024,567.00,6541-Domiciliary Care,THIRD PARTY PAYMENTS,PRIVATE CONTRACTOR,REVENUE
Walsall Council,http://opendatacommunities.org/id/metropolitan-district-council/walsall ,WC158-148,31.01.24,ADULT SOCIAL CARE,5 CARE SERVICES LTD,02/01/2024,504.00,6541-Domiciliary Care,THIRD PARTY PAYMENTS,PRIVATE CONTRACTOR,REVENUE
Walsall Council,http://opendatacommunities.org/id/metropolitan-district-council/walsall ,WC158-149,31.01.24,ADULT SOCIAL CARE,5 CARE SERVICES LTD,02/01/2024,738.00,6541-Domiciliary Care,THIRD PARTY PAYMENTS,PRIVATE CONTRACTOR,REVENUE
Walsall Council,http://opendatacommunities.org/id/metropolitan-district-council/walsall ,WC158-150,31.01.24,ADULT SOCIAL CARE,5 CARE SERVICES LTD,02/01/2024,567.00,6541-Domiciliary Care,THIRD PARTY PAYMENTS,PRIVATE CONTRACTOR,REVENUE
Walsall Council,http://opendatacommunities.org/id/metropolitan-district-council/walsall ,WC158-151,31.01.24,ADULT SOCIAL CARE,5 CARE SERVICES LTD,02/01/2024,283.50,6541-Domiciliary Care,THIRD PARTY PAYMENTS,PRIVATE CONTRACTOR,REVENUE
Walsall Council,http://opendatacommunities.org/id/metropolitan-district-council/walsall ,WC158-152,31.01.24,ADULT SOCIAL CARE,5 CARE SERVICES LTD,02/01/2024,774.00,6541-Domiciliary Care,THIRD PARTY PAYMENTS,PRIVATE CONTRACTOR,REVENUE
Walsall Council,http://opendatacommunities.org/id/metropolitan-district-council/walsall ,WC158-153,31.01.24,ADULT SOCIAL CARE,5 CARE SERVICES LTD,02/01/2024,283.50,6541-Domiciliary Care,THIRD PARTY PAYMENTS,PRIVATE CONTRACTOR,REVENUE
Walsall Council,http://opendatacommunities.org/id/metropolitan-district-council/walsall ,WC158-154,31.01.24,ADULT SOCIAL CARE,5 CARE SERVICES LTD,02/01/2024,360.00,6541-Domiciliary Care,THIRD PARTY PAYMENTS,PRIVATE CONTRACTOR,REVENUE
Walsall Council,http://opendatacommunities.org/id/metropolitan-district-council/walsall ,WC158-155,31.01.24,ADULT SOCIAL CARE,5 CARE SERVICES LTD,02/01/2024,630.00,6541-Domiciliary Care,THIRD PARTY PAYMENTS,PRIVATE CONTRACTOR,REVENUE
Walsall Council,http://opendatacommunities.org/id/metropolitan-district-council/walsall ,WC158-156,31.01.24,ADULT SOCIAL CARE,5 CARE SERVICES LTD,02/01/2024,"1,008.00",6541-Domiciliary Care,THIRD PARTY PAYMENTS,PRIVATE CONTRACTOR,REVENUE
Walsall Council,http://opendatacommunities.org/id/metropolitan-district-council/walsall ,WC158-157,31.01.24,ADULT SOCIAL CARE,5 CARE SERVICES LTD,02/01/2024,"1,386.00",6541-Domiciliary Care,THIRD PARTY PAYMENTS,PRIVATE CONTRACTOR,REVENUE
Walsall Council,http://opendatacommunities.org/id/metropolitan-district-council/walsall ,WC158-158,31.01.24,ADULT SOCIAL CARE,5 CARE SERVICES LTD,02/01/2024,324.00,6541-Domiciliary Care,THIRD PARTY PAYMENTS,PRIVATE CONTRACTOR,REVENUE
Walsall Council,http://opendatacommunities.org/id/metropolitan-district-council/walsall ,WC158-159,31.01.24,ADULT SOCIAL CARE,5 CARE SERVICES LTD,02/01/2024,756.00,6541-Domiciliary Care,THIRD PARTY PAYMENTS,PRIVATE CONTRACTOR,REVENUE
Walsall Council,http://opendatacommunities.org/id/metropolitan-district-council/walsall ,WC158-160,31.01.24,ADULT SOCIAL CARE,5 CARE SERVICES LTD,02/01/2024,283.50,6541-Domiciliary Care,THIRD PARTY PAYMENTS,PRIVATE CONTRACTOR,REVENUE
Walsall Council,http://opendatacommunities.org/id/metropolitan-district-council/walsall ,WC158-161,31.01.24,ADULT SOCIAL CARE,5 CARE SERVICES LTD,02/01/2024,819.00,6541-Domiciliary Care,THIRD PARTY PAYMENTS,PRIVATE CONTRACTOR,REVENUE
Walsall Council,http://opendatacommunities.org/id/metropolitan-district-council/walsall ,WC158-162,31.01.24,ADULT SOCIAL CARE,5 CARE SERVICES LTD,02/01/2024,567.00,6541-Domiciliary Care,THIRD PARTY PAYMENTS,PRIVATE CONTRACTOR,REVENUE
Walsall Council,http://opendatacommunities.org/id/metropolitan-district-council/walsall ,WC158-163,31.01.24,ADULT SOCIAL CARE,5 CARE SERVICES LTD,02/01/2024,256.50,6541-Domiciliary Care,THIRD PARTY PAYMENTS,PRIVATE CONTRACTOR,REVENUE
Walsall Council,http://opendatacommunities.org/id/metropolitan-district-council/walsall ,WC158-164,31.01.24,ADULT SOCIAL CARE,5 CARE SERVICES LTD,02/01/2024,567.00,6541-Domiciliary Care,THIRD PARTY PAYMENTS,PRIVATE CONTRACTOR,REVENUE
Walsall Council,http://opendatacommunities.org/id/metropolitan-district-council/walsall ,WC158-165,31.01.24,ADULT SOCIAL CARE,5 CARE SERVICES LTD,02/01/2024,630.00,6541-Domiciliary Care,THIRD PARTY PAYMENTS,PRIVATE CONTRACTOR,REVENUE
Walsall Council,http://opendatacommunities.org/id/metropolitan-district-council/walsall ,WC158-166,31.01.24,ADULT SOCIAL CARE,5 CARE SERVICES LTD,02/01/2024,328.50,6541-Domiciliary Care,THIRD PARTY PAYMENTS,PRIVATE CONTRACTOR,REVENUE
Walsall Council,http://opendatacommunities.org/id/metropolitan-district-council/walsall ,WC158-167,31.01.24,ADULT SOCIAL CARE,5 CARE SERVICES LTD,02/01/2024,567.00,6541-Domiciliary Care,THIRD PARTY PAYMENTS,PRIVATE CONTRACTOR,REVENUE
Walsall Council,http://opendatacommunities.org/id/metropolitan-district-council/walsall ,WC158-168,31.01.24,ADULT SOCIAL CARE,5 CARE SERVICES LTD,02/01/2024,540.00,6541-Domiciliary Care,THIRD PARTY PAYMENTS,PRIVATE CONTRACTOR,REVENUE
Walsall Council,http://opendatacommunities.org/id/metropolitan-district-council/walsall ,WC158-169,31.01.24,ADULT SOCIAL CARE,5 CARE SERVICES LTD,02/01/2024,306.00,6541-Domiciliary Care,THIRD PARTY PAYMENTS,PRIVATE CONTRACTOR,REVENUE
Walsall Council,http://opendatacommunities.org/id/metropolitan-district-council/walsall ,WC158-170,31.01.24,ADULT SOCIAL CARE,5 CARE SERVICES LTD,02/01/2024,378.00,6541-Domiciliary Care,THIRD PARTY PAYMENTS,PRIVATE CONTRACTOR,REVENUE
Walsall Council,http://opendatacommunities.org/id/metropolitan-district-council/walsall ,WC158-171,31.01.24,ADULT SOCIAL CARE,5 CARE SERVICES LTD,02/01/2024,486.00,6541-Domiciliary Care,THIRD PARTY PAYMENTS,PRIVATE CONTRACTOR,REVENUE
Walsall Council,http://opendatacommunities.org/id/metropolitan-district-council/walsall ,WC158-172,31.01.24,ADULT SOCIAL CARE,5 CARE SERVICES LTD,02/01/2024,294.00,6541-Domiciliary Care,THIRD PARTY PAYMENTS,PRIVATE CONTRACTOR,REVENUE
Walsall Council,http://opendatacommunities.org/id/metropolitan-district-council/walsall ,WC158-173,31.01.24,ADULT SOCIAL CARE,5 CARE SERVICES LTD,02/01/2024,567.00,6541-Domiciliary Care,THIRD PARTY PAYMENTS,PRIVATE CONTRACTOR,REVENUE
Walsall Council,http://opendatacommunities.org/id/metropolitan-district-council/walsall ,WC158-174,31.01.24,ADULT SOCIAL CARE,5 CARE SERVICES LTD,10/01/2024,810.00,6554-Professional Services-Priv Contractor & Other Agencies,THIRD PARTY PAYMENTS,PRIVATE CONTRACTOR,REVENUE
Walsall Council,http://opendatacommunities.org/id/metropolitan-district-council/walsall ,WC158-175,31.01.24,ADULT SOCIAL CARE,5 CARE SERVICES LTD,10/01/2024,"1,944.00",6554-Professional Services-Priv Contractor & Other Agencies,THIRD PARTY PAYMENTS,PRIVATE CONTRACTOR,REVENUE
Walsall Council,http://opendatacommunities.org/id/metropolitan-district-council/walsall ,WC158-176,31.01.24,ADULT SOCIAL CARE,5 CARE SERVICES LTD,10/01/2024,285.00,6554-Professional Services-Priv Contractor & Other Agencies,THIRD PARTY PAYMENTS,PRIVATE CONTRACTOR,REVENUE
Walsall Council,http://opendatacommunities.org/id/metropolitan-district-council/walsall ,WC158-177,31.01.24,ADULT SOCIAL CARE,5 CARE SERVICES LTD,10/01/2024,927.00,6554-Professional Services-Priv Contractor & Other Agencies,THIRD PARTY PAYMENTS,PRIVATE CONTRACTOR,REVENUE
Walsall Council,http://opendatacommunities.org/id/metropolitan-district-council/walsall ,WC158-178,31.01.24,ADULT SOCIAL CARE,5 CARE SERVICES LTD,10/01/2024,850.50,6554-Professional Services-Priv Contractor & Other Agencies,THIRD PARTY PAYMENTS,PRIVATE CONTRACTOR,REVENUE
Walsall Council,http://opendatacommunities.org/id/metropolitan-district-council/walsall ,WC158-179,31.01.24,ADULT SOCIAL CARE,5 CARE SERVICES LTD,10/01/2024,"2,061.00",6554-Professional Services-Priv Contractor & Other Agencies,THIRD PARTY PAYMENTS,PRIVATE CONTRACTOR,REVENUE
Walsall Council,http://opendatacommunities.org/id/metropolitan-district-council/walsall ,WC158-180,31.01.24,ADULT SOCIAL CARE,5 CARE SERVICES LTD,10/01/2024,"1,458.00",6554-Professional Services-Priv Contractor & Other Agencies,THIRD PARTY PAYMENTS,PRIVATE CONTRACTOR,REVENUE
Walsall Council,http://opendatacommunities.org/id/metropolitan-district-council/walsall ,WC158-181,31.01.24,ADULT SOCIAL CARE,5 CARE SERVICES LTD,10/01/2024,"1,431.00",6554-Professional Services-Priv Contractor & Other Agencies,THIRD PARTY PAYMENTS,PRIVATE CONTRACTOR,REVENUE
Walsall Council,http://opendatacommunities.org/id/metropolitan-district-council/walsall ,WC158-182,31.01.24,ADULT SOCIAL CARE,5 CARE SERVICES LTD,10/01/2024,612.00,6554-Professional Services-Priv Contractor & Other Agencies,THIRD PARTY PAYMENTS,PRIVATE CONTRACTOR,REVENUE
Walsall Council,http://opendatacommunities.org/id/metropolitan-district-council/walsall ,WC158-183,31.01.24,ADULT SOCIAL CARE,5 CARE SERVICES LTD,15/01/2024,756.00,6541-Domiciliary Care,THIRD PARTY PAYMENTS,PRIVATE CONTRACTOR,REVENUE
Walsall Council,http://opendatacommunities.org/id/metropolitan-district-council/walsall ,WC158-184,31.01.24,ADULT SOCIAL CARE,5 CARE SERVICES LTD,15/01/2024,630.00,6541-Domiciliary Care,THIRD PARTY PAYMENTS,PRIVATE CONTRACTOR,REVENUE
Walsall Council,http://opendatacommunities.org/id/metropolitan-district-council/walsall ,WC158-185,31.01.24,ADULT SOCIAL CARE,5 CARE SERVICES LTD,15/01/2024,567.00,6541-Domiciliary Care,THIRD PARTY PAYMENTS,PRIVATE CONTRACTOR,REVENUE
Walsall Council,http://opendatacommunities.org/id/metropolitan-district-council/walsall ,WC158-186,31.01.24,ADULT SOCIAL CARE,5 CARE SERVICES LTD,15/01/2024,567.00,6541-Domiciliary Care,THIRD PARTY PAYMENTS,PRIVATE CONTRACTOR,REVENUE
Walsall Council,http://opendatacommunities.org/id/metropolitan-district-council/walsall ,WC158-187,31.01.24,ADULT SOCIAL CARE,5 CARE SERVICES LTD,15/01/2024,432.00,6541-Domiciliary Care,THIRD PARTY PAYMENTS,PRIVATE CONTRACTOR,REVENUE
Walsall Council,http://opendatacommunities.org/id/metropolitan-district-council/walsall ,WC158-188,31.01.24,ADULT SOCIAL CARE,5 CARE SERVICES LTD,15/01/2024,864.00,6541-Domiciliary Care,THIRD PARTY PAYMENTS,PRIVATE CONTRACTOR,REVENUE
Walsall Council,http://opendatacommunities.org/id/metropolitan-district-council/walsall ,WC158-189,31.01.24,ADULT SOCIAL CARE,5 CARE SERVICES LTD,15/01/2024,283.50,6541-Domiciliary Care,THIRD PARTY PAYMENTS,PRIVATE CONTRACTOR,REVENUE
Walsall Council,http://opendatacommunities.org/id/metropolitan-district-council/walsall ,WC158-190,31.01.24,ADULT SOCIAL CARE,5 CARE SERVICES LTD,15/01/2024,283.50,6541-Domiciliary Care,THIRD PARTY PAYMENTS,PRIVATE CONTRACTOR,REVENUE
Walsall Council,http://opendatacommunities.org/id/metropolitan-district-council/walsall ,WC158-191,31.01.24,ADULT SOCIAL CARE,5 CARE SERVICES LTD,15/01/2024,864.00,6541-Domiciliary Care,THIRD PARTY PAYMENTS,PRIVATE CONTRACTOR,REVENUE
Walsall Council,http://opendatacommunities.org/id/metropolitan-district-council/walsall ,WC158-192,31.01.24,ADULT SOCIAL CARE,5 CARE SERVICES LTD,15/01/2024,360.00,6541-Domiciliary Care,THIRD PARTY PAYMENTS,PRIVATE CONTRACTOR,REVENUE
Walsall Council,http://opendatacommunities.org/id/metropolitan-district-council/walsall ,WC158-193,31.01.24,ADULT SOCIAL CARE,5 CARE SERVICES LTD,15/01/2024,630.00,6541-Domiciliary Care,THIRD PARTY PAYMENTS,PRIVATE CONTRACTOR,REVENUE
Walsall Council,http://opendatacommunities.org/id/metropolitan-district-council/walsall ,WC158-194,31.01.24,ADULT SOCIAL CARE,5 CARE SERVICES LTD,15/01/2024,"1,008.00",6541-Domiciliary Care,THIRD PARTY PAYMENTS,PRIVATE CONTRACTOR,REVENUE
Walsall Council,http://opendatacommunities.org/id/metropolitan-district-council/walsall ,WC158-195,31.01.24,ADULT SOCIAL CARE,5 CARE SERVICES LTD,15/01/2024,"1,386.00",6541-Domiciliary Care,THIRD PARTY PAYMENTS,PRIVATE CONTRACTOR,REVENUE
Walsall Council,http://opendatacommunities.org/id/metropolitan-district-council/walsall ,WC158-196,31.01.24,ADULT SOCIAL CARE,5 CARE SERVICES LTD,15/01/2024,369.00,6541-Domiciliary Care,THIRD PARTY PAYMENTS,PRIVATE CONTRACTOR,REVENUE
Walsall Council,http://opendatacommunities.org/id/metropolitan-district-council/walsall ,WC158-197,31.01.24,ADULT SOCIAL CARE,5 CARE SERVICES LTD,15/01/2024,756.00,6541-Domiciliary Care,THIRD PARTY PAYMENTS,PRIVATE CONTRACTOR,REVENUE
Walsall Council,http://opendatacommunities.org/id/metropolitan-district-council/walsall ,WC158-198,31.01.24,ADULT SOCIAL CARE,5 CARE SERVICES LTD,15/01/2024,283.50,6541-Domiciliary Care,THIRD PARTY PAYMENTS,PRIVATE CONTRACTOR,REVENUE
Walsall Council,http://opendatacommunities.org/id/metropolitan-district-council/walsall ,WC158-199,31.01.24,ADULT SOCIAL CARE,5 CARE SERVICES LTD,15/01/2024,819.00,6541-Domiciliary Care,THIRD PARTY PAYMENTS,PRIVATE CONTRACTOR,REVENUE
Walsall Council,http://opendatacommunities.org/id/metropolitan-district-council/walsall ,WC158-200,31.01.24,ADULT SOCIAL CARE,5 CARE SERVICES LTD,15/01/2024,378.00,6541-Domiciliary Care,THIRD PARTY PAYMENTS,PRIVATE CONTRACTOR,REVENUE
Walsall Council,http://opendatacommunities.org/id/metropolitan-district-council/walsall ,WC158-201,31.01.24,ADULT SOCIAL CARE,5 CARE SERVICES LTD,15/01/2024,567.00,6541-Domiciliary Care,THIRD PARTY PAYMENTS,PRIVATE CONTRACTOR,REVENUE
Walsall Council,http://opendatacommunities.org/id/metropolitan-district-council/walsall ,WC158-202,31.01.24,ADULT SOCIAL CARE,5 CARE SERVICES LTD,15/01/2024,256.50,6541-Domiciliary Care,THIRD PARTY PAYMENTS,PRIVATE CONTRACTOR,REVENUE
Walsall Council,http://opendatacommunities.org/id/metropolitan-district-council/walsall ,WC158-203,31.01.24,ADULT SOCIAL CARE,5 CARE SERVICES LTD,15/01/2024,540.00,6541-Domiciliary Care,THIRD PARTY PAYMENTS,PRIVATE CONTRACTOR,REVENUE
Walsall Council,http://opendatacommunities.org/id/metropolitan-district-council/walsall ,WC158-204,31.01.24,ADULT SOCIAL CARE,5 CARE SERVICES LTD,15/01/2024,486.00,6541-Domiciliary Care,THIRD PARTY PAYMENTS,PRIVATE CONTRACTOR,REVENUE
Walsall Council,http://opendatacommunities.org/id/metropolitan-district-council/walsall ,WC158-205,31.01.24,ADULT SOCIAL CARE,5 CARE SERVICES LTD,15/01/2024,294.00,6541-Domiciliary Care,THIRD PARTY PAYMENTS,PRIVATE CONTRACTOR,REVENUE
Walsall Council,http://opendatacommunities.org/id/metropolitan-district-council/walsall ,WC158-206,31.01.24,ADULT SOCIAL CARE,5 CARE SERVICES LTD,15/01/2024,567.00,6541-Domiciliary Care,THIRD PARTY PAYMENTS,PRIVATE CONTRACTOR,REVENUE
Walsall Council,http://opendatacommunities.org/id/metropolitan-district-council/walsall ,WC158-207,31.01.24,ADULT SOCIAL CARE,5 CARE SERVICES LTD,15/01/2024,504.00,6541-Domiciliary Care,THIRD PARTY PAYMENTS,PRIVATE CONTRACTOR,REVENUE
Walsall Council,http://opendatacommunities.org/id/metropolitan-district-council/walsall ,WC158-208,31.01.24,ADULT SOCIAL CARE,5 CARE SERVICES LTD,15/01/2024,567.00,6541-Domiciliary Care,THIRD PARTY PAYMENTS,PRIVATE CONTRACTOR,REVENUE
Walsall Council,http://opendatacommunities.org/id/metropolitan-district-council/walsall ,WC158-209,31.01.24,ADULT SOCIAL CARE,5 CARE SERVICES LTD,15/01/2024,504.00,6541-Domiciliary Care,THIRD PARTY PAYMENTS,PRIVATE CONTRACTOR,REVENUE
Walsall Council,http://opendatacommunities.org/id/metropolitan-district-council/walsall ,WC158-210,31.01.24,ADULT SOCIAL CARE,5 CARE SERVICES LTD,15/01/2024,666.00,6541-Domiciliary Care,THIRD PARTY PAYMENTS,PRIVATE CONTRACTOR,REVENUE
Walsall Council,http://opendatacommunities.org/id/metropolitan-district-council/walsall ,WC158-211,31.01.24,ADULT SOCIAL CARE,5 CARE SERVICES LTD,15/01/2024,567.00,6541-Domiciliary Care,THIRD PARTY PAYMENTS,PRIVATE CONTRACTOR,REVENUE
Walsall Council,http://opendatacommunities.org/id/metropolitan-district-council/walsall ,WC158-212,31.01.24,ADULT SOCIAL CARE,5 CARE SERVICES LTD,15/01/2024,567.00,6541-Domiciliary Care,THIRD PARTY PAYMENTS,PRIVATE CONTRACTOR,REVENUE
Walsall Council,http://opendatacommunities.org/id/metropolitan-district-council/walsall ,WC158-213,31.01.24,ADULT SOCIAL CARE,5 CARE SERVICES LTD,15/01/2024,630.00,6541-Domiciliary Care,THIRD PARTY PAYMENTS,PRIVATE CONTRACTOR,REVENUE
Walsall Council,http://opendatacommunities.org/id/metropolitan-district-council/walsall ,WC158-214,31.01.24,ADULT SOCIAL CARE,5 CARE SERVICES LTD,15/01/2024,328.50,6541-Domiciliary Care,THIRD PARTY PAYMENTS,PRIVATE CONTRACTOR,REVENUE
Walsall Council,http://opendatacommunities.org/id/metropolitan-district-council/walsall ,WC158-215,31.01.24,ADULT SOCIAL CARE,5 CARE SERVICES LTD,15/01/2024,567.00,6541-Domiciliary Care,THIRD PARTY PAYMENTS,PRIVATE CONTRACTOR,REVENUE
Walsall Council,http://opendatacommunities.org/id/metropolitan-district-council/walsall ,WC158-216,31.01.24,ADULT SOCIAL CARE,5 CARE SERVICES LTD,15/01/2024,261.00,6541-Domiciliary Care,THIRD PARTY PAYMENTS,PRIVATE CONTRACTOR,REVENUE
Walsall Council,http://opendatacommunities.org/id/metropolitan-district-council/walsall ,WC158-217,31.01.24,ADULT SOCIAL CARE,5 CARE SERVICES LTD,15/01/2024,756.00,6541-Domiciliary Care,THIRD PARTY PAYMENTS,PRIVATE CONTRACTOR,REVENUE
Walsall Council,http://opendatacommunities.org/id/metropolitan-district-council/walsall ,WC158-218,31.01.24,ADULT SOCIAL CARE,5 CARE SERVICES LTD,15/01/2024,630.00,6541-Domiciliary Care,THIRD PARTY PAYMENTS,PRIVATE CONTRACTOR,REVENUE
Walsall Council,http://opendatacommunities.org/id/metropolitan-district-council/walsall ,WC158-219,31.01.24,ADULT SOCIAL CARE,5 CARE SERVICES LTD,15/01/2024,774.00,6541-Domiciliary Care,THIRD PARTY PAYMENTS,PRIVATE CONTRACTOR,REVENUE
Walsall Council,http://opendatacommunities.org/id/metropolitan-district-council/walsall ,WC158-220,31.01.24,ADULT SOCIAL CARE,5 CARE SERVICES LTD,15/01/2024,283.50,6541-Domiciliary Care,THIRD PARTY PAYMENTS,PRIVATE CONTRACTOR,REVENUE
Walsall Council,http://opendatacommunities.org/id/metropolitan-district-council/walsall ,WC158-221,31.01.24,ADULT SOCIAL CARE,5 CARE SERVICES LTD,15/01/2024,360.00,6541-Domiciliary Care,THIRD PARTY PAYMENTS,PRIVATE CONTRACTOR,REVENUE
Walsall Council,http://opendatacommunities.org/id/metropolitan-district-council/walsall ,WC158-222,31.01.24,ADULT SOCIAL CARE,5 CARE SERVICES LTD,15/01/2024,630.00,6541-Domiciliary Care,THIRD PARTY PAYMENTS,PRIVATE CONTRACTOR,REVENUE
Walsall Council,http://opendatacommunities.org/id/metropolitan-district-council/walsall ,WC158-223,31.01.24,ADULT SOCIAL CARE,5 CARE SERVICES LTD,15/01/2024,"1,008.00",6541-Domiciliary Care,THIRD PARTY PAYMENTS,PRIVATE CONTRACTOR,REVENUE
Walsall Council,http://opendatacommunities.org/id/metropolitan-district-council/walsall ,WC158-224,31.01.24,ADULT SOCIAL CARE,5 CARE SERVICES LTD,15/01/2024,567.00,6541-Domiciliary Care,THIRD PARTY PAYMENTS,PRIVATE CONTRACTOR,REVENUE
Walsall Council,http://opendatacommunities.org/id/metropolitan-district-council/walsall ,WC158-225,31.01.24,ADULT SOCIAL CARE,5 CARE SERVICES LTD,15/01/2024,567.00,6541-Domiciliary Care,THIRD PARTY PAYMENTS,PRIVATE CONTRACTOR,REVENUE
Walsall Council,http://opendatacommunities.org/id/metropolitan-district-council/walsall ,WC158-226,31.01.24,ADULT SOCIAL CARE,5 CARE SERVICES LTD,15/01/2024,"1,386.00",6541-Domiciliary Care,THIRD PARTY PAYMENTS,PRIVATE CONTRACTOR,REVENUE
Walsall Council,http://opendatacommunities.org/id/metropolitan-district-council/walsall ,WC158-227,31.01.24,ADULT SOCIAL CARE,5 CARE SERVICES LTD,15/01/2024,333.00,6541-Domiciliary Care,THIRD PARTY PAYMENTS,PRIVATE CONTRACTOR,REVENUE
Walsall Council,http://opendatacommunities.org/id/metropolitan-district-council/walsall ,WC158-228,31.01.24,ADULT SOCIAL CARE,5 CARE SERVICES LTD,15/01/2024,756.00,6541-Domiciliary Care,THIRD PARTY PAYMENTS,PRIVATE CONTRACTOR,REVENUE
Walsall Council,http://opendatacommunities.org/id/metropolitan-district-council/walsall ,WC158-229,31.01.24,ADULT SOCIAL CARE,5 CARE SERVICES LTD,15/01/2024,283.50,6541-Domiciliary Care,THIRD PARTY PAYMENTS,PRIVATE CONTRACTOR,REVENUE
Walsall Council,http://opendatacommunities.org/id/metropolitan-district-council/walsall ,WC158-230,31.01.24,ADULT SOCIAL CARE,5 CARE SERVICES LTD,15/01/2024,378.00,6541-Domiciliary Care,THIRD PARTY PAYMENTS,PRIVATE CONTRACTOR,REVENUE
Walsall Council,http://opendatacommunities.org/id/metropolitan-district-council/walsall ,WC158-231,31.01.24,ADULT SOCIAL CARE,5 CARE SERVICES LTD,15/01/2024,819.00,6541-Domiciliary Care,THIRD PARTY PAYMENTS,PRIVATE CONTRACTOR,REVENUE
Walsall Council,http://opendatacommunities.org/id/metropolitan-district-council/walsall ,WC158-232,31.01.24,ADULT SOCIAL CARE,5 CARE SERVICES LTD,15/01/2024,567.00,6541-Domiciliary Care,THIRD PARTY PAYMENTS,PRIVATE CONTRACTOR,REVENUE
Walsall Council,http://opendatacommunities.org/id/metropolitan-district-council/walsall ,WC158-233,31.01.24,ADULT SOCIAL CARE,5 CARE SERVICES LTD,15/01/2024,256.50,6541-Domiciliary Care,THIRD PARTY PAYMENTS,PRIVATE CONTRACTOR,REVENUE
Walsall Council,http://opendatacommunities.org/id/metropolitan-district-council/walsall ,WC158-234,31.01.24,ADULT SOCIAL CARE,5 CARE SERVICES LTD,15/01/2024,283.50,6541-Domiciliary Care,THIRD PARTY PAYMENTS,PRIVATE CONTRACTOR,REVENUE
Walsall Council,http://opendatacommunities.org/id/metropolitan-district-council/walsall ,WC158-235,31.01.24,ADULT SOCIAL CARE,5 CARE SERVICES LTD,15/01/2024,486.00,6541-Domiciliary Care,THIRD PARTY PAYMENTS,PRIVATE CONTRACTOR,REVENUE
Walsall Council,http://opendatacommunities.org/id/metropolitan-district-council/walsall ,WC158-236,31.01.24,ADULT SOCIAL CARE,5 CARE SERVICES LTD,15/01/2024,294.00,6541-Domiciliary Care,THIRD PARTY PAYMENTS,PRIVATE CONTRACTOR,REVENUE
Walsall Council,http://opendatacommunities.org/id/metropolitan-district-council/walsall ,WC158-237,31.01.24,ADULT SOCIAL CARE,5 CARE SERVICES LTD,15/01/2024,567.00,6541-Domiciliary Care,THIRD PARTY PAYMENTS,PRIVATE CONTRACTOR,REVENUE
Walsall Council,http://opendatacommunities.org/id/metropolitan-district-council/walsall ,WC158-238,31.01.24,ADULT SOCIAL CARE,5 CARE SERVICES LTD,15/01/2024,630.00,6541-Domiciliary Care,THIRD PARTY PAYMENTS,PRIVATE CONTRACTOR,REVENUE
Walsall Council,http://opendatacommunities.org/id/metropolitan-district-council/walsall ,WC158-239,31.01.24,ADULT SOCIAL CARE,5 CARE SERVICES LTD,15/01/2024,567.00,6541-Domiciliary Care,THIRD PARTY PAYMENTS,PRIVATE CONTRACTOR,REVENUE
Walsall Council,http://opendatacommunities.org/id/metropolitan-district-council/walsall ,WC158-240,31.01.24,ADULT SOCIAL CARE,5 CARE SERVICES LTD,15/01/2024,504.00,6541-Domiciliary Care,THIRD PARTY PAYMENTS,PRIVATE CONTRACTOR,REVENUE
Walsall Council,http://opendatacommunities.org/id/metropolitan-district-council/walsall ,WC158-241,31.01.24,ADULT SOCIAL CARE,5 CARE SERVICES LTD,15/01/2024,666.00,6541-Domiciliary Care,THIRD PARTY PAYMENTS,PRIVATE CONTRACTOR,REVENUE
Walsall Council,http://opendatacommunities.org/id/metropolitan-district-council/walsall ,WC158-242,31.01.24,ADULT SOCIAL CARE,5 CARE SERVICES LTD,15/01/2024,567.00,6541-Domiciliary Care,THIRD PARTY PAYMENTS,PRIVATE CONTRACTOR,REVENUE
Walsall Council,http://opendatacommunities.org/id/metropolitan-district-council/walsall ,WC158-243,31.01.24,ADULT SOCIAL CARE,5 CARE SERVICES LTD,15/01/2024,567.00,6541-Domiciliary Care,THIRD PARTY PAYMENTS,PRIVATE CONTRACTOR,REVENUE
Walsall Council,http://opendatacommunities.org/id/metropolitan-district-council/walsall ,WC158-244,31.01.24,ADULT SOCIAL CARE,5 CARE SERVICES LTD,15/01/2024,630.00,6541-Domiciliary Care,THIRD PARTY PAYMENTS,PRIVATE CONTRACTOR,REVENUE
Walsall Council,http://opendatacommunities.org/id/metropolitan-district-council/walsall ,WC158-245,31.01.24,ADULT SOCIAL CARE,5 CARE SERVICES LTD,15/01/2024,328.50,6541-Domiciliary Care,THIRD PARTY PAYMENTS,PRIVATE CONTRACTOR,REVENUE
Walsall Council,http://opendatacommunities.org/id/metropolitan-district-council/walsall ,WC158-246,31.01.24,ADULT SOCIAL CARE,5 CARE SERVICES LTD,15/01/2024,567.00,6541-Domiciliary Care,THIRD PARTY PAYMENTS,PRIVATE CONTRACTOR,REVENUE
Walsall Council,http://opendatacommunities.org/id/metropolitan-district-council/walsall ,WC158-247,31.01.24,ADULT SOCIAL CARE,5 CARE SERVICES LTD,30/01/2024,283.50,6541-Domiciliary Care,THIRD PARTY PAYMENTS,PRIVATE CONTRACTOR,REVENUE
Walsall Council,http://opendatacommunities.org/id/metropolitan-district-council/walsall ,WC158-248,31.01.24,ADULT SOCIAL CARE,5 CARE SERVICES LTD,30/01/2024,648.00,6541-Domiciliary Care,THIRD PARTY PAYMENTS,PRIVATE CONTRACTOR,REVENUE
Walsall Council,http://opendatacommunities.org/id/metropolitan-district-council/walsall ,WC158-249,31.01.24,ADULT SOCIAL CARE,5 CARE SERVICES LTD,30/01/2024,774.00,6541-Domiciliary Care,THIRD PARTY PAYMENTS,PRIVATE CONTRACTOR,REVENUE
Walsall Council,http://opendatacommunities.org/id/metropolitan-district-council/walsall ,WC158-250,31.01.24,ADULT SOCIAL CARE,5 CARE SERVICES LTD,30/01/2024,283.50,6541-Domiciliary Care,THIRD PARTY PAYMENTS,PRIVATE CONTRACTOR,REVENUE
Walsall Council,http://opendatacommunities.org/id/metropolitan-district-council/walsall ,WC158-251,31.01.24,ADULT SOCIAL CARE,5 CARE SERVICES LTD,30/01/2024,"3,024.00",6541-Domiciliary Care,THIRD PARTY PAYMENTS,PRIVATE CONTRACTOR,REVENUE
Walsall Council,http://opendatacommunities.org/id/metropolitan-district-council/walsall ,WC158-252,31.01.24,ADULT SOCIAL CARE,5 CARE SERVICES LTD,30/01/2024,567.00,6541-Domiciliary Care,THIRD PARTY PAYMENTS,PRIVATE CONTRACTOR,REVENUE
Walsall Council,http://opendatacommunities.org/id/metropolitan-district-council/walsall ,WC158-253,31.01.24,ADULT SOCIAL CARE,5 CARE SERVICES LTD,30/01/2024,504.00,6541-Domiciliary Care,THIRD PARTY PAYMENTS,PRIVATE CONTRACTOR,REVENUE
Walsall Council,http://opendatacommunities.org/id/metropolitan-district-council/walsall ,WC158-254,31.01.24,ADULT SOCIAL CARE,5 CARE SERVICES LTD,30/01/2024,"1,008.00",6541-Domiciliary Care,THIRD PARTY PAYMENTS,PRIVATE CONTRACTOR,REVENUE
Walsall Council,http://opendatacommunities.org/id/metropolitan-district-council/walsall ,WC158-255,31.01.24,ADULT SOCIAL CARE,5 CARE SERVICES LTD,30/01/2024,"1,386.00",6541-Domiciliary Care,THIRD PARTY PAYMENTS,PRIVATE CONTRACTOR,REVENUE
Walsall Council,http://opendatacommunities.org/id/metropolitan-district-council/walsall ,WC158-256,31.01.24,ADULT SOCIAL CARE,5 CARE SERVICES LTD,30/01/2024,324.00,6541-Domiciliary Care,THIRD PARTY PAYMENTS,PRIVATE CONTRACTOR,REVENUE
Walsall Council,http://opendatacommunities.org/id/metropolitan-district-council/walsall ,WC158-257,31.01.24,ADULT SOCIAL CARE,5 CARE SERVICES LTD,30/01/2024,756.00,6541-Domiciliary Care,THIRD PARTY PAYMENTS,PRIVATE CONTRACTOR,REVENUE
Walsall Council,http://opendatacommunities.org/id/metropolitan-district-council/walsall ,WC158-258,31.01.24,ADULT SOCIAL CARE,5 CARE SERVICES LTD,30/01/2024,283.50,6541-Domiciliary Care,THIRD PARTY PAYMENTS,PRIVATE CONTRACTOR,REVENUE
Walsall Council,http://opendatacommunities.org/id/metropolitan-district-council/walsall ,WC158-259,31.01.24,ADULT SOCIAL CARE,5 CARE SERVICES LTD,30/01/2024,666.00,6541-Domiciliary Care,THIRD PARTY PAYMENTS,PRIVATE CONTRACTOR,REVENUE
Walsall Council,http://opendatacommunities.org/id/metropolitan-district-council/walsall ,WC158-260,31.01.24,ADULT SOCIAL CARE,5 CARE SERVICES LTD,30/01/2024,567.00,6541-Domiciliary Care,THIRD PARTY PAYMENTS,PRIVATE CONTRACTOR,REVENUE
Walsall Council,http://opendatacommunities.org/id/metropolitan-district-council/walsall ,WC158-261,31.01.24,ADULT SOCIAL CARE,5 CARE SERVICES LTD,30/01/2024,819.00,6541-Domiciliary Care,THIRD PARTY PAYMENTS,PRIVATE CONTRACTOR,REVENUE
Walsall Council,http://opendatacommunities.org/id/metropolitan-district-council/walsall ,WC158-262,31.01.24,ADULT SOCIAL CARE,5 CARE SERVICES LTD,30/01/2024,378.00,6541-Domiciliary Care,THIRD PARTY PAYMENTS,PRIVATE CONTRACTOR,REVENUE
Walsall Council,http://opendatacommunities.org/id/metropolitan-district-council/walsall ,WC158-263,31.01.24,ADULT SOCIAL CARE,5 CARE SERVICES LTD,30/01/2024,567.00,6541-Domiciliary Care,THIRD PARTY PAYMENTS,PRIVATE CONTRACTOR,REVENUE
Walsall Council,http://opendatacommunities.org/id/metropolitan-district-council/walsall ,WC158-264,31.01.24,ADULT SOCIAL CARE,5 CARE SERVICES LTD,30/01/2024,630.00,6541-Domiciliary Care,THIRD PARTY PAYMENTS,PRIVATE CONTRACTOR,REVENUE
Walsall Council,http://opendatacommunities.org/id/metropolitan-district-council/walsall ,WC158-265,31.01.24,ADULT SOCIAL CARE,5 CARE SERVICES LTD,30/01/2024,567.00,6541-Domiciliary Care,THIRD PARTY PAYMENTS,PRIVATE CONTRACTOR,REVENUE
Walsall Council,http://opendatacommunities.org/id/metropolitan-district-council/walsall ,WC158-266,31.01.24,ADULT SOCIAL CARE,5 CARE SERVICES LTD,30/01/2024,256.50,6541-Domiciliary Care,THIRD PARTY PAYMENTS,PRIVATE CONTRACTOR,REVENUE
Walsall Council,http://opendatacommunities.org/id/metropolitan-district-council/walsall ,WC158-267,31.01.24,ADULT SOCIAL CARE,5 CARE SERVICES LTD,30/01/2024,756.00,6541-Domiciliary Care,THIRD PARTY PAYMENTS,PRIVATE CONTRACTOR,REVENUE
Walsall Council,http://opendatacommunities.org/id/metropolitan-district-council/walsall ,WC158-268,31.01.24,ADULT SOCIAL CARE,5 CARE SERVICES LTD,30/01/2024,378.00,6541-Domiciliary Care,THIRD PARTY PAYMENTS,PRIVATE CONTRACTOR,REVENUE
Walsall Council,http://opendatacommunities.org/id/metropolitan-district-council/walsall ,WC158-269,31.01.24,ADULT SOCIAL CARE,5 CARE SERVICES LTD,30/01/2024,630.00,6541-Domiciliary Care,THIRD PARTY PAYMENTS,PRIVATE CONTRACTOR,REVENUE
Walsall Council,http://opendatacommunities.org/id/metropolitan-district-council/walsall ,WC158-270,31.01.24,ADULT SOCIAL CARE,5 CARE SERVICES LTD,30/01/2024,567.00,6541-Domiciliary Care,THIRD PARTY PAYMENTS,PRIVATE CONTRACTOR,REVENUE
Walsall Council,http://opendatacommunities.org/id/metropolitan-district-council/walsall ,WC158-271,31.01.24,ADULT SOCIAL CARE,5 CARE SERVICES LTD,30/01/2024,432.00,6541-Domiciliary Care,THIRD PARTY PAYMENTS,PRIVATE CONTRACTOR,REVENUE
Walsall Council,http://opendatacommunities.org/id/metropolitan-district-council/walsall ,WC158-272,31.01.24,ADULT SOCIAL CARE,5 CARE SERVICES LTD,30/01/2024,324.00,6541-Domiciliary Care,THIRD PARTY PAYMENTS,PRIVATE CONTRACTOR,REVENUE
Walsall Council,http://opendatacommunities.org/id/metropolitan-district-council/walsall ,WC158-273,31.01.24,ADULT SOCIAL CARE,5 CARE SERVICES LTD,30/01/2024,486.00,6541-Domiciliary Care,THIRD PARTY PAYMENTS,PRIVATE CONTRACTOR,REVENUE
Walsall Council,http://opendatacommunities.org/id/metropolitan-district-council/walsall ,WC158-274,31.01.24,ADULT SOCIAL CARE,5 CARE SERVICES LTD,30/01/2024,294.00,6541-Domiciliary Care,THIRD PARTY PAYMENTS,PRIVATE CONTRACTOR,REVENUE
Walsall Council,http://opendatacommunities.org/id/metropolitan-district-council/walsall ,WC158-275,31.01.24,ADULT SOCIAL CARE,5 CARE SERVICES LTD,30/01/2024,567.00,6541-Domiciliary Care,THIRD PARTY PAYMENTS,PRIVATE CONTRACTOR,REVENUE
Walsall Council,http://opendatacommunities.org/id/metropolitan-district-council/walsall ,WC158-276,31.01.24,ADULT SOCIAL CARE,5 CARE SERVICES LTD,30/01/2024,630.00,6541-Domiciliary Care,THIRD PARTY PAYMENTS,PRIVATE CONTRACTOR,REVENUE
Walsall Council,http://opendatacommunities.org/id/metropolitan-district-council/walsall ,WC158-277,31.01.24,ADULT SOCIAL CARE,5 CARE SERVICES LTD,30/01/2024,567.00,6541-Domiciliary Care,THIRD PARTY PAYMENTS,PRIVATE CONTRACTOR,REVENUE
Walsall Council,http://opendatacommunities.org/id/metropolitan-district-council/walsall ,WC158-278,31.01.24,ADULT SOCIAL CARE,5 CARE SERVICES LTD,30/01/2024,567.00,6541-Domiciliary Care,THIRD PARTY PAYMENTS,PRIVATE CONTRACTOR,REVENUE
Walsall Council,http://opendatacommunities.org/id/metropolitan-district-council/walsall ,WC158-279,31.01.24,ADULT SOCIAL CARE,5 CARE SERVICES LTD,30/01/2024,567.00,6541-Domiciliary Care,THIRD PARTY PAYMENTS,PRIVATE CONTRACTOR,REVENUE
Walsall Council,http://opendatacommunities.org/id/metropolitan-district-council/walsall ,WC158-280,31.01.24,ADULT SOCIAL CARE,5 CARE SERVICES LTD,30/01/2024,"1,008.00",6541-Domiciliary Care,THIRD PARTY PAYMENTS,PRIVATE CONTRACTOR,REVENUE
Walsall Council,http://opendatacommunities.org/id/metropolitan-district-council/walsall ,WC158-281,31.01.24,ADULT SOCIAL CARE,5 CARE SERVICES LTD,30/01/2024,283.50,6541-Domiciliary Care,THIRD PARTY PAYMENTS,PRIVATE CONTRACTOR,REVENUE
Walsall Council,http://opendatacommunities.org/id/metropolitan-district-council/walsall ,WC158-282,31.01.24,ADULT SOCIAL CARE,5 CARE SERVICES LTD,30/01/2024,378.00,6541-Domiciliary Care,THIRD PARTY PAYMENTS,PRIVATE CONTRACTOR,REVENUE
Walsall Council,http://opendatacommunities.org/id/metropolitan-district-council/walsall ,WC158-283,31.01.24,ADULT SOCIAL CARE,5 CARE SERVICES LTD,30/01/2024,567.00,6541-Domiciliary Care,THIRD PARTY PAYMENTS,PRIVATE CONTRACTOR,REVENUE
Walsall Council,http://opendatacommunities.org/id/metropolitan-district-council/walsall ,WC158-284,31.01.24,ADULT SOCIAL CARE,5 CARE SERVICES LTD,30/01/2024,504.00,6541-Domiciliary Care,THIRD PARTY PAYMENTS,PRIVATE CONTRACTOR,REVENUE
Walsall Council,http://opendatacommunities.org/id/metropolitan-district-council/walsall ,WC158-285,31.01.24,ADULT SOCIAL CARE,5 CARE SERVICES LTD,30/01/2024,486.00,6541-Domiciliary Care,THIRD PARTY PAYMENTS,PRIVATE CONTRACTOR,REVENUE
Walsall Council,http://opendatacommunities.org/id/metropolitan-district-council/walsall ,WC158-286,31.01.24,ADULT SOCIAL CARE,5 CARE SERVICES LTD,30/01/2024,294.00,6541-Domiciliary Care,THIRD PARTY PAYMENTS,PRIVATE CONTRACTOR,REVENUE
Walsall Council,http://opendatacommunities.org/id/metropolitan-district-council/walsall ,WC158-287,31.01.24,ADULT SOCIAL CARE,5 CARE SERVICES LTD,30/01/2024,567.00,6541-Domiciliary Care,THIRD PARTY PAYMENTS,PRIVATE CONTRACTOR,REVENUE
Walsall Council,http://opendatacommunities.org/id/metropolitan-district-council/walsall ,WC158-288,31.01.24,ADULT SOCIAL CARE,5 CARE SERVICES LTD,30/01/2024,738.00,6541-Domiciliary Care,THIRD PARTY PAYMENTS,PRIVATE CONTRACTOR,REVENUE
Walsall Council,http://opendatacommunities.org/id/metropolitan-district-council/walsall ,WC158-289,31.01.24,ADULT SOCIAL CARE,5 CARE SERVICES LTD,30/01/2024,567.00,6541-Domiciliary Care,THIRD PARTY PAYMENTS,PRIVATE CONTRACTOR,REVENUE
Walsall Council,http://opendatacommunities.org/id/metropolitan-district-council/walsall ,WC158-290,31.01.24,ADULT SOCIAL CARE,5 CARE SERVICES LTD,30/01/2024,630.00,6541-Domiciliary Care,THIRD PARTY PAYMENTS,PRIVATE CONTRACTOR,REVENUE
Walsall Council,http://opendatacommunities.org/id/metropolitan-district-council/walsall ,WC158-291,31.01.24,ADULT SOCIAL CARE,5 CARE SERVICES LTD,30/01/2024,756.00,6541-Domiciliary Care,THIRD PARTY PAYMENTS,PRIVATE CONTRACTOR,REVENUE
Walsall Council,http://opendatacommunities.org/id/metropolitan-district-council/walsall ,WC158-292,31.01.24,ADULT SOCIAL CARE,5 CARE SERVICES LTD,30/01/2024,630.00,6541-Domiciliary Care,THIRD PARTY PAYMENTS,PRIVATE CONTRACTOR,REVENUE
Walsall Council,http://opendatacommunities.org/id/metropolitan-district-council/walsall ,WC158-293,31.01.24,ADULT SOCIAL CARE,5 CARE SERVICES LTD,30/01/2024,774.00,6541-Domiciliary Care,THIRD PARTY PAYMENTS,PRIVATE CONTRACTOR,REVENUE
Walsall Council,http://opendatacommunities.org/id/metropolitan-district-council/walsall ,WC158-294,31.01.24,ADULT SOCIAL CARE,5 CARE SERVICES LTD,30/01/2024,283.50,6541-Domiciliary Care,THIRD PARTY PAYMENTS,PRIVATE CONTRACTOR,REVENUE
Walsall Council,http://opendatacommunities.org/id/metropolitan-district-council/walsall ,WC158-295,31.01.24,ADULT SOCIAL CARE,5 CARE SERVICES LTD,30/01/2024,567.00,6541-Domiciliary Care,THIRD PARTY PAYMENTS,PRIVATE CONTRACTOR,REVENUE
Walsall Council,http://opendatacommunities.org/id/metropolitan-district-council/walsall ,WC158-296,31.01.24,ADULT SOCIAL CARE,5 CARE SERVICES LTD,30/01/2024,630.00,6541-Domiciliary Care,THIRD PARTY PAYMENTS,PRIVATE CONTRACTOR,REVENUE
Walsall Council,http://opendatacommunities.org/id/metropolitan-district-council/walsall ,WC158-297,31.01.24,ADULT SOCIAL CARE,5 CARE SERVICES LTD,30/01/2024,567.00,6541-Domiciliary Care,THIRD PARTY PAYMENTS,PRIVATE CONTRACTOR,REVENUE
Walsall Council,http://opendatacommunities.org/id/metropolitan-district-council/walsall ,WC158-298,31.01.24,ADULT SOCIAL CARE,5 CARE SERVICES LTD,30/01/2024,567.00,6541-Domiciliary Care,THIRD PARTY PAYMENTS,PRIVATE CONTRACTOR,REVENUE
Walsall Council,http://opendatacommunities.org/id/metropolitan-district-council/walsall ,WC158-299,31.01.24,ADULT SOCIAL CARE,5 CARE SERVICES LTD,30/01/2024,567.00,6541-Domiciliary Care,THIRD PARTY PAYMENTS,PRIVATE CONTRACTOR,REVENUE
Walsall Council,http://opendatacommunities.org/id/metropolitan-district-council/walsall ,WC158-300,31.01.24,ADULT SOCIAL CARE,5 CARE SERVICES LTD,30/01/2024,"1,386.00",6541-Domiciliary Care,THIRD PARTY PAYMENTS,PRIVATE CONTRACTOR,REVENUE
Walsall Council,http://opendatacommunities.org/id/metropolitan-district-council/walsall ,WC158-301,31.01.24,ADULT SOCIAL CARE,5 CARE SERVICES LTD,30/01/2024,324.00,6541-Domiciliary Care,THIRD PARTY PAYMENTS,PRIVATE CONTRACTOR,REVENUE
Walsall Council,http://opendatacommunities.org/id/metropolitan-district-council/walsall ,WC158-302,31.01.24,ADULT SOCIAL CARE,5 CARE SERVICES LTD,30/01/2024,756.00,6541-Domiciliary Care,THIRD PARTY PAYMENTS,PRIVATE CONTRACTOR,REVENUE
Walsall Council,http://opendatacommunities.org/id/metropolitan-district-council/walsall ,WC158-303,31.01.24,ADULT SOCIAL CARE,5 CARE SERVICES LTD,30/01/2024,283.50,6541-Domiciliary Care,THIRD PARTY PAYMENTS,PRIVATE CONTRACTOR,REVENUE
Walsall Council,http://opendatacommunities.org/id/metropolitan-district-council/walsall ,WC158-304,31.01.24,ADULT SOCIAL CARE,5 CARE SERVICES LTD,30/01/2024,819.00,6541-Domiciliary Care,THIRD PARTY PAYMENTS,PRIVATE CONTRACTOR,REVENUE
Walsall Council,http://opendatacommunities.org/id/metropolitan-district-council/walsall ,WC158-305,31.01.24,ADULT SOCIAL CARE,5 CARE SERVICES LTD,30/01/2024,567.00,6541-Domiciliary Care,THIRD PARTY PAYMENTS,PRIVATE CONTRACTOR,REVENUE
Walsall Council,http://opendatacommunities.org/id/metropolitan-district-council/walsall ,WC158-306,31.01.24,ADULT SOCIAL CARE,5 CARE SERVICES LTD,30/01/2024,256.50,6541-Domiciliary Care,THIRD PARTY PAYMENTS,PRIVATE CONTRACTOR,REVENUE
Walsall Council,http://opendatacommunities.org/id/metropolitan-district-council/walsall ,WC158-307,31.01.24,ADULT SOCIAL CARE,5 CARE SERVICES LTD,30/01/2024,630.00,6541-Domiciliary Care,THIRD PARTY PAYMENTS,PRIVATE CONTRACTOR,REVENUE
Walsall Council,http://opendatacommunities.org/id/metropolitan-district-council/walsall ,WC158-308,31.01.24,ADULT SOCIAL CARE,5 CARE SERVICES LTD,30/01/2024,378.00,6541-Domiciliary Care,THIRD PARTY PAYMENTS,PRIVATE CONTRACTOR,REVENUE
Walsall Council,http://opendatacommunities.org/id/metropolitan-district-council/walsall ,WC158-309,31.01.24,ADULT SOCIAL CARE,5 CARE SERVICES LTD,30/01/2024,567.00,6541-Domiciliary Care,THIRD PARTY PAYMENTS,PRIVATE CONTRACTOR,REVENUE
Walsall Council,http://opendatacommunities.org/id/metropolitan-district-council/walsall ,WC158-310,31.01.24,RESOURCES AND TRANSFORMATION,A D T FIRE AND SECURITY PLC,19/01/2024,286.62,6310-Security & Alarm Maintenance,PREMISES,REPAIRS & MAINTENANCE,REVENUE
Walsall Council,http://opendatacommunities.org/id/metropolitan-district-council/walsall ,WC158-311,31.01.24,RESOURCES AND TRANSFORMATION,A D T FIRE AND SECURITY PLC,10/01/2024,"1,655.63",6310-Security & Alarm Maintenance,PREMISES,REPAIRS & MAINTENANCE,REVENUE
Walsall Council,http://opendatacommunities.org/id/metropolitan-district-council/walsall ,WC158-312,31.01.24,"ECONOMY, ENVIRONMENT & COMMUNITIES",A F BLAKEMORE & SON LTD,23/01/2024,280.29,6413-Food & Drink Supplies,SUPPLIES & SERVICES,CATERING,REVENUE
Walsall Council,http://opendatacommunities.org/id/metropolitan-district-council/walsall ,WC158-313,31.01.24,"ECONOMY, ENVIRONMENT & COMMUNITIES",A F BLAKEMORE & SON LTD,23/01/2024,311.11,6413-Food & Drink Supplies,SUPPLIES & SERVICES,CATERING,REVENUE
Walsall Council,http://opendatacommunities.org/id/metropolitan-district-council/walsall ,WC158-314,31.01.24,"ECONOMY, ENVIRONMENT & COMMUNITIES",A F BLAKEMORE & SON LTD,23/01/2024,399.45,6413-Food & Drink Supplies,SUPPLIES & SERVICES,CATERING,REVENUE
Walsall Council,http://opendatacommunities.org/id/metropolitan-district-council/walsall ,WC158-315,31.01.24,"ECONOMY, ENVIRONMENT & COMMUNITIES",A F BLAKEMORE & SON LTD,23/01/2024,261.23,6413-Food & Drink Supplies,SUPPLIES & SERVICES,CATERING,REVENUE
Walsall Council,http://opendatacommunities.org/id/metropolitan-district-council/walsall ,WC158-316,31.01.24,"ECONOMY, ENVIRONMENT & COMMUNITIES",A F BLAKEMORE & SON LTD,23/01/2024,321.72,6413-Food & Drink Supplies,SUPPLIES & SERVICES,CATERING,REVENUE
Walsall Council,http://opendatacommunities.org/id/metropolitan-district-council/walsall ,WC158-317,31.01.24,"ECONOMY, ENVIRONMENT & COMMUNITIES",A F BLAKEMORE & SON LTD,16/01/2024,488.62,6413-Food & Drink Supplies,SUPPLIES & SERVICES,CATERING,REVENUE
Walsall Council,http://opendatacommunities.org/id/metropolitan-district-council/walsall ,WC158-318,31.01.24,"ECONOMY, ENVIRONMENT & COMMUNITIES",A F BLAKEMORE & SON LTD,23/01/2024,322.52,6413-Food & Drink Supplies,SUPPLIES & SERVICES,CATERING,REVENUE
Walsall Council,http://opendatacommunities.org/id/metropolitan-district-council/walsall ,WC158-319,31.01.24,"ECONOMY, ENVIRONMENT & COMMUNITIES",A F BLAKEMORE & SON LTD,23/01/2024,650.78,6413-Food & Drink Supplies,SUPPLIES & SERVICES,CATERING,REVENUE
Walsall Council,http://opendatacommunities.org/id/metropolitan-district-council/walsall ,WC158-320,31.01.24,CHILDRENS,A1 WALSALL RADIO CARS,02/01/2024,"3,360.00",6241-Hire of Vehicle with Driver,TRANSPORT,DIRECT TRANSPORT COSTS,REVENUE
Walsall Council,http://opendatacommunities.org/id/metropolitan-district-council/walsall ,WC158-321,31.01.24,CHILDRENS,A1 WALSALL RADIO CARS,02/01/2024,"1,960.00",6241-Hire of Vehicle with Driver,TRANSPORT,DIRECT TRANSPORT COSTS,REVENUE
Walsall Council,http://opendatacommunities.org/id/metropolitan-district-council/walsall ,WC158-322,31.01.24,CHILDRENS,A1 WALSALL RADIO CARS,02/01/2024,"1,660.00",6241-Hire of Vehicle with Driver,TRANSPORT,DIRECT TRANSPORT COSTS,REVENUE
Walsall Council,http://opendatacommunities.org/id/metropolitan-district-council/walsall ,WC158-323,31.01.24,CHILDRENS,A1 WALSALL RADIO CARS,02/01/2024,"2,160.00",6241-Hire of Vehicle with Driver,TRANSPORT,DIRECT TRANSPORT COSTS,REVENUE
Walsall Council,http://opendatacommunities.org/id/metropolitan-district-council/walsall ,WC158-324,31.01.24,CHILDRENS,A1 WALSALL RADIO CARS,02/01/2024,"1,152.00",6241-Hire of Vehicle with Driver,TRANSPORT,DIRECT TRANSPORT COSTS,REVENUE
Walsall Council,http://opendatacommunities.org/id/metropolitan-district-council/walsall ,WC158-325,31.01.24,CHILDRENS,A1 WALSALL RADIO CARS,02/01/2024,250.00,6241-Hire of Vehicle with Driver,TRANSPORT,DIRECT TRANSPORT COSTS,REVENUE
Walsall Council,http://opendatacommunities.org/id/metropolitan-district-council/walsall ,WC158-326,31.01.24,CHILDRENS,A1 WALSALL RADIO CARS,02/01/2024,"2,100.00",6241-Hire of Vehicle with Driver,TRANSPORT,DIRECT TRANSPORT COSTS,REVENUE
Walsall Council,http://opendatacommunities.org/id/metropolitan-district-council/walsall ,WC158-327,31.01.24,CHILDRENS,A1 WALSALL RADIO CARS,29/01/2024,"1,050.00",6241-Hire of Vehicle with Driver,TRANSPORT,DIRECT TRANSPORT COSTS,REVENUE
Walsall Council,http://opendatacommunities.org/id/metropolitan-district-council/walsall ,WC158-328,31.01.24,CHILDRENS,A1 WALSALL RADIO CARS,29/01/2024,830.00,6241-Hire of Vehicle with Driver,TRANSPORT,DIRECT TRANSPORT COSTS,REVENUE
Walsall Council,http://opendatacommunities.org/id/metropolitan-district-council/walsall ,WC158-329,31.01.24,CHILDRENS,A1 WALSALL RADIO CARS,29/01/2024,"1,080.00",6241-Hire of Vehicle with Driver,TRANSPORT,DIRECT TRANSPORT COSTS,REVENUE
Walsall Council,http://opendatacommunities.org/id/metropolitan-district-council/walsall ,WC158-330,31.01.24,CHILDRENS,A1 WALSALL RADIO CARS,29/01/2024,"1,680.00",6241-Hire of Vehicle with Driver,TRANSPORT,DIRECT TRANSPORT COSTS,REVENUE
Walsall Council,http://opendatacommunities.org/id/metropolitan-district-council/walsall ,WC158-331,31.01.24,CHILDRENS,A1 WALSALL RADIO CARS,29/01/2024,980.00,6241-Hire of Vehicle with Driver,TRANSPORT,DIRECT TRANSPORT COSTS,REVENUE
Walsall Council,http://opendatacommunities.org/id/metropolitan-district-council/walsall ,WC158-332,31.01.24,CHILDRENS,A1 WALSALL RADIO CARS,29/01/2024,480.00,6241-Hire of Vehicle with Driver,TRANSPORT,DIRECT TRANSPORT COSTS,REVENUE
Walsall Council,http://opendatacommunities.org/id/metropolitan-district-council/walsall ,WC158-333,31.01.24,CHILDRENS,AAINA COMMUNITY HUB,23/01/2024,"4,000.00",6632-Grants to Other Orgs,SUPPLIES & SERVICES,GRANTS (EXP) & SUBSCRIPTIONS,REVENUE
Walsall Council,http://opendatacommunities.org/id/metropolitan-district-council/walsall ,WC158-334,31.01.24,"ECONOMY, ENVIRONMENT & COMMUNITIES",AAINA COMMUNITY HUB,09/01/2024,"13,414.20",6430-Grants to Other Orgs,SUPPLIES & SERVICES,GRANTS (EXP) & SUBSCRIPTIONS,REVENUE
Walsall Council,http://opendatacommunities.org/id/metropolitan-district-council/walsall ,WC158-335,31.01.24,"ECONOMY, ENVIRONMENT & COMMUNITIES",AAINA COMMUNITY HUB,12/01/2024,"1,658.80",6430-Grants to Other Orgs,SUPPLIES & SERVICES,GRANTS (EXP) & SUBSCRIPTIONS,REVENUE
Walsall Council,http://opendatacommunities.org/id/metropolitan-district-council/walsall ,WC158-336,31.01.24,CHILDRENS,AAINA COMMUNITY HUB,30/01/2024,900.00,6413-Grants to Other Orgs,SUPPLIES & SERVICES,GRANTS (EXP) & SUBSCRIPTIONS,REVENUE
Walsall Council,http://opendatacommunities.org/id/metropolitan-district-council/walsall ,WC158-337,31.01.24,ADULT SOCIAL CARE,REDACTED,03/01/2024,900.96,6541-Direct Payment,THIRD PARTY PAYMENTS,PRIVATE CONTRACTOR,REVENUE
Walsall Council,http://opendatacommunities.org/id/metropolitan-district-council/walsall ,WC158-338,31.01.24,CHILDRENS,ABACUS FOSTERING LTD,23/01/2024,"2,818.88",6223-Independent Foster Care-Oth Agency Provision,THIRD PARTY PAYMENTS,PRIVATE CONTRACTOR,REVENUE
Walsall Council,http://opendatacommunities.org/id/metropolitan-district-council/walsall ,WC158-339,31.01.24,CHILDRENS,ABACUS FOSTERING LTD,23/01/2024,"3,198.72",6223-Independent Foster Care-Oth Agency Provision,THIRD PARTY PAYMENTS,PRIVATE CONTRACTOR,REVENUE
Walsall Council,http://opendatacommunities.org/id/metropolitan-district-council/walsall ,WC158-340,31.01.24,CHILDRENS,ABACUS FOSTERING LTD,23/01/2024,"3,038.80",6223-Independent Foster Care-Oth Agency Provision,THIRD PARTY PAYMENTS,PRIVATE CONTRACTOR,REVENUE
Walsall Council,http://opendatacommunities.org/id/metropolitan-district-council/walsall ,WC158-341,31.01.24,CHILDRENS,ABACUS FOSTERING LTD,23/01/2024,"2,984.80",6223-Independent Foster Care-Oth Agency Provision,THIRD PARTY PAYMENTS,PRIVATE CONTRACTOR,REVENUE
Walsall Council,http://opendatacommunities.org/id/metropolitan-district-council/walsall ,WC158-342,31.01.24,"ECONOMY, ENVIRONMENT & COMMUNITIES",ABBEY BLINDS LTD,29/01/2024,250.00,6414-Materials,SUPPLIES & SERVICES,EQUIPMENT FURNITURE & MATERIALS,REVENUE
Walsall Council,http://opendatacommunities.org/id/metropolitan-district-council/walsall ,WC158-343,31.01.24,ADULT SOCIAL CARE,ABBEY HEALTHCARE HOMES LTD,16/01/2024,"2,432.32",6541-Residential,THIRD PARTY PAYMENTS,PRIVATE CONTRACTOR,REVENUE
Walsall Council,http://opendatacommunities.org/id/metropolitan-district-council/walsall ,WC158-344,31.01.24,ADULT SOCIAL CARE,ABBEY HEALTHCARE HOMES LTD,16/01/2024,"3,180.76",6541-Residential,THIRD PARTY PAYMENTS,PRIVATE CONTRACTOR,REVENUE
Walsall Council,http://opendatacommunities.org/id/metropolitan-district-council/walsall ,WC158-345,31.01.24,ADULT SOCIAL CARE,ABBEY HEALTHCARE HOMES LTD,16/01/2024,"4,000.00",6541-Residential,THIRD PARTY PAYMENTS,PRIVATE CONTRACTOR,REVENUE
Walsall Council,http://opendatacommunities.org/id/metropolitan-district-council/walsall ,WC158-346,31.01.24,ADULT SOCIAL CARE,ABBEY HEALTHCARE HOMES LTD,16/01/2024,"3,180.76",6541-Residential,THIRD PARTY PAYMENTS,PRIVATE CONTRACTOR,REVENUE
Walsall Council,http://opendatacommunities.org/id/metropolitan-district-council/walsall ,WC158-347,31.01.24,CHILDRENS,ABC DAY NURSERY (WILLENHALL) LIMITED,16/01/2024,"2,479.50",1184-Other-Grants to Other Orgs,SUPPLIES & SERVICES,GRANTS (EXP) & SUBSCRIPTIONS,REVENUE
Walsall Council,http://opendatacommunities.org/id/metropolitan-district-council/walsall ,WC158-348,31.01.24,CHILDRENS,ABC DAY NURSERY (WILLENHALL) LIMITED,31/01/2024,"4,000.26",1184-Other-Grants to Other Orgs,SUPPLIES & SERVICES,GRANTS (EXP) & SUBSCRIPTIONS,REVENUE
Walsall Council,http://opendatacommunities.org/id/metropolitan-district-council/walsall ,WC158-349,31.01.24,CHILDRENS,ABC DAY NURSERY (WILLENHALL) LIMITED,16/01/2024,-918.54,1184-Other-Grants to Other Orgs,SUPPLIES & SERVICES,GRANTS (EXP) & SUBSCRIPTIONS,REVENUE
Walsall Council,http://opendatacommunities.org/id/metropolitan-district-council/walsall ,WC158-350,31.01.24,CHILDRENS,ABC DAY NURSERY (WILLENHALL) LIMITED,16/01/2024,"14,215.50",1184-Other-Grants to Other Orgs,SUPPLIES & SERVICES,GRANTS (EXP) & SUBSCRIPTIONS,REVENUE
Walsall Council,http://opendatacommunities.org/id/metropolitan-district-council/walsall ,WC158-351,31.01.24,CHILDRENS,ABC DAY NURSERY (WILLENHALL) LIMITED,31/01/2024,"8,500.14",1184-Other-Grants to Other Orgs,SUPPLIES & SERVICES,GRANTS (EXP) & SUBSCRIPTIONS,REVENUE
Walsall Council,http://opendatacommunities.org/id/metropolitan-district-council/walsall ,WC158-352,31.01.24,ADULT SOCIAL CARE,REDACTED,03/01/2024,"2,438.24",6541-Direct Payment,THIRD PARTY PAYMENTS,PRIVATE CONTRACTOR,REVENUE
Walsall Council,http://opendatacommunities.org/id/metropolitan-district-council/walsall ,WC158-353,31.01.24,CHILDRENS,ABIGAILS PLACE LTD,09/01/2024,"20,900.00",1220-Top Up Funding -Grants to Schools,SUPPLIES & SERVICES,GRANTS (EXP) & SUBSCRIPTIONS,REVENUE
Walsall Council,http://opendatacommunities.org/id/metropolitan-district-council/walsall ,WC158-354,31.01.24,ADULT SOCIAL CARE,ABILITY HEALTHCARE CANNOCK LTD,11/01/2024,"2,160.00",6541-Domiciliary Care,THIRD PARTY PAYMENTS,PRIVATE CONTRACTOR,REVENUE
Walsall Council,http://opendatacommunities.org/id/metropolitan-district-council/walsall ,WC158-355,31.01.24,ADULT SOCIAL CARE,ABILITY HEALTHCARE CANNOCK LTD,11/01/2024,"2,025.00",6541-Domiciliary Care,THIRD PARTY PAYMENTS,PRIVATE CONTRACTOR,REVENUE
Walsall Council,http://opendatacommunities.org/id/metropolitan-district-council/walsall ,WC158-356,31.01.24,ADULT SOCIAL CARE,ABILITY HEALTHCARE CANNOCK LTD,11/01/2024,"2,016.00",6541-Domiciliary Care,THIRD PARTY PAYMENTS,PRIVATE CONTRACTOR,REVENUE
Walsall Council,http://opendatacommunities.org/id/metropolitan-district-council/walsall ,WC158-357,31.01.24,ADULT SOCIAL CARE,ABILITY HEALTHCARE CANNOCK LTD,11/01/2024,"2,016.00",6541-Domiciliary Care,THIRD PARTY PAYMENTS,PRIVATE CONTRACTOR,REVENUE
Walsall Council,http://opendatacommunities.org/id/metropolitan-district-council/walsall ,WC158-358,31.01.24,ADULT SOCIAL CARE,ABILITY HEALTHCARE CANNOCK LTD,11/01/2024,"1,242.00",6541-Domiciliary Care,THIRD PARTY PAYMENTS,PRIVATE CONTRACTOR,REVENUE
Walsall Council,http://opendatacommunities.org/id/metropolitan-district-council/walsall ,WC158-359,31.01.24,ADULT SOCIAL CARE,ABILITY HEALTHCARE CANNOCK LTD,11/01/2024,"1,752.00",6541-Domiciliary Care,THIRD PARTY PAYMENTS,PRIVATE CONTRACTOR,REVENUE
Walsall Council,http://opendatacommunities.org/id/metropolitan-district-council/walsall ,WC158-360,31.01.24,ADULT SOCIAL CARE,ABILITY HEALTHCARE CANNOCK LTD,11/01/2024,"2,016.00",6541-Domiciliary Care,THIRD PARTY PAYMENTS,PRIVATE CONTRACTOR,REVENUE
Walsall Council,http://opendatacommunities.org/id/metropolitan-district-council/walsall ,WC158-361,31.01.24,ADULT SOCIAL CARE,ABILITY HEALTHCARE CANNOCK LTD,11/01/2024,"2,412.00",6541-Domiciliary Care,THIRD PARTY PAYMENTS,PRIVATE CONTRACTOR,REVENUE
Walsall Council,http://opendatacommunities.org/id/metropolitan-district-council/walsall ,WC158-362,31.01.24,ADULT SOCIAL CARE,ABILITY HEALTHCARE CANNOCK LTD,11/01/2024,"2,268.00",6541-Domiciliary Care,THIRD PARTY PAYMENTS,PRIVATE CONTRACTOR,REVENUE
Walsall Council,http://opendatacommunities.org/id/metropolitan-district-council/walsall ,WC158-363,31.01.24,ADULT SOCIAL CARE,ABILITY HEALTHCARE CANNOCK LTD,11/01/2024,"2,016.00",6541-Domiciliary Care,THIRD PARTY PAYMENTS,PRIVATE CONTRACTOR,REVENUE
Walsall Council,http://opendatacommunities.org/id/metropolitan-district-council/walsall ,WC158-364,31.01.24,ADULT SOCIAL CARE,ABILITY HEALTHCARE CANNOCK LTD,11/01/2024,"1,134.00",6541-Domiciliary Care,THIRD PARTY PAYMENTS,PRIVATE CONTRACTOR,REVENUE
Walsall Council,http://opendatacommunities.org/id/metropolitan-district-council/walsall ,WC158-365,31.01.24,ADULT SOCIAL CARE,ABILITY HEALTHCARE CANNOCK LTD,11/01/2024,"3,828.00",6541-Domiciliary Care,THIRD PARTY PAYMENTS,PRIVATE CONTRACTOR,REVENUE
Walsall Council,http://opendatacommunities.org/id/metropolitan-district-council/walsall ,WC158-366,31.01.24,ADULT SOCIAL CARE,ABILITY HEALTHCARE CANNOCK LTD,11/01/2024,"2,016.00",6541-Domiciliary Care,THIRD PARTY PAYMENTS,PRIVATE CONTRACTOR,REVENUE
Walsall Council,http://opendatacommunities.org/id/metropolitan-district-council/walsall ,WC158-367,31.01.24,ADULT SOCIAL CARE,ABILITY HEALTHCARE CANNOCK LTD,11/01/2024,"3,528.00",6541-Domiciliary Care,THIRD PARTY PAYMENTS,PRIVATE CONTRACTOR,REVENUE
Walsall Council,http://opendatacommunities.org/id/metropolitan-district-council/walsall ,WC158-368,31.01.24,ADULT SOCIAL CARE,ABILITY HEALTHCARE CANNOCK LTD,11/01/2024,"2,268.00",6541-Domiciliary Care,THIRD PARTY PAYMENTS,PRIVATE CONTRACTOR,REVENUE
Walsall Council,http://opendatacommunities.org/id/metropolitan-district-council/walsall ,WC158-369,31.01.24,ADULT SOCIAL CARE,ABILITY HEALTHCARE CANNOCK LTD,11/01/2024,"2,016.00",6541-Domiciliary Care,THIRD PARTY PAYMENTS,PRIVATE CONTRACTOR,REVENUE
Walsall Council,http://opendatacommunities.org/id/metropolitan-district-council/walsall ,WC158-370,31.01.24,ADULT SOCIAL CARE,ABILITY HEALTHCARE CANNOCK LTD,11/01/2024,"1,008.00",6541-Domiciliary Care,THIRD PARTY PAYMENTS,PRIVATE CONTRACTOR,REVENUE
Walsall Council,http://opendatacommunities.org/id/metropolitan-district-council/walsall ,WC158-371,31.01.24,ADULT SOCIAL CARE,ABILITY HEALTHCARE CANNOCK LTD,11/01/2024,567.00,6541-Domiciliary Care,THIRD PARTY PAYMENTS,PRIVATE CONTRACTOR,REVENUE
Walsall Council,http://opendatacommunities.org/id/metropolitan-district-council/walsall ,WC158-372,31.01.24,ADULT SOCIAL CARE,ABILITY HEALTHCARE CANNOCK LTD,11/01/2024,"2,772.00",6541-Domiciliary Care,THIRD PARTY PAYMENTS,PRIVATE CONTRACTOR,REVENUE
Walsall Council,http://opendatacommunities.org/id/metropolitan-district-council/walsall ,WC158-373,31.01.24,ADULT SOCIAL CARE,ABILITY HEALTHCARE CANNOCK LTD,11/01/2024,"2,304.00",6541-Domiciliary Care,THIRD PARTY PAYMENTS,PRIVATE CONTRACTOR,REVENUE
Walsall Council,http://opendatacommunities.org/id/metropolitan-district-council/walsall ,WC158-374,31.01.24,ADULT SOCIAL CARE,ABILITY HEALTHCARE CANNOCK LTD,11/01/2024,"2,016.00",6541-Domiciliary Care,THIRD PARTY PAYMENTS,PRIVATE CONTRACTOR,REVENUE
Walsall Council,http://opendatacommunities.org/id/metropolitan-district-council/walsall ,WC158-375,31.01.24,ADULT SOCIAL CARE,ABILITY HEALTHCARE CANNOCK LTD,11/01/2024,"2,268.00",6541-Domiciliary Care,THIRD PARTY PAYMENTS,PRIVATE CONTRACTOR,REVENUE
Walsall Council,http://opendatacommunities.org/id/metropolitan-district-council/walsall ,WC158-376,31.01.24,ADULT SOCIAL CARE,ABILITY HEALTHCARE CANNOCK LTD,11/01/2024,"2,016.00",6541-Domiciliary Care,THIRD PARTY PAYMENTS,PRIVATE CONTRACTOR,REVENUE
Walsall Council,http://opendatacommunities.org/id/metropolitan-district-council/walsall ,WC158-377,31.01.24,ADULT SOCIAL CARE,ABILITY HEALTHCARE CANNOCK LTD,11/01/2024,"1,680.00",6541-Domiciliary Care,THIRD PARTY PAYMENTS,PRIVATE CONTRACTOR,REVENUE
Walsall Council,http://opendatacommunities.org/id/metropolitan-district-council/walsall ,WC158-378,31.01.24,ADULT SOCIAL CARE,ABILITY HEALTHCARE CANNOCK LTD,11/01/2024,369.00,6541-Domiciliary Care,THIRD PARTY PAYMENTS,PRIVATE CONTRACTOR,REVENUE
Walsall Council,http://opendatacommunities.org/id/metropolitan-district-council/walsall ,WC158-379,31.01.24,ADULT SOCIAL CARE,ABILITY HEALTHCARE CANNOCK LTD,11/01/2024,"2,268.00",6541-Domiciliary Care,THIRD PARTY PAYMENTS,PRIVATE CONTRACTOR,REVENUE
Walsall Council,http://opendatacommunities.org/id/metropolitan-district-council/walsall ,WC158-380,31.01.24,ADULT SOCIAL CARE,ABILITY HEALTHCARE CANNOCK LTD,11/01/2024,"2,214.00",6541-Domiciliary Care,THIRD PARTY PAYMENTS,PRIVATE CONTRACTOR,REVENUE
Walsall Council,http://opendatacommunities.org/id/metropolitan-district-council/walsall ,WC158-381,31.01.24,ADULT SOCIAL CARE,ABILITY HEALTHCARE CANNOCK LTD,11/01/2024,336.00,6541-Domiciliary Care,THIRD PARTY PAYMENTS,PRIVATE CONTRACTOR,REVENUE
Walsall Council,http://opendatacommunities.org/id/metropolitan-district-council/walsall ,WC158-382,31.01.24,ADULT SOCIAL CARE,ABILITY HEALTHCARE CANNOCK LTD,11/01/2024,"1,764.00",6541-Domiciliary Care,THIRD PARTY PAYMENTS,PRIVATE CONTRACTOR,REVENUE
Walsall Council,http://opendatacommunities.org/id/metropolitan-district-council/walsall ,WC158-383,31.01.24,ADULT SOCIAL CARE,ABILITY HEALTHCARE CANNOCK LTD,11/01/2024,"1,344.00",6541-Domiciliary Care,THIRD PARTY PAYMENTS,PRIVATE CONTRACTOR,REVENUE
Walsall Council,http://opendatacommunities.org/id/metropolitan-district-council/walsall ,WC158-384,31.01.24,ADULT SOCIAL CARE,ABILITY HEALTHCARE CANNOCK LTD,11/01/2024,"2,016.00",6541-Domiciliary Care,THIRD PARTY PAYMENTS,PRIVATE CONTRACTOR,REVENUE
Walsall Council,http://opendatacommunities.org/id/metropolitan-district-council/walsall ,WC158-385,31.01.24,ADULT SOCIAL CARE,ABILITY HEALTHCARE CANNOCK LTD,11/01/2024,468.00,6541-Domiciliary Care,THIRD PARTY PAYMENTS,PRIVATE CONTRACTOR,REVENUE
Walsall Council,http://opendatacommunities.org/id/metropolitan-district-council/walsall ,WC158-386,31.01.24,ADULT SOCIAL CARE,ABILITY HEALTHCARE CANNOCK LTD,11/01/2024,"1,680.00",6541-Domiciliary Care,THIRD PARTY PAYMENTS,PRIVATE CONTRACTOR,REVENUE
Walsall Council,http://opendatacommunities.org/id/metropolitan-district-council/walsall ,WC158-387,31.01.24,ADULT SOCIAL CARE,ABILITY HEALTHCARE CANNOCK LTD,11/01/2024,792.00,6541-Domiciliary Care,THIRD PARTY PAYMENTS,PRIVATE CONTRACTOR,REVENUE
Walsall Council,http://opendatacommunities.org/id/metropolitan-district-council/walsall ,WC158-388,31.01.24,ADULT SOCIAL CARE,ABILITY HEALTHCARE CANNOCK LTD,10/01/2024,891.00,6554-Professional Services-Priv Contractor & Other Agencies,THIRD PARTY PAYMENTS,PRIVATE CONTRACTOR,REVENUE
Walsall Council,http://opendatacommunities.org/id/metropolitan-district-council/walsall ,WC158-389,31.01.24,ADULT SOCIAL CARE,ABILITY HEALTHCARE CANNOCK LTD,10/01/2024,"1,539.00",6554-Professional Services-Priv Contractor & Other Agencies,THIRD PARTY PAYMENTS,PRIVATE CONTRACTOR,REVENUE
Walsall Council,http://opendatacommunities.org/id/metropolitan-district-council/walsall ,WC158-390,31.01.24,ADULT SOCIAL CARE,ABILITY HEALTHCARE CANNOCK LTD,10/01/2024,360.00,6554-Professional Services-Priv Contractor & Other Agencies,THIRD PARTY PAYMENTS,PRIVATE CONTRACTOR,REVENUE
Walsall Council,http://opendatacommunities.org/id/metropolitan-district-council/walsall ,WC158-391,31.01.24,ADULT SOCIAL CARE,ABILITY HEALTHCARE CANNOCK LTD,10/01/2024,"1,377.00",6554-Professional Services-Priv Contractor & Other Agencies,THIRD PARTY PAYMENTS,PRIVATE CONTRACTOR,REVENUE
Walsall Council,http://opendatacommunities.org/id/metropolitan-district-council/walsall ,WC158-392,31.01.24,CHILDRENS,ABLEWELL ADVICE SERVICES,30/01/2024,"5,000.00",6632-Grants to Other Orgs,SUPPLIES & SERVICES,GRANTS (EXP) & SUBSCRIPTIONS,REVENUE
Walsall Council,http://opendatacommunities.org/id/metropolitan-district-council/walsall ,WC158-393,31.01.24,CHILDRENS,ABLEWELL CARS,02/01/2024,"1,264.00",6241-Hire of Vehicle with Driver,TRANSPORT,DIRECT TRANSPORT COSTS,REVENUE
Walsall Council,http://opendatacommunities.org/id/metropolitan-district-council/walsall ,WC158-394,31.01.24,CHILDRENS,ABLEWELL CARS,02/01/2024,"1,683.20",6241-Hire of Vehicle with Driver,TRANSPORT,DIRECT TRANSPORT COSTS,REVENUE
Walsall Council,http://opendatacommunities.org/id/metropolitan-district-council/walsall ,WC158-395,31.01.24,CHILDRENS,ABLEWELL CARS,02/01/2024,"1,480.00",6241-Hire of Vehicle with Driver,TRANSPORT,DIRECT TRANSPORT COSTS,REVENUE
Walsall Council,http://opendatacommunities.org/id/metropolitan-district-council/walsall ,WC158-396,31.01.24,CHILDRENS,ABLEWELL CARS,02/01/2024,"2,850.00",6241-Hire of Vehicle with Driver,TRANSPORT,DIRECT TRANSPORT COSTS,REVENUE
Walsall Council,http://opendatacommunities.org/id/metropolitan-district-council/walsall ,WC158-397,31.01.24,CHILDRENS,ABLEWELL CARS,29/01/2024,"1,140.00",6241-Hire of Vehicle with Driver,TRANSPORT,DIRECT TRANSPORT COSTS,REVENUE
Walsall Council,http://opendatacommunities.org/id/metropolitan-district-council/walsall ,WC158-398,31.01.24,CHILDRENS,ABLEWELL CARS,29/01/2024,568.80,6241-Hire of Vehicle with Driver,TRANSPORT,DIRECT TRANSPORT COSTS,REVENUE
Walsall Council,http://opendatacommunities.org/id/metropolitan-district-council/walsall ,WC158-399,31.01.24,CHILDRENS,ABLEWELL CARS,29/01/2024,841.60,6241-Hire of Vehicle with Driver,TRANSPORT,DIRECT TRANSPORT COSTS,REVENUE
Walsall Council,http://opendatacommunities.org/id/metropolitan-district-council/walsall ,WC158-400,31.01.24,CHILDRENS,ABLEWELL CARS,29/01/2024,666.00,6241-Hire of Vehicle with Driver,TRANSPORT,DIRECT TRANSPORT COSTS,REVENUE
Walsall Council,http://opendatacommunities.org/id/metropolitan-district-council/walsall ,WC158-401,31.01.24,CHILDRENS,ABS TAXIS (ALDRIDGE),02/01/2024,"3,028.00",6241-Hire of Vehicle with Driver,TRANSPORT,DIRECT TRANSPORT COSTS,REVENUE
Walsall Council,http://opendatacommunities.org/id/metropolitan-district-council/walsall ,WC158-402,31.01.24,CHILDRENS,ABS TAXIS (ALDRIDGE),02/01/2024,"1,368.50",6241-Hire of Vehicle with Driver,TRANSPORT,DIRECT TRANSPORT COSTS,REVENUE
Walsall Council,http://opendatacommunities.org/id/metropolitan-district-council/walsall ,WC158-403,31.01.24,CHILDRENS,ABS TAXIS (ALDRIDGE),02/01/2024,"1,974.00",6241-Hire of Vehicle with Driver,TRANSPORT,DIRECT TRANSPORT COSTS,REVENUE
Walsall Council,http://opendatacommunities.org/id/metropolitan-district-council/walsall ,WC158-404,31.01.24,CHILDRENS,ABS TAXIS (ALDRIDGE),29/01/2024,987.00,6241-Hire of Vehicle with Driver,TRANSPORT,DIRECT TRANSPORT COSTS,REVENUE
Walsall Council,http://opendatacommunities.org/id/metropolitan-district-council/walsall ,WC158-405,31.01.24,CHILDRENS,ABS TAXIS (ALDRIDGE),29/01/2024,"1,514.00",6241-Hire of Vehicle with Driver,TRANSPORT,DIRECT TRANSPORT COSTS,REVENUE
Walsall Council,http://opendatacommunities.org/id/metropolitan-district-council/walsall ,WC158-406,31.01.24,CHILDRENS,ABS TAXIS (ALDRIDGE),29/01/2024,805.00,6241-Hire of Vehicle with Driver,TRANSPORT,DIRECT TRANSPORT COSTS,REVENUE
Walsall Council,http://opendatacommunities.org/id/metropolitan-district-council/walsall ,WC158-407,31.01.24,ADULT SOCIAL CARE,ABSOLUTE CARE HOMES (CENTRAL) LTD,11/01/2024,"5,419.26",6541-Nursing EMI,THIRD PARTY PAYMENTS,PRIVATE CONTRACTOR,REVENUE
Walsall Council,http://opendatacommunities.org/id/metropolitan-district-council/walsall ,WC158-408,31.01.24,ADULT SOCIAL CARE,ABSOLUTE CARE HOMES (CENTRAL) LTD,16/01/2024,"7,600.00",6541-Nursing EMI,THIRD PARTY PAYMENTS,PRIVATE CONTRACTOR,REVENUE
Walsall Council,http://opendatacommunities.org/id/metropolitan-district-council/walsall ,WC158-409,31.01.24,ADULT SOCIAL CARE,ABSOLUTE HEALTHCARE SWAN HOUSE LTD,16/01/2024,"2,413.36",6541-Residential EMI,THIRD PARTY PAYMENTS,PRIVATE CONTRACTOR,REVENUE
Walsall Council,http://opendatacommunities.org/id/metropolitan-district-council/walsall ,WC158-410,31.01.24,ADULT SOCIAL CARE,ABSOLUTE HEALTHCARE SWAN HOUSE LTD,16/01/2024,"5,240.48",6541-Nursing EMI,THIRD PARTY PAYMENTS,PRIVATE CONTRACTOR,REVENUE
Walsall Council,http://opendatacommunities.org/id/metropolitan-district-council/walsall ,WC158-411,31.01.24,ADULT SOCIAL CARE,ABSOLUTE HEALTHCARE SWAN HOUSE LTD,16/01/2024,"2,137.32",6541-Residential,THIRD PARTY PAYMENTS,PRIVATE CONTRACTOR,REVENUE
Walsall Council,http://opendatacommunities.org/id/metropolitan-district-council/walsall ,WC158-412,31.01.24,ADULT SOCIAL CARE,ABSOLUTE HEALTHCARE SWAN HOUSE LTD,16/01/2024,995.00,6554-Professional Services-Priv Contractor & Other Agencies,THIRD PARTY PAYMENTS,PRIVATE CONTRACTOR,REVENUE
Walsall Council,http://opendatacommunities.org/id/metropolitan-district-council/walsall ,WC158-413,31.01.24,ADULT SOCIAL CARE,ABSOLUTE HEALTHCARE SWAN HOUSE LTD,16/01/2024,"2,413.36",6541-Residential EMI,THIRD PARTY PAYMENTS,PRIVATE CONTRACTOR,REVENUE
Walsall Council,http://opendatacommunities.org/id/metropolitan-district-council/walsall ,WC158-414,31.01.24,ADULT SOCIAL CARE,ABSOLUTE HEALTHCARE SWAN HOUSE LTD,16/01/2024,"2,137.32",6541-Residential,THIRD PARTY PAYMENTS,PRIVATE CONTRACTOR,REVENUE
Walsall Council,http://opendatacommunities.org/id/metropolitan-district-council/walsall ,WC158-415,31.01.24,ADULT SOCIAL CARE,ABSOLUTE HEALTHCARE SWAN HOUSE LTD,16/01/2024,"2,137.32",6541-Residential,THIRD PARTY PAYMENTS,PRIVATE CONTRACTOR,REVENUE
Walsall Council,http://opendatacommunities.org/id/metropolitan-district-council/walsall ,WC158-416,31.01.24,ADULT SOCIAL CARE,ABSOLUTE HEALTHCARE SWAN HOUSE LTD,16/01/2024,"2,413.36",6541-Residential EMI,THIRD PARTY PAYMENTS,PRIVATE CONTRACTOR,REVENUE
Walsall Council,http://opendatacommunities.org/id/metropolitan-district-council/walsall ,WC158-417,31.01.24,ADULT SOCIAL CARE,ABSOLUTE HEALTHCARE SWAN HOUSE LTD,16/01/2024,"2,413.36",6541-Residential EMI,THIRD PARTY PAYMENTS,PRIVATE CONTRACTOR,REVENUE
Walsall Council,http://opendatacommunities.org/id/metropolitan-district-council/walsall ,WC158-418,31.01.24,ADULT SOCIAL CARE,ABSOLUTE HEALTHCARE SWAN HOUSE LTD,16/01/2024,"3,400.00",6541-Residential EMI,THIRD PARTY PAYMENTS,PRIVATE CONTRACTOR,REVENUE
Walsall Council,http://opendatacommunities.org/id/metropolitan-district-council/walsall ,WC158-419,31.01.24,ADULT SOCIAL CARE,ABSOLUTE HEALTHCARE SWAN HOUSE LTD,16/01/2024,"3,142.86",6554-Professional Services-Priv Contractor & Other Agencies,THIRD PARTY PAYMENTS,PRIVATE CONTRACTOR,REVENUE
Walsall Council,http://opendatacommunities.org/id/metropolitan-district-council/walsall ,WC158-420,31.01.24,ADULT SOCIAL CARE,ABSOLUTE HEALTHCARE SWAN HOUSE LTD,16/01/2024,"3,142.86",6554-Professional Services-Priv Contractor & Other Agencies,THIRD PARTY PAYMENTS,PRIVATE CONTRACTOR,REVENUE
Walsall Council,http://opendatacommunities.org/id/metropolitan-district-council/walsall ,WC158-421,31.01.24,ADULT SOCIAL CARE,ABSOLUTE HEALTHCARE SWAN HOUSE LTD,16/01/2024,"4,000.00",6541-Nursing EMI,THIRD PARTY PAYMENTS,PRIVATE CONTRACTOR,REVENUE
Walsall Council,http://opendatacommunities.org/id/metropolitan-district-council/walsall ,WC158-422,31.01.24,ADULT SOCIAL CARE,ABSOLUTE HEALTHCARE SWAN HOUSE LTD,16/01/2024,"4,800.00",6541-Residential,THIRD PARTY PAYMENTS,PRIVATE CONTRACTOR,REVENUE
Walsall Council,http://opendatacommunities.org/id/metropolitan-district-council/walsall ,WC158-423,31.01.24,ADULT SOCIAL CARE,ABSOLUTE HEALTHCARE SWAN HOUSE LTD,16/01/2024,471.43,6554-Professional Services-Priv Contractor & Other Agencies,THIRD PARTY PAYMENTS,PRIVATE CONTRACTOR,REVENUE
Walsall Council,http://opendatacommunities.org/id/metropolitan-district-council/walsall ,WC158-424,31.01.24,ADULT SOCIAL CARE,ABSOLUTE HEALTHCARE SWAN HOUSE LTD,16/01/2024,785.71,6554-Professional Services-Priv Contractor & Other Agencies,THIRD PARTY PAYMENTS,PRIVATE CONTRACTOR,REVENUE
Walsall Council,http://opendatacommunities.org/id/metropolitan-district-council/walsall ,WC158-425,31.01.24,ADULT SOCIAL CARE,ABSOLUTE HEALTHCARE SWAN HOUSE LTD,16/01/2024,"2,413.36",6541-Residential EMI,THIRD PARTY PAYMENTS,PRIVATE CONTRACTOR,REVENUE
Walsall Council,http://opendatacommunities.org/id/metropolitan-district-council/walsall ,WC158-426,31.01.24,ADULT SOCIAL CARE,ABSOLUTE HEALTHCARE SWAN HOUSE LTD,16/01/2024,"2,277.32",6541-Residential,THIRD PARTY PAYMENTS,PRIVATE CONTRACTOR,REVENUE
Walsall Council,http://opendatacommunities.org/id/metropolitan-district-council/walsall ,WC158-427,31.01.24,ADULT SOCIAL CARE,ABSOLUTE HEALTHCARE SWAN HOUSE LTD,16/01/2024,"2,137.32",6541-Residential,THIRD PARTY PAYMENTS,PRIVATE CONTRACTOR,REVENUE
Walsall Council,http://opendatacommunities.org/id/metropolitan-district-council/walsall ,WC158-428,31.01.24,ADULT SOCIAL CARE,ABSOLUTE HEALTHCARE SWAN HOUSE LTD,16/01/2024,"3,048.96",6541-Nursing,THIRD PARTY PAYMENTS,PRIVATE CONTRACTOR,REVENUE
Walsall Council,http://opendatacommunities.org/id/metropolitan-district-council/walsall ,WC158-429,31.01.24,ADULT SOCIAL CARE,ABSOLUTE HEALTHCARE SWAN HOUSE LTD,16/01/2024,"3,336.92",6541-Nursing EMI,THIRD PARTY PAYMENTS,PRIVATE CONTRACTOR,REVENUE
Walsall Council,http://opendatacommunities.org/id/metropolitan-district-council/walsall ,WC158-430,31.01.24,ADULT SOCIAL CARE,ABSOLUTE HEALTHCARE SWAN HOUSE LTD,16/01/2024,"3,600.00",6541-Residential,THIRD PARTY PAYMENTS,PRIVATE CONTRACTOR,REVENUE
Walsall Council,http://opendatacommunities.org/id/metropolitan-district-council/walsall ,WC158-431,31.01.24,ADULT SOCIAL CARE,ABSOLUTE HEALTHCARE SWAN HOUSE LTD,16/01/2024,"4,056.00",6541-Residential,THIRD PARTY PAYMENTS,PRIVATE CONTRACTOR,REVENUE
Walsall Council,http://opendatacommunities.org/id/metropolitan-district-council/walsall ,WC158-432,31.01.24,ADULT SOCIAL CARE,ABSOLUTE HEALTHCARE SWAN HOUSE LTD,25/01/2024,"2,753.37",6541-Residential,THIRD PARTY PAYMENTS,PRIVATE CONTRACTOR,REVENUE
Walsall Council,http://opendatacommunities.org/id/metropolitan-district-council/walsall ,WC158-433,31.01.24,ADULT SOCIAL CARE,ABSOLUTE HEALTHCARE SWAN HOUSE LTD,25/01/2024,"2,753.37",6541-Residential EMI,THIRD PARTY PAYMENTS,PRIVATE CONTRACTOR,REVENUE
Walsall Council,http://opendatacommunities.org/id/metropolitan-district-council/walsall ,WC158-434,31.01.24,ADULT SOCIAL CARE,ABSOLUTE HEALTHCARE SWAN HOUSE LTD,25/01/2024,"1,752.83",6541-Nursing,THIRD PARTY PAYMENTS,PRIVATE CONTRACTOR,REVENUE
Walsall Council,http://opendatacommunities.org/id/metropolitan-district-council/walsall ,WC158-435,31.01.24,ADULT SOCIAL CARE,ABSOLUTE HEALTHCARE SWAN HOUSE LTD,25/01/2024,"1,376.68",6541-Nursing EMI,THIRD PARTY PAYMENTS,PRIVATE CONTRACTOR,REVENUE
Walsall Council,http://opendatacommunities.org/id/metropolitan-district-council/walsall ,WC158-436,31.01.24,CHILDRENS,ABU BAKR NURSERY,16/01/2024,"6,818.63",1184-Other-Grants to Other Orgs,SUPPLIES & SERVICES,GRANTS (EXP) & SUBSCRIPTIONS,REVENUE
Walsall Council,http://opendatacommunities.org/id/metropolitan-district-council/walsall ,WC158-437,31.01.24,CHILDRENS,ABU BAKR NURSERY,31/01/2024,"4,318.46",1184-Other-Grants to Other Orgs,SUPPLIES & SERVICES,GRANTS (EXP) & SUBSCRIPTIONS,REVENUE
Walsall Council,http://opendatacommunities.org/id/metropolitan-district-council/walsall ,WC158-438,31.01.24,CHILDRENS,ABU BAKR NURSERY,16/01/2024,"15,855.75",1184-Other-Grants to Other Orgs,SUPPLIES & SERVICES,GRANTS (EXP) & SUBSCRIPTIONS,REVENUE
Walsall Council,http://opendatacommunities.org/id/metropolitan-district-council/walsall ,WC158-439,31.01.24,CHILDRENS,ABU BAKR NURSERY,31/01/2024,"13,832.77",1184-Other-Grants to Other Orgs,SUPPLIES & SERVICES,GRANTS (EXP) & SUBSCRIPTIONS,REVENUE
Walsall Council,http://opendatacommunities.org/id/metropolitan-district-council/walsall ,WC158-440,31.01.24,CHILDRENS,ACADEMY 21 LTD,12/01/2024,468.00,1217-Professional Fees & Services,SUPPLIES & SERVICES,SERVICES,REVENUE
Walsall Council,http://opendatacommunities.org/id/metropolitan-district-council/walsall ,WC158-441,31.01.24,CHILDRENS,ACCALIA CARE SERVICES LTD,23/01/2024,"21,160.00",6223-External Residential Care-Oth Agency Provision,THIRD PARTY PAYMENTS,PRIVATE CONTRACTOR,REVENUE
Walsall Council,http://opendatacommunities.org/id/metropolitan-district-council/walsall ,WC158-442,31.01.24,CHILDRENS,ACCEPTING BEHAVIOUR LTD,03/01/2024,747.50,1220-Professional Fees & Services,SUPPLIES & SERVICES,SERVICES,REVENUE
Walsall Council,http://opendatacommunities.org/id/metropolitan-district-council/walsall ,WC158-443,31.01.24,ADULT SOCIAL CARE,ACCESS UK LTD ,04/01/2024,"18,315.00",6551-Professional Fees & Services,SUPPLIES & SERVICES,SERVICES,REVENUE
Walsall Council,http://opendatacommunities.org/id/metropolitan-district-council/walsall ,WC158-444,31.01.24,ADULT SOCIAL CARE,ACCORD - AGE MATTERS,03/01/2024,304.00,6553-Direct Payments Support,TRANSFER PAYMENTS,ADULT SOCIAL SERVICES CLIENT,REVENUE
Walsall Council,http://opendatacommunities.org/id/metropolitan-district-council/walsall ,WC158-445,31.01.24,ADULT SOCIAL CARE,ACCORD HOUSING ASSOCIATION LIMITED - HOBS MEADOW,16/01/2024,"4,776.84",6541-Residential,THIRD PARTY PAYMENTS,PRIVATE CONTRACTOR,REVENUE
Walsall Council,http://opendatacommunities.org/id/metropolitan-district-council/walsall ,WC158-446,31.01.24,ADULT SOCIAL CARE,ACCORD HOUSING ASSOCIATION LIMITED - HOBS MEADOW,16/01/2024,511.80,6541-Residential,THIRD PARTY PAYMENTS,PRIVATE CONTRACTOR,REVENUE
Walsall Council,http://opendatacommunities.org/id/metropolitan-district-council/walsall ,WC158-447,31.01.24,ADULT SOCIAL CARE,ACCORD HOUSING ASSOCIATION LIMITED - HOBS MEADOW,16/01/2024,"4,776.84",6541-Residential,THIRD PARTY PAYMENTS,PRIVATE CONTRACTOR,REVENUE
Walsall Council,http://opendatacommunities.org/id/metropolitan-district-council/walsall ,WC158-448,31.01.24,ADULT SOCIAL CARE,ACCORD HOUSING ASSOCIATION LIMITED - HOBS MEADOW,16/01/2024,"4,776.84",6541-Residential,THIRD PARTY PAYMENTS,PRIVATE CONTRACTOR,REVENUE
Walsall Council,http://opendatacommunities.org/id/metropolitan-district-council/walsall ,WC158-449,31.01.24,CHILDRENS,ACE CARS & MINIBUSES LTD,02/01/2024,"2,140.00",6241-Hire of Vehicle with Driver,TRANSPORT,DIRECT TRANSPORT COSTS,REVENUE
Walsall Council,http://opendatacommunities.org/id/metropolitan-district-council/walsall ,WC158-450,31.01.24,CHILDRENS,ACE CARS & MINIBUSES LTD,02/01/2024,"2,140.00",6241-Hire of Vehicle with Driver,TRANSPORT,DIRECT TRANSPORT COSTS,REVENUE
Walsall Council,http://opendatacommunities.org/id/metropolitan-district-council/walsall ,WC158-451,31.01.24,CHILDRENS,ACE CARS & MINIBUSES LTD,02/01/2024,"2,360.00",6241-Hire of Vehicle with Driver,TRANSPORT,DIRECT TRANSPORT COSTS,REVENUE
Walsall Council,http://opendatacommunities.org/id/metropolitan-district-council/walsall ,WC158-452,31.01.24,CHILDRENS,ACE CARS & MINIBUSES LTD,02/01/2024,"3,224.11",6241-Hire of Vehicle with Driver,TRANSPORT,DIRECT TRANSPORT COSTS,REVENUE
Walsall Council,http://opendatacommunities.org/id/metropolitan-district-council/walsall ,WC158-453,31.01.24,CHILDRENS,ACE CARS & MINIBUSES LTD,02/01/2024,"2,360.00",6241-Hire of Vehicle with Driver,TRANSPORT,DIRECT TRANSPORT COSTS,REVENUE
Walsall Council,http://opendatacommunities.org/id/metropolitan-district-council/walsall ,WC158-454,31.01.24,CHILDRENS,ACE CARS & MINIBUSES LTD,02/01/2024,"2,690.40",6241-Hire of Vehicle with Driver,TRANSPORT,DIRECT TRANSPORT COSTS,REVENUE
Walsall Council,http://opendatacommunities.org/id/metropolitan-district-council/walsall ,WC158-455,31.01.24,CHILDRENS,ACE CARS & MINIBUSES LTD,02/01/2024,"2,501.60",6241-Hire of Vehicle with Driver,TRANSPORT,DIRECT TRANSPORT COSTS,REVENUE
Walsall Council,http://opendatacommunities.org/id/metropolitan-district-council/walsall ,WC158-456,31.01.24,CHILDRENS,ACE CARS & MINIBUSES LTD,02/01/2024,"2,280.00",6241-Hire of Vehicle with Driver,TRANSPORT,DIRECT TRANSPORT COSTS,REVENUE
Walsall Council,http://opendatacommunities.org/id/metropolitan-district-council/walsall ,WC158-457,31.01.24,CHILDRENS,ACE CARS & MINIBUSES LTD,02/01/2024,"2,360.00",6241-Hire of Vehicle with Driver,TRANSPORT,DIRECT TRANSPORT COSTS,REVENUE
Walsall Council,http://opendatacommunities.org/id/metropolitan-district-council/walsall ,WC158-458,31.01.24,CHILDRENS,ACE CARS & MINIBUSES LTD,02/01/2024,"3,783.80",6241-Hire of Vehicle with Driver,TRANSPORT,DIRECT TRANSPORT COSTS,REVENUE
Walsall Council,http://opendatacommunities.org/id/metropolitan-district-council/walsall ,WC158-459,31.01.24,CHILDRENS,ACE CARS & MINIBUSES LTD,02/01/2024,"2,722.00",6241-Hire of Vehicle with Driver,TRANSPORT,DIRECT TRANSPORT COSTS,REVENUE
Walsall Council,http://opendatacommunities.org/id/metropolitan-district-council/walsall ,WC158-460,31.01.24,CHILDRENS,ACE CARS & MINIBUSES LTD,02/01/2024,"3,075.80",6241-Hire of Vehicle with Driver,TRANSPORT,DIRECT TRANSPORT COSTS,REVENUE
Walsall Council,http://opendatacommunities.org/id/metropolitan-district-council/walsall ,WC158-461,31.01.24,CHILDRENS,ACE CARS & MINIBUSES LTD,02/01/2024,"3,115.20",6241-Hire of Vehicle with Driver,TRANSPORT,DIRECT TRANSPORT COSTS,REVENUE
Walsall Council,http://opendatacommunities.org/id/metropolitan-district-council/walsall ,WC158-462,31.01.24,CHILDRENS,ACE CARS & MINIBUSES LTD,02/01/2024,"2,166.00",6241-Hire of Vehicle with Driver,TRANSPORT,DIRECT TRANSPORT COSTS,REVENUE
Walsall Council,http://opendatacommunities.org/id/metropolitan-district-council/walsall ,WC158-463,31.01.24,CHILDRENS,ACE CARS & MINIBUSES LTD,02/01/2024,"2,166.00",6241-Hire of Vehicle with Driver,TRANSPORT,DIRECT TRANSPORT COSTS,REVENUE
Walsall Council,http://opendatacommunities.org/id/metropolitan-district-council/walsall ,WC158-464,31.01.24,CHILDRENS,ACE CARS & MINIBUSES LTD,02/01/2024,"2,140.00",6241-Hire of Vehicle with Driver,TRANSPORT,DIRECT TRANSPORT COSTS,REVENUE
Walsall Council,http://opendatacommunities.org/id/metropolitan-district-council/walsall ,WC158-465,31.01.24,CHILDRENS,ACE CARS & MINIBUSES LTD,02/01/2024,"2,140.00",6241-Hire of Vehicle with Driver,TRANSPORT,DIRECT TRANSPORT COSTS,REVENUE
Walsall Council,http://opendatacommunities.org/id/metropolitan-district-council/walsall ,WC158-466,31.01.24,CHILDRENS,ACE CARS & MINIBUSES LTD,02/01/2024,"2,140.00",6241-Hire of Vehicle with Driver,TRANSPORT,DIRECT TRANSPORT COSTS,REVENUE
Walsall Council,http://opendatacommunities.org/id/metropolitan-district-council/walsall ,WC158-467,31.01.24,CHILDRENS,ACE CARS & MINIBUSES LTD,02/01/2024,"2,140.00",6241-Hire of Vehicle with Driver,TRANSPORT,DIRECT TRANSPORT COSTS,REVENUE
Walsall Council,http://opendatacommunities.org/id/metropolitan-district-council/walsall ,WC158-468,31.01.24,CHILDRENS,ACE CARS & MINIBUSES LTD,02/01/2024,"2,140.00",6241-Hire of Vehicle with Driver,TRANSPORT,DIRECT TRANSPORT COSTS,REVENUE
Walsall Council,http://opendatacommunities.org/id/metropolitan-district-council/walsall ,WC158-469,31.01.24,CHILDRENS,ACE CARS & MINIBUSES LTD,02/01/2024,"2,360.00",6241-Hire of Vehicle with Driver,TRANSPORT,DIRECT TRANSPORT COSTS,REVENUE
Walsall Council,http://opendatacommunities.org/id/metropolitan-district-council/walsall ,WC158-470,31.01.24,CHILDRENS,ACE CARS & MINIBUSES LTD,02/01/2024,"3,170.00",6241-Hire of Vehicle with Driver,TRANSPORT,DIRECT TRANSPORT COSTS,REVENUE
Walsall Council,http://opendatacommunities.org/id/metropolitan-district-council/walsall ,WC158-471,31.01.24,CHILDRENS,ACE CARS & MINIBUSES LTD,02/01/2024,"3,390.00",6241-Hire of Vehicle with Driver,TRANSPORT,DIRECT TRANSPORT COSTS,REVENUE
Walsall Council,http://opendatacommunities.org/id/metropolitan-district-council/walsall ,WC158-472,31.01.24,CHILDRENS,ACE CARS & MINIBUSES LTD,02/01/2024,"2,270.50",6241-Hire of Vehicle with Driver,TRANSPORT,DIRECT TRANSPORT COSTS,REVENUE
Walsall Council,http://opendatacommunities.org/id/metropolitan-district-council/walsall ,WC158-473,31.01.24,CHILDRENS,ACE CARS & MINIBUSES LTD,02/01/2024,"2,497.55",6241-Hire of Vehicle with Driver,TRANSPORT,DIRECT TRANSPORT COSTS,REVENUE
Walsall Council,http://opendatacommunities.org/id/metropolitan-district-council/walsall ,WC158-474,31.01.24,CHILDRENS,ACE CARS & MINIBUSES LTD,02/01/2024,"2,722.00",6241-Hire of Vehicle with Driver,TRANSPORT,DIRECT TRANSPORT COSTS,REVENUE
Walsall Council,http://opendatacommunities.org/id/metropolitan-district-council/walsall ,WC158-475,31.01.24,CHILDRENS,ACE CARS & MINIBUSES LTD,02/01/2024,"2,722.00",6241-Hire of Vehicle with Driver,TRANSPORT,DIRECT TRANSPORT COSTS,REVENUE
Walsall Council,http://opendatacommunities.org/id/metropolitan-district-council/walsall ,WC158-476,31.01.24,CHILDRENS,ACE CARS & MINIBUSES LTD,02/01/2024,"2,270.50",6241-Hire of Vehicle with Driver,TRANSPORT,DIRECT TRANSPORT COSTS,REVENUE
Walsall Council,http://opendatacommunities.org/id/metropolitan-district-council/walsall ,WC158-477,31.01.24,CHILDRENS,ACE CARS & MINIBUSES LTD,02/01/2024,"2,270.50",6241-Hire of Vehicle with Driver,TRANSPORT,DIRECT TRANSPORT COSTS,REVENUE
Walsall Council,http://opendatacommunities.org/id/metropolitan-district-council/walsall ,WC158-478,31.01.24,CHILDRENS,ACE CARS & MINIBUSES LTD,02/01/2024,"2,166.00",6241-Hire of Vehicle with Driver,TRANSPORT,DIRECT TRANSPORT COSTS,REVENUE
Walsall Council,http://opendatacommunities.org/id/metropolitan-district-council/walsall ,WC158-479,31.01.24,CHILDRENS,ACE CARS & MINIBUSES LTD,02/01/2024,"2,140.00",6241-Hire of Vehicle with Driver,TRANSPORT,DIRECT TRANSPORT COSTS,REVENUE
Walsall Council,http://opendatacommunities.org/id/metropolitan-district-council/walsall ,WC158-480,31.01.24,CHILDRENS,ACE CARS & MINIBUSES LTD,02/01/2024,"4,248.00",6241-Hire of Vehicle with Driver,TRANSPORT,DIRECT TRANSPORT COSTS,REVENUE
Walsall Council,http://opendatacommunities.org/id/metropolitan-district-council/walsall ,WC158-481,31.01.24,CHILDRENS,ACE CARS & MINIBUSES LTD,02/01/2024,"2,140.00",6241-Hire of Vehicle with Driver,TRANSPORT,DIRECT TRANSPORT COSTS,REVENUE
Walsall Council,http://opendatacommunities.org/id/metropolitan-district-council/walsall ,WC158-482,31.01.24,CHILDRENS,ACE CARS & MINIBUSES LTD,02/01/2024,"2,140.00",6241-Hire of Vehicle with Driver,TRANSPORT,DIRECT TRANSPORT COSTS,REVENUE
Walsall Council,http://opendatacommunities.org/id/metropolitan-district-council/walsall ,WC158-483,31.01.24,CHILDRENS,ACE CARS & MINIBUSES LTD,02/01/2024,"2,140.00",6241-Hire of Vehicle with Driver,TRANSPORT,DIRECT TRANSPORT COSTS,REVENUE
Walsall Council,http://opendatacommunities.org/id/metropolitan-district-council/walsall ,WC158-484,31.01.24,CHILDRENS,ACE CARS & MINIBUSES LTD,02/01/2024,"2,360.00",6241-Hire of Vehicle with Driver,TRANSPORT,DIRECT TRANSPORT COSTS,REVENUE
Walsall Council,http://opendatacommunities.org/id/metropolitan-district-council/walsall ,WC158-485,31.01.24,CHILDRENS,ACE CARS & MINIBUSES LTD,02/01/2024,"2,722.00",6241-Hire of Vehicle with Driver,TRANSPORT,DIRECT TRANSPORT COSTS,REVENUE
Walsall Council,http://opendatacommunities.org/id/metropolitan-district-council/walsall ,WC158-486,31.01.24,CHILDRENS,ACE CARS & MINIBUSES LTD,02/01/2024,"2,722.00",6241-Hire of Vehicle with Driver,TRANSPORT,DIRECT TRANSPORT COSTS,REVENUE
Walsall Council,http://opendatacommunities.org/id/metropolitan-district-council/walsall ,WC158-487,31.01.24,CHILDRENS,ACE CARS & MINIBUSES LTD,02/01/2024,"2,722.00",6241-Hire of Vehicle with Driver,TRANSPORT,DIRECT TRANSPORT COSTS,REVENUE
Walsall Council,http://opendatacommunities.org/id/metropolitan-district-council/walsall ,WC158-488,31.01.24,CHILDRENS,ACE CARS & MINIBUSES LTD,02/01/2024,"3,655.60",6241-Hire of Vehicle with Driver,TRANSPORT,DIRECT TRANSPORT COSTS,REVENUE
Walsall Council,http://opendatacommunities.org/id/metropolitan-district-council/walsall ,WC158-489,31.01.24,CHILDRENS,ACE CARS & MINIBUSES LTD,29/01/2024,"1,180.00",6241-Hire of Vehicle with Driver,TRANSPORT,DIRECT TRANSPORT COSTS,REVENUE
Walsall Council,http://opendatacommunities.org/id/metropolitan-district-council/walsall ,WC158-490,31.01.24,CHILDRENS,ACE CARS & MINIBUSES LTD,29/01/2024,"1,345.20",6241-Hire of Vehicle with Driver,TRANSPORT,DIRECT TRANSPORT COSTS,REVENUE
Walsall Council,http://opendatacommunities.org/id/metropolitan-district-council/walsall ,WC158-491,31.01.24,CHILDRENS,ACE CARS & MINIBUSES LTD,29/01/2024,"1,250.80",6241-Hire of Vehicle with Driver,TRANSPORT,DIRECT TRANSPORT COSTS,REVENUE
Walsall Council,http://opendatacommunities.org/id/metropolitan-district-council/walsall ,WC158-492,31.01.24,CHILDRENS,ACE CARS & MINIBUSES LTD,29/01/2024,"1,140.00",6241-Hire of Vehicle with Driver,TRANSPORT,DIRECT TRANSPORT COSTS,REVENUE
Walsall Council,http://opendatacommunities.org/id/metropolitan-district-council/walsall ,WC158-493,31.01.24,CHILDRENS,ACE CARS & MINIBUSES LTD,29/01/2024,"1,180.00",6241-Hire of Vehicle with Driver,TRANSPORT,DIRECT TRANSPORT COSTS,REVENUE
Walsall Council,http://opendatacommunities.org/id/metropolitan-district-council/walsall ,WC158-494,31.01.24,CHILDRENS,ACE CARS & MINIBUSES LTD,29/01/2024,"1,891.90",6241-Hire of Vehicle with Driver,TRANSPORT,DIRECT TRANSPORT COSTS,REVENUE
Walsall Council,http://opendatacommunities.org/id/metropolitan-district-council/walsall ,WC158-495,31.01.24,CHILDRENS,ACE CARS & MINIBUSES LTD,29/01/2024,"1,361.00",6241-Hire of Vehicle with Driver,TRANSPORT,DIRECT TRANSPORT COSTS,REVENUE
Walsall Council,http://opendatacommunities.org/id/metropolitan-district-council/walsall ,WC158-496,31.01.24,CHILDRENS,ACE CARS & MINIBUSES LTD,29/01/2024,"1,537.90",6241-Hire of Vehicle with Driver,TRANSPORT,DIRECT TRANSPORT COSTS,REVENUE
Walsall Council,http://opendatacommunities.org/id/metropolitan-district-council/walsall ,WC158-497,31.01.24,CHILDRENS,ACE CARS & MINIBUSES LTD,29/01/2024,"1,557.60",6241-Hire of Vehicle with Driver,TRANSPORT,DIRECT TRANSPORT COSTS,REVENUE
Walsall Council,http://opendatacommunities.org/id/metropolitan-district-council/walsall ,WC158-498,31.01.24,CHILDRENS,ACE CARS & MINIBUSES LTD,29/01/2024,"1,140.00",6241-Hire of Vehicle with Driver,TRANSPORT,DIRECT TRANSPORT COSTS,REVENUE
Walsall Council,http://opendatacommunities.org/id/metropolitan-district-council/walsall ,WC158-499,31.01.24,CHILDRENS,ACE CARS & MINIBUSES LTD,29/01/2024,"1,140.00",6241-Hire of Vehicle with Driver,TRANSPORT,DIRECT TRANSPORT COSTS,REVENUE
Walsall Council,http://opendatacommunities.org/id/metropolitan-district-council/walsall ,WC158-500,31.01.24,CHILDRENS,ACE CARS & MINIBUSES LTD,29/01/2024,"1,195.00",6241-Hire of Vehicle with Driver,TRANSPORT,DIRECT TRANSPORT COSTS,REVENUE
Walsall Council,http://opendatacommunities.org/id/metropolitan-district-council/walsall ,WC158-501,31.01.24,CHILDRENS,ACE CARS & MINIBUSES LTD,29/01/2024,"1,070.00",6241-Hire of Vehicle with Driver,TRANSPORT,DIRECT TRANSPORT COSTS,REVENUE
Walsall Council,http://opendatacommunities.org/id/metropolitan-district-council/walsall ,WC158-502,31.01.24,CHILDRENS,ACE CARS & MINIBUSES LTD,29/01/2024,"2,124.00",6241-Hire of Vehicle with Driver,TRANSPORT,DIRECT TRANSPORT COSTS,REVENUE
Walsall Council,http://opendatacommunities.org/id/metropolitan-district-council/walsall ,WC158-503,31.01.24,CHILDRENS,ACE CARS & MINIBUSES LTD,29/01/2024,"1,070.00",6241-Hire of Vehicle with Driver,TRANSPORT,DIRECT TRANSPORT COSTS,REVENUE
Walsall Council,http://opendatacommunities.org/id/metropolitan-district-council/walsall ,WC158-504,31.01.24,CHILDRENS,ACE CARS & MINIBUSES LTD,29/01/2024,"1,070.00",6241-Hire of Vehicle with Driver,TRANSPORT,DIRECT TRANSPORT COSTS,REVENUE
Walsall Council,http://opendatacommunities.org/id/metropolitan-district-council/walsall ,WC158-505,31.01.24,CHILDRENS,ACE CARS & MINIBUSES LTD,29/01/2024,"1,070.00",6241-Hire of Vehicle with Driver,TRANSPORT,DIRECT TRANSPORT COSTS,REVENUE
Walsall Council,http://opendatacommunities.org/id/metropolitan-district-council/walsall ,WC158-506,31.01.24,CHILDRENS,ACE CARS & MINIBUSES LTD,29/01/2024,"1,180.00",6241-Hire of Vehicle with Driver,TRANSPORT,DIRECT TRANSPORT COSTS,REVENUE
Walsall Council,http://opendatacommunities.org/id/metropolitan-district-council/walsall ,WC158-507,31.01.24,CHILDRENS,ACE CARS & MINIBUSES LTD,29/01/2024,"1,361.00",6241-Hire of Vehicle with Driver,TRANSPORT,DIRECT TRANSPORT COSTS,REVENUE
Walsall Council,http://opendatacommunities.org/id/metropolitan-district-council/walsall ,WC158-508,31.01.24,CHILDRENS,ACE CARS & MINIBUSES LTD,29/01/2024,"1,361.00",6241-Hire of Vehicle with Driver,TRANSPORT,DIRECT TRANSPORT COSTS,REVENUE
Walsall Council,http://opendatacommunities.org/id/metropolitan-district-council/walsall ,WC158-509,31.01.24,CHILDRENS,ACE CARS & MINIBUSES LTD,29/01/2024,"1,361.00",6241-Hire of Vehicle with Driver,TRANSPORT,DIRECT TRANSPORT COSTS,REVENUE
Walsall Council,http://opendatacommunities.org/id/metropolitan-district-council/walsall ,WC158-510,31.01.24,CHILDRENS,ACE CARS & MINIBUSES LTD,29/01/2024,"1,924.00",6241-Hire of Vehicle with Driver,TRANSPORT,DIRECT TRANSPORT COSTS,REVENUE
Walsall Council,http://opendatacommunities.org/id/metropolitan-district-council/walsall ,WC158-511,31.01.24,CHILDRENS,ACE CARS & MINIBUSES LTD,29/01/2024,"1,070.00",6241-Hire of Vehicle with Driver,TRANSPORT,DIRECT TRANSPORT COSTS,REVENUE
Walsall Council,http://opendatacommunities.org/id/metropolitan-district-council/walsall ,WC158-512,31.01.24,CHILDRENS,ACE CARS & MINIBUSES LTD,29/01/2024,"1,070.00",6241-Hire of Vehicle with Driver,TRANSPORT,DIRECT TRANSPORT COSTS,REVENUE
Walsall Council,http://opendatacommunities.org/id/metropolitan-district-council/walsall ,WC158-513,31.01.24,CHILDRENS,ACE CARS & MINIBUSES LTD,29/01/2024,"1,180.00",6241-Hire of Vehicle with Driver,TRANSPORT,DIRECT TRANSPORT COSTS,REVENUE
Walsall Council,http://opendatacommunities.org/id/metropolitan-district-council/walsall ,WC158-514,31.01.24,CHILDRENS,ACE CARS & MINIBUSES LTD,29/01/2024,"1,696.90",6241-Hire of Vehicle with Driver,TRANSPORT,DIRECT TRANSPORT COSTS,REVENUE
Walsall Council,http://opendatacommunities.org/id/metropolitan-district-council/walsall ,WC158-515,31.01.24,CHILDRENS,ACE CARS & MINIBUSES LTD,29/01/2024,"1,070.00",6241-Hire of Vehicle with Driver,TRANSPORT,DIRECT TRANSPORT COSTS,REVENUE
Walsall Council,http://opendatacommunities.org/id/metropolitan-district-council/walsall ,WC158-516,31.01.24,CHILDRENS,ACE CARS & MINIBUSES LTD,29/01/2024,"1,070.00",6241-Hire of Vehicle with Driver,TRANSPORT,DIRECT TRANSPORT COSTS,REVENUE
Walsall Council,http://opendatacommunities.org/id/metropolitan-district-council/walsall ,WC158-517,31.01.24,CHILDRENS,ACE CARS & MINIBUSES LTD,29/01/2024,"1,070.00",6241-Hire of Vehicle with Driver,TRANSPORT,DIRECT TRANSPORT COSTS,REVENUE
Walsall Council,http://opendatacommunities.org/id/metropolitan-district-council/walsall ,WC158-518,31.01.24,CHILDRENS,ACE CARS & MINIBUSES LTD,29/01/2024,"1,070.00",6241-Hire of Vehicle with Driver,TRANSPORT,DIRECT TRANSPORT COSTS,REVENUE
Walsall Council,http://opendatacommunities.org/id/metropolitan-district-council/walsall ,WC158-519,31.01.24,CHILDRENS,ACE CARS & MINIBUSES LTD,29/01/2024,"1,070.00",6241-Hire of Vehicle with Driver,TRANSPORT,DIRECT TRANSPORT COSTS,REVENUE
Walsall Council,http://opendatacommunities.org/id/metropolitan-district-council/walsall ,WC158-520,31.01.24,CHILDRENS,ACE CARS & MINIBUSES LTD,29/01/2024,"1,180.00",6241-Hire of Vehicle with Driver,TRANSPORT,DIRECT TRANSPORT COSTS,REVENUE
Walsall Council,http://opendatacommunities.org/id/metropolitan-district-council/walsall ,WC158-521,31.01.24,CHILDRENS,ACE CARS & MINIBUSES LTD,29/01/2024,"1,585.00",6241-Hire of Vehicle with Driver,TRANSPORT,DIRECT TRANSPORT COSTS,REVENUE
Walsall Council,http://opendatacommunities.org/id/metropolitan-district-council/walsall ,WC158-522,31.01.24,CHILDRENS,ACE CARS & MINIBUSES LTD,29/01/2024,"1,695.00",6241-Hire of Vehicle with Driver,TRANSPORT,DIRECT TRANSPORT COSTS,REVENUE
Walsall Council,http://opendatacommunities.org/id/metropolitan-district-council/walsall ,WC158-523,31.01.24,CHILDRENS,ACE CARS & MINIBUSES LTD,29/01/2024,"1,195.00",6241-Hire of Vehicle with Driver,TRANSPORT,DIRECT TRANSPORT COSTS,REVENUE
Walsall Council,http://opendatacommunities.org/id/metropolitan-district-council/walsall ,WC158-524,31.01.24,CHILDRENS,ACE CARS & MINIBUSES LTD,29/01/2024,"1,314.50",6241-Hire of Vehicle with Driver,TRANSPORT,DIRECT TRANSPORT COSTS,REVENUE
Walsall Council,http://opendatacommunities.org/id/metropolitan-district-council/walsall ,WC158-525,31.01.24,CHILDRENS,ACE CARS & MINIBUSES LTD,29/01/2024,"1,361.00",6241-Hire of Vehicle with Driver,TRANSPORT,DIRECT TRANSPORT COSTS,REVENUE
Walsall Council,http://opendatacommunities.org/id/metropolitan-district-council/walsall ,WC158-526,31.01.24,CHILDRENS,ACE CARS & MINIBUSES LTD,29/01/2024,"1,361.00",6241-Hire of Vehicle with Driver,TRANSPORT,DIRECT TRANSPORT COSTS,REVENUE
Walsall Council,http://opendatacommunities.org/id/metropolitan-district-council/walsall ,WC158-527,31.01.24,CHILDRENS,ACE CARS & MINIBUSES LTD,29/01/2024,"1,195.00",6241-Hire of Vehicle with Driver,TRANSPORT,DIRECT TRANSPORT COSTS,REVENUE
Walsall Council,http://opendatacommunities.org/id/metropolitan-district-council/walsall ,WC158-528,31.01.24,CHILDRENS,ACE CARS & MINIBUSES LTD,29/01/2024,"1,140.00",6241-Hire of Vehicle with Driver,TRANSPORT,DIRECT TRANSPORT COSTS,REVENUE
Walsall Council,http://opendatacommunities.org/id/metropolitan-district-council/walsall ,WC158-529,31.01.24,CHILDRENS,ACE COACHING LIMITED,29/01/2024,"1,012.00",6211-Professional Fees & Services,SUPPLIES & SERVICES,SERVICES,REVENUE
Walsall Council,http://opendatacommunities.org/id/metropolitan-district-council/walsall ,WC158-530,31.01.24,ADULT SOCIAL CARE,ACEPAY LTD (COTTAGE NUR HOME),16/01/2024,"2,819.08",6541-Nursing EMI,THIRD PARTY PAYMENTS,PRIVATE CONTRACTOR,REVENUE
Walsall Council,http://opendatacommunities.org/id/metropolitan-district-council/walsall ,WC158-531,31.01.24,ADULT SOCIAL CARE,ACEPAY LTD (COTTAGE NUR HOME),16/01/2024,"2,413.36",6541-Residential EMI,THIRD PARTY PAYMENTS,PRIVATE CONTRACTOR,REVENUE
Walsall Council,http://opendatacommunities.org/id/metropolitan-district-council/walsall ,WC158-532,31.01.24,ADULT SOCIAL CARE,ACEPAY LTD (COTTAGE NUR HOME),16/01/2024,"2,413.36",6541-Residential EMI,THIRD PARTY PAYMENTS,PRIVATE CONTRACTOR,REVENUE
Walsall Council,http://opendatacommunities.org/id/metropolitan-district-council/walsall ,WC158-533,31.01.24,ADULT SOCIAL CARE,ACEPAY LTD (COTTAGE NUR HOME),16/01/2024,"2,819.08",6541-Nursing EMI,THIRD PARTY PAYMENTS,PRIVATE CONTRACTOR,REVENUE
Walsall Council,http://opendatacommunities.org/id/metropolitan-district-council/walsall ,WC158-534,31.01.24,ADULT SOCIAL CARE,ACEPAY LTD (COTTAGE NUR HOME),16/01/2024,"2,505.36",6541-Nursing,THIRD PARTY PAYMENTS,PRIVATE CONTRACTOR,REVENUE
Walsall Council,http://opendatacommunities.org/id/metropolitan-district-council/walsall ,WC158-535,31.01.24,ADULT SOCIAL CARE,ACEPAY LTD (COTTAGE NUR HOME),16/01/2024,"2,505.36",6541-Nursing,THIRD PARTY PAYMENTS,PRIVATE CONTRACTOR,REVENUE
Walsall Council,http://opendatacommunities.org/id/metropolitan-district-council/walsall ,WC158-536,31.01.24,ADULT SOCIAL CARE,ACEPAY LTD (COTTAGE NUR HOME),16/01/2024,"2,505.36",6541-Nursing,THIRD PARTY PAYMENTS,PRIVATE CONTRACTOR,REVENUE
Walsall Council,http://opendatacommunities.org/id/metropolitan-district-council/walsall ,WC158-537,31.01.24,ADULT SOCIAL CARE,ACEPAY LTD (COTTAGE NUR HOME),16/01/2024,"2,505.36",6541-Nursing,THIRD PARTY PAYMENTS,PRIVATE CONTRACTOR,REVENUE
Walsall Council,http://opendatacommunities.org/id/metropolitan-district-council/walsall ,WC158-538,31.01.24,ADULT SOCIAL CARE,ACEPAY LTD (COTTAGE NUR HOME),16/01/2024,"2,505.36",6541-Nursing,THIRD PARTY PAYMENTS,PRIVATE CONTRACTOR,REVENUE
Walsall Council,http://opendatacommunities.org/id/metropolitan-district-council/walsall ,WC158-539,31.01.24,ADULT SOCIAL CARE,ACEPAY LTD (COTTAGE NUR HOME),16/01/2024,805.29,6541-Nursing,THIRD PARTY PAYMENTS,PRIVATE CONTRACTOR,REVENUE
Walsall Council,http://opendatacommunities.org/id/metropolitan-district-council/walsall ,WC158-540,31.01.24,ADULT SOCIAL CARE,ACEPAY LTD (COTTAGE NUR HOME),16/01/2024,"2,819.08",6541-Nursing EMI,THIRD PARTY PAYMENTS,PRIVATE CONTRACTOR,REVENUE
Walsall Council,http://opendatacommunities.org/id/metropolitan-district-council/walsall ,WC158-541,31.01.24,ADULT SOCIAL CARE,ACEPAY LTD (COTTAGE NUR HOME),16/01/2024,"2,819.08",6541-Nursing EMI,THIRD PARTY PAYMENTS,PRIVATE CONTRACTOR,REVENUE
Walsall Council,http://opendatacommunities.org/id/metropolitan-district-council/walsall ,WC158-542,31.01.24,ADULT SOCIAL CARE,ACEPAY LTD (COTTAGE NUR HOME),16/01/2024,"3,059.08",6541-Nursing EMI,THIRD PARTY PAYMENTS,PRIVATE CONTRACTOR,REVENUE
Walsall Council,http://opendatacommunities.org/id/metropolitan-district-council/walsall ,WC158-543,31.01.24,ADULT SOCIAL CARE,ACEPAY LTD (COTTAGE NUR HOME),16/01/2024,"2,505.36",6541-Nursing,THIRD PARTY PAYMENTS,PRIVATE CONTRACTOR,REVENUE
Walsall Council,http://opendatacommunities.org/id/metropolitan-district-council/walsall ,WC158-544,31.01.24,ADULT SOCIAL CARE,ACEPAY LTD (COTTAGE NUR HOME),16/01/2024,"2,505.36",6541-Nursing,THIRD PARTY PAYMENTS,PRIVATE CONTRACTOR,REVENUE
Walsall Council,http://opendatacommunities.org/id/metropolitan-district-council/walsall ,WC158-545,31.01.24,ADULT SOCIAL CARE,ACEPAY LTD (COTTAGE NUR HOME),16/01/2024,"1,252.68",6541-Nursing,THIRD PARTY PAYMENTS,PRIVATE CONTRACTOR,REVENUE
Walsall Council,http://opendatacommunities.org/id/metropolitan-district-council/walsall ,WC158-546,31.01.24,ADULT SOCIAL CARE,ACEPAY LTD (COTTAGE NUR HOME),16/01/2024,"2,413.36",6541-Residential EMI,THIRD PARTY PAYMENTS,PRIVATE CONTRACTOR,REVENUE
Walsall Council,http://opendatacommunities.org/id/metropolitan-district-council/walsall ,WC158-547,31.01.24,ADULT SOCIAL CARE,ACEPAY LTD (COTTAGE NUR HOME),16/01/2024,"2,505.36",6541-Nursing,THIRD PARTY PAYMENTS,PRIVATE CONTRACTOR,REVENUE
Walsall Council,http://opendatacommunities.org/id/metropolitan-district-council/walsall ,WC158-548,31.01.24,ADULT SOCIAL CARE,ACEPAY LTD (COTTAGE NUR HOME),16/01/2024,"2,505.36",6541-Nursing,THIRD PARTY PAYMENTS,PRIVATE CONTRACTOR,REVENUE
Walsall Council,http://opendatacommunities.org/id/metropolitan-district-council/walsall ,WC158-549,31.01.24,ADULT SOCIAL CARE,ACEPAY LTD (COTTAGE NUR HOME),16/01/2024,"2,505.36",6541-Nursing,THIRD PARTY PAYMENTS,PRIVATE CONTRACTOR,REVENUE
Walsall Council,http://opendatacommunities.org/id/metropolitan-district-council/walsall ,WC158-550,31.01.24,ADULT SOCIAL CARE,ACEPAY LTD (COTTAGE NUR HOME),16/01/2024,447.39,6541-Nursing,THIRD PARTY PAYMENTS,PRIVATE CONTRACTOR,REVENUE
Walsall Council,http://opendatacommunities.org/id/metropolitan-district-council/walsall ,WC158-551,31.01.24,ADULT SOCIAL CARE,ACEPAY LTD (COTTAGE NUR HOME),16/01/2024,268.43,6541-Nursing,THIRD PARTY PAYMENTS,PRIVATE CONTRACTOR,REVENUE
Walsall Council,http://opendatacommunities.org/id/metropolitan-district-council/walsall ,WC158-552,31.01.24,ADULT SOCIAL CARE,ACEPAY LTD (COTTAGE NUR HOME),16/01/2024,"2,819.08",6541-Nursing EMI,THIRD PARTY PAYMENTS,PRIVATE CONTRACTOR,REVENUE
Walsall Council,http://opendatacommunities.org/id/metropolitan-district-council/walsall ,WC158-553,31.01.24,ADULT SOCIAL CARE,ACEPAY LTD (COTTAGE NUR HOME),16/01/2024,"2,413.36",6541-Residential EMI,THIRD PARTY PAYMENTS,PRIVATE CONTRACTOR,REVENUE
Walsall Council,http://opendatacommunities.org/id/metropolitan-district-council/walsall ,WC158-554,31.01.24,ADULT SOCIAL CARE,ACHIEVE TOGETHER LIMITED,16/01/2024,"3,852.80",6541-Residential,THIRD PARTY PAYMENTS,PRIVATE CONTRACTOR,REVENUE
Walsall Council,http://opendatacommunities.org/id/metropolitan-district-council/walsall ,WC158-555,31.01.24,ADULT SOCIAL CARE,ACHIEVE TOGETHER LIMITED,16/01/2024,"4,920.72",6541-Residential,THIRD PARTY PAYMENTS,PRIVATE CONTRACTOR,REVENUE
Walsall Council,http://opendatacommunities.org/id/metropolitan-district-council/walsall ,WC158-556,31.01.24,ADULT SOCIAL CARE,ACHIEVE TOGETHER LIMITED,16/01/2024,"6,572.72",6541-Residential,THIRD PARTY PAYMENTS,PRIVATE CONTRACTOR,REVENUE
Walsall Council,http://opendatacommunities.org/id/metropolitan-district-council/walsall ,WC158-557,31.01.24,ADULT SOCIAL CARE,ACHIEVE TOGETHER LIMITED,16/01/2024,"5,506.08",6541-Residential,THIRD PARTY PAYMENTS,PRIVATE CONTRACTOR,REVENUE
Walsall Council,http://opendatacommunities.org/id/metropolitan-district-council/walsall ,WC158-558,31.01.24,ADULT SOCIAL CARE,ACHIEVE TOGETHER LIMITED,16/01/2024,"9,178.80",6541-Residential,THIRD PARTY PAYMENTS,PRIVATE CONTRACTOR,REVENUE
Walsall Council,http://opendatacommunities.org/id/metropolitan-district-council/walsall ,WC158-559,31.01.24,"ECONOMY, ENVIRONMENT & COMMUNITIES",ACOEM UK LTD FORMERLY AIR MONITORS LIMITED,16/01/2024,"7,937.00",6411-Repair & Maintenance of Furniture & Equipment,SUPPLIES & SERVICES,EQUIPMENT FURNITURE & MATERIALS,REVENUE
Walsall Council,http://opendatacommunities.org/id/metropolitan-district-council/walsall ,WC158-560,31.01.24,CHILDRENS,ACORN CARE & EDUCATION LTD (SALES),09/01/2024,"6,389.17",1220-Professional Fees & Services,SUPPLIES & SERVICES,SERVICES,REVENUE
Walsall Council,http://opendatacommunities.org/id/metropolitan-district-council/walsall ,WC158-561,31.01.24,CHILDRENS,ACORN CARE & EDUCATION LTD (SALES),12/01/2024,"2,722.08",1220-Top Up Funding -Grants to Schools,SUPPLIES & SERVICES,GRANTS (EXP) & SUBSCRIPTIONS,REVENUE
Walsall Council,http://opendatacommunities.org/id/metropolitan-district-council/walsall ,WC158-562,31.01.24,CHILDRENS,ACORN CARE & EDUCATION LTD (SALES),12/01/2024,"2,722.08",1220-Top Up Funding -Grants to Schools,SUPPLIES & SERVICES,GRANTS (EXP) & SUBSCRIPTIONS,REVENUE
Walsall Council,http://opendatacommunities.org/id/metropolitan-district-council/walsall ,WC158-563,31.01.24,CHILDRENS,ACORN CARE & EDUCATION LTD (SALES),12/01/2024,"2,722.08",1220-Top Up Funding -Grants to Schools,SUPPLIES & SERVICES,GRANTS (EXP) & SUBSCRIPTIONS,REVENUE
Walsall Council,http://opendatacommunities.org/id/metropolitan-district-council/walsall ,WC158-564,31.01.24,CHILDRENS,ACORN CARE & EDUCATION LTD (SALES),23/01/2024,"21,368.74",6223-External Residential Care-Oth Agency Provision,THIRD PARTY PAYMENTS,PRIVATE CONTRACTOR,REVENUE
Walsall Council,http://opendatacommunities.org/id/metropolitan-district-council/walsall ,WC158-565,31.01.24,CHILDRENS,ACORN FOSTERING SERVICES LTD,23/01/2024,"3,340.00",6223-Independent Foster Care-Oth Agency Provision,THIRD PARTY PAYMENTS,PRIVATE CONTRACTOR,REVENUE
Walsall Council,http://opendatacommunities.org/id/metropolitan-district-council/walsall ,WC158-566,31.01.24,CHILDRENS CAPITAL,ACORN MOBILITY SERVICES LTD/ACORN STAIRLIFTS,25/01/2024,"5,890.00",7100-Private Grants,CAPITAL,CAPITAL GRANTS,CAPITAL GRANTS
Walsall Council,http://opendatacommunities.org/id/metropolitan-district-council/walsall ,WC158-567,31.01.24,CHILDRENS CAPITAL,ACORN MOBILITY SERVICES LTD/ACORN STAIRLIFTS,25/01/2024,"-1,595.00",7100-Private Grants,CAPITAL,CAPITAL GRANTS,CAPITAL GRANTS
Walsall Council,http://opendatacommunities.org/id/metropolitan-district-council/walsall ,WC158-568,31.01.24,CHILDRENS CAPITAL,ACORN MOBILITY SERVICES LTD/ACORN STAIRLIFTS,25/01/2024,"1,595.00",7100-Private Grants,CAPITAL,CAPITAL GRANTS,CAPITAL GRANTS
Walsall Council,http://opendatacommunities.org/id/metropolitan-district-council/walsall ,WC158-569,31.01.24,CHILDRENS,ACORNS CHILDRENS HOSPICE TRUST,18/01/2024,"1,950.00",6220-Professional Fees & Services,SUPPLIES & SERVICES,SERVICES,REVENUE
Walsall Council,http://opendatacommunities.org/id/metropolitan-district-council/walsall ,WC158-570,31.01.24,CHILDRENS,ACPAS LIMITED,10/01/2024,"1,076.40",6222-Consultant Fees,SUPPLIES & SERVICES,SERVICES,REVENUE
Walsall Council,http://opendatacommunities.org/id/metropolitan-district-council/walsall ,WC158-571,31.01.24,CHILDRENS,ACPAS LIMITED,03/01/2024,390.00,6220-School Only Payments - Catering,THIRD PARTY PAYMENTS,INDEPENDENT UNIT WITHIN COUNCIL,REVENUE
Walsall Council,http://opendatacommunities.org/id/metropolitan-district-council/walsall ,WC158-572,31.01.24,"ECONOMY, ENVIRONMENT & COMMUNITIES",ACTION GRAPHICS & DISPLAY LTD,30/01/2024,747.90,6414-Outwork Print & Design,SUPPLIES & SERVICES,PRINTING STATIONERY & GENERAL OFFICE,REVENUE
Walsall Council,http://opendatacommunities.org/id/metropolitan-district-council/walsall ,WC158-573,31.01.24,CHILDRENS,ACTIVE CARE SOLUTIONS LTD,23/01/2024,"3,514.80",6223-Independent Foster Care-Oth Agency Provision,THIRD PARTY PAYMENTS,PRIVATE CONTRACTOR,REVENUE
Walsall Council,http://opendatacommunities.org/id/metropolitan-district-council/walsall ,WC158-574,31.01.24,CHILDRENS,ACTIVE CARE SOLUTIONS LTD,23/01/2024,"3,506.60",6223-Independent Foster Care-Oth Agency Provision,THIRD PARTY PAYMENTS,PRIVATE CONTRACTOR,REVENUE
Walsall Council,http://opendatacommunities.org/id/metropolitan-district-council/walsall ,WC158-575,31.01.24,CHILDRENS,ACTIVITY GYM LTD,29/01/2024,357.00,6211-Professional Fees & Services,SUPPLIES & SERVICES,SERVICES,REVENUE
Walsall Council,http://opendatacommunities.org/id/metropolitan-district-council/walsall ,WC158-576,31.01.24,ADULT SOCIAL CARE,REDACTED,03/01/2024,747.92,6541-Direct Payment,THIRD PARTY PAYMENTS,PRIVATE CONTRACTOR,REVENUE
Walsall Council,http://opendatacommunities.org/id/metropolitan-district-council/walsall ,WC158-577,31.01.24,CHILDRENS,REDACTED,11/01/2024,363.84,6223-Special Guardianship Orders,TRANSFER PAYMENTS,CHILDREN SOCIAL SERVICES CLIENT,REVENUE
Walsall Council,http://opendatacommunities.org/id/metropolitan-district-council/walsall ,WC158-578,31.01.24,CHILDRENS,REDACTED,11/01/2024,350.96,6223-Residents Orders,TRANSFER PAYMENTS,CHILDREN SOCIAL SERVICES CLIENT,REVENUE
Walsall Council,http://opendatacommunities.org/id/metropolitan-district-council/walsall ,WC158-579,31.01.24,ADULT SOCIAL CARE,REDACTED,03/01/2024,"2,177.80",6541-Direct Payment,THIRD PARTY PAYMENTS,PRIVATE CONTRACTOR,REVENUE
Walsall Council,http://opendatacommunities.org/id/metropolitan-district-council/walsall ,WC158-580,31.01.24,ADULT SOCIAL CARE,ADVANCE HEALTH CARE (UK) LTD,11/01/2024,"1,188.00",6541-Domiciliary Care,THIRD PARTY PAYMENTS,PRIVATE CONTRACTOR,REVENUE
Walsall Council,http://opendatacommunities.org/id/metropolitan-district-council/walsall ,WC158-581,31.01.24,ADULT SOCIAL CARE,ADVANCE HEALTH CARE (UK) LTD,11/01/2024,"1,188.00",6541-Domiciliary Care,THIRD PARTY PAYMENTS,PRIVATE CONTRACTOR,REVENUE
Walsall Council,http://opendatacommunities.org/id/metropolitan-district-council/walsall ,WC158-582,31.01.24,ADULT SOCIAL CARE,ADVANCE HEALTH CARE (UK) LTD,11/01/2024,"1,161.00",6541-Domiciliary Care,THIRD PARTY PAYMENTS,PRIVATE CONTRACTOR,REVENUE
Walsall Council,http://opendatacommunities.org/id/metropolitan-district-council/walsall ,WC158-583,31.01.24,ADULT SOCIAL CARE,ADVANCE HEALTH CARE (UK) LTD,11/01/2024,744.00,6541-Domiciliary Care,THIRD PARTY PAYMENTS,PRIVATE CONTRACTOR,REVENUE
Walsall Council,http://opendatacommunities.org/id/metropolitan-district-council/walsall ,WC158-584,31.01.24,ADULT SOCIAL CARE,ADVANCE HEALTH CARE (UK) LTD,11/01/2024,"1,134.00",6541-Domiciliary Care,THIRD PARTY PAYMENTS,PRIVATE CONTRACTOR,REVENUE
Walsall Council,http://opendatacommunities.org/id/metropolitan-district-council/walsall ,WC158-585,31.01.24,ADULT SOCIAL CARE,ADVANCE HEALTH CARE (UK) LTD,11/01/2024,"1,242.00",6541-Domiciliary Care,THIRD PARTY PAYMENTS,PRIVATE CONTRACTOR,REVENUE
Walsall Council,http://opendatacommunities.org/id/metropolitan-district-council/walsall ,WC158-586,31.01.24,ADULT SOCIAL CARE,ADVANCE HEALTH CARE (UK) LTD,11/01/2024,"1,134.00",6541-Domiciliary Care,THIRD PARTY PAYMENTS,PRIVATE CONTRACTOR,REVENUE
Walsall Council,http://opendatacommunities.org/id/metropolitan-district-council/walsall ,WC158-587,31.01.24,ADULT SOCIAL CARE,ADVANCE HEALTH CARE (UK) LTD,11/01/2024,840.00,6541-Domiciliary Care,THIRD PARTY PAYMENTS,PRIVATE CONTRACTOR,REVENUE
Walsall Council,http://opendatacommunities.org/id/metropolitan-district-council/walsall ,WC158-588,31.01.24,ADULT SOCIAL CARE,ADVANCE HEALTH CARE (UK) LTD,11/01/2024,588.00,6541-Domiciliary Care,THIRD PARTY PAYMENTS,PRIVATE CONTRACTOR,REVENUE
Walsall Council,http://opendatacommunities.org/id/metropolitan-district-council/walsall ,WC158-589,31.01.24,ADULT SOCIAL CARE,ADVANCE HEALTH CARE (UK) LTD,11/01/2024,828.00,6541-Domiciliary Care,THIRD PARTY PAYMENTS,PRIVATE CONTRACTOR,REVENUE
Walsall Council,http://opendatacommunities.org/id/metropolitan-district-council/walsall ,WC158-590,31.01.24,ADULT SOCIAL CARE,ADVANCE HEALTH CARE (UK) LTD,11/01/2024,"1,050.00",6541-Domiciliary Care,THIRD PARTY PAYMENTS,PRIVATE CONTRACTOR,REVENUE
Walsall Council,http://opendatacommunities.org/id/metropolitan-district-council/walsall ,WC158-591,31.01.24,ADULT SOCIAL CARE,ADVANCE HEALTH CARE (UK) LTD,11/01/2024,"1,206.00",6541-Domiciliary Care,THIRD PARTY PAYMENTS,PRIVATE CONTRACTOR,REVENUE
Walsall Council,http://opendatacommunities.org/id/metropolitan-district-council/walsall ,WC158-592,31.01.24,ADULT SOCIAL CARE,ADVANCE HEALTH CARE (UK) LTD,11/01/2024,948.00,6541-Domiciliary Care,THIRD PARTY PAYMENTS,PRIVATE CONTRACTOR,REVENUE
Walsall Council,http://opendatacommunities.org/id/metropolitan-district-council/walsall ,WC158-593,31.01.24,ADULT SOCIAL CARE,ADVANCE HEALTH CARE (UK) LTD,11/01/2024,378.00,6541-Domiciliary Care,THIRD PARTY PAYMENTS,PRIVATE CONTRACTOR,REVENUE
Walsall Council,http://opendatacommunities.org/id/metropolitan-district-council/walsall ,WC158-594,31.01.24,ADULT SOCIAL CARE,ADVANCE HEALTH CARE (UK) LTD,11/01/2024,546.00,6541-Domiciliary Care,THIRD PARTY PAYMENTS,PRIVATE CONTRACTOR,REVENUE
Walsall Council,http://opendatacommunities.org/id/metropolitan-district-council/walsall ,WC158-595,31.01.24,ADULT SOCIAL CARE,ADVANCE HEALTH CARE (UK) LTD,11/01/2024,786.00,6541-Domiciliary Care,THIRD PARTY PAYMENTS,PRIVATE CONTRACTOR,REVENUE
Walsall Council,http://opendatacommunities.org/id/metropolitan-district-council/walsall ,WC158-596,31.01.24,ADULT SOCIAL CARE,ADVANCE HEALTH CARE (UK) LTD,11/01/2024,"1,278.00",6541-Domiciliary Care,THIRD PARTY PAYMENTS,PRIVATE CONTRACTOR,REVENUE
Walsall Council,http://opendatacommunities.org/id/metropolitan-district-council/walsall ,WC158-597,31.01.24,ADULT SOCIAL CARE,ADVANCE HEALTH CARE (UK) LTD,02/01/2024,567.00,6541-Domiciliary Care,THIRD PARTY PAYMENTS,PRIVATE CONTRACTOR,REVENUE
Walsall Council,http://opendatacommunities.org/id/metropolitan-district-council/walsall ,WC158-598,31.01.24,ADULT SOCIAL CARE,ADVANCE HEALTH CARE (UK) LTD,02/01/2024,963.00,6541-Domiciliary Care,THIRD PARTY PAYMENTS,PRIVATE CONTRACTOR,REVENUE
Walsall Council,http://opendatacommunities.org/id/metropolitan-district-council/walsall ,WC158-599,31.01.24,ADULT SOCIAL CARE,ADVANCE HEALTH CARE (UK) LTD,02/01/2024,441.00,6541-Domiciliary Care,THIRD PARTY PAYMENTS,PRIVATE CONTRACTOR,REVENUE
Walsall Council,http://opendatacommunities.org/id/metropolitan-district-council/walsall ,WC158-600,31.01.24,ADULT SOCIAL CARE,ADVANCE HEALTH CARE (UK) LTD,02/01/2024,252.00,6541-Domiciliary Care,THIRD PARTY PAYMENTS,PRIVATE CONTRACTOR,REVENUE
Walsall Council,http://opendatacommunities.org/id/metropolitan-district-council/walsall ,WC158-601,31.01.24,ADULT SOCIAL CARE,ADVANCE HEALTH CARE (UK) LTD,02/01/2024,567.00,6541-Domiciliary Care,THIRD PARTY PAYMENTS,PRIVATE CONTRACTOR,REVENUE
Walsall Council,http://opendatacommunities.org/id/metropolitan-district-council/walsall ,WC158-602,31.01.24,ADULT SOCIAL CARE,ADVANCE HEALTH CARE (UK) LTD,02/01/2024,630.00,6541-Domiciliary Care,THIRD PARTY PAYMENTS,PRIVATE CONTRACTOR,REVENUE
Walsall Council,http://opendatacommunities.org/id/metropolitan-district-council/walsall ,WC158-603,31.01.24,ADULT SOCIAL CARE,ADVANCE HEALTH CARE (UK) LTD,02/01/2024,301.50,6541-Domiciliary Care,THIRD PARTY PAYMENTS,PRIVATE CONTRACTOR,REVENUE
Walsall Council,http://opendatacommunities.org/id/metropolitan-district-council/walsall ,WC158-604,31.01.24,ADULT SOCIAL CARE,ADVANCE HEALTH CARE (UK) LTD,02/01/2024,441.00,6541-Domiciliary Care,THIRD PARTY PAYMENTS,PRIVATE CONTRACTOR,REVENUE
Walsall Council,http://opendatacommunities.org/id/metropolitan-district-council/walsall ,WC158-605,31.01.24,ADULT SOCIAL CARE,ADVANCE HEALTH CARE (UK) LTD,02/01/2024,283.50,6541-Domiciliary Care,THIRD PARTY PAYMENTS,PRIVATE CONTRACTOR,REVENUE
Walsall Council,http://opendatacommunities.org/id/metropolitan-district-council/walsall ,WC158-606,31.01.24,ADULT SOCIAL CARE,ADVANCE HEALTH CARE (UK) LTD,02/01/2024,891.00,6541-Domiciliary Care,THIRD PARTY PAYMENTS,PRIVATE CONTRACTOR,REVENUE
Walsall Council,http://opendatacommunities.org/id/metropolitan-district-council/walsall ,WC158-607,31.01.24,ADULT SOCIAL CARE,ADVANCE HEALTH CARE (UK) LTD,02/01/2024,504.00,6541-Domiciliary Care,THIRD PARTY PAYMENTS,PRIVATE CONTRACTOR,REVENUE
Walsall Council,http://opendatacommunities.org/id/metropolitan-district-council/walsall ,WC158-608,31.01.24,ADULT SOCIAL CARE,ADVANCE HEALTH CARE (UK) LTD,02/01/2024,283.50,6541-Domiciliary Care,THIRD PARTY PAYMENTS,PRIVATE CONTRACTOR,REVENUE
Walsall Council,http://opendatacommunities.org/id/metropolitan-district-council/walsall ,WC158-609,31.01.24,ADULT SOCIAL CARE,ADVANCE HEALTH CARE (UK) LTD,02/01/2024,567.00,6541-Domiciliary Care,THIRD PARTY PAYMENTS,PRIVATE CONTRACTOR,REVENUE
Walsall Council,http://opendatacommunities.org/id/metropolitan-district-council/walsall ,WC158-610,31.01.24,ADULT SOCIAL CARE,ADVANCE HEALTH CARE (UK) LTD,02/01/2024,283.50,6541-Domiciliary Care,THIRD PARTY PAYMENTS,PRIVATE CONTRACTOR,REVENUE
Walsall Council,http://opendatacommunities.org/id/metropolitan-district-council/walsall ,WC158-611,31.01.24,ADULT SOCIAL CARE,ADVANCE HEALTH CARE (UK) LTD,02/01/2024,420.00,6541-Domiciliary Care,THIRD PARTY PAYMENTS,PRIVATE CONTRACTOR,REVENUE
Walsall Council,http://opendatacommunities.org/id/metropolitan-district-council/walsall ,WC158-612,31.01.24,ADULT SOCIAL CARE,ADVANCE HEALTH CARE (UK) LTD,02/01/2024,378.00,6541-Domiciliary Care,THIRD PARTY PAYMENTS,PRIVATE CONTRACTOR,REVENUE
Walsall Council,http://opendatacommunities.org/id/metropolitan-district-council/walsall ,WC158-613,31.01.24,ADULT SOCIAL CARE,ADVANCE HEALTH CARE (UK) LTD,02/01/2024,301.50,6541-Domiciliary Care,THIRD PARTY PAYMENTS,PRIVATE CONTRACTOR,REVENUE
Walsall Council,http://opendatacommunities.org/id/metropolitan-district-council/walsall ,WC158-614,31.01.24,ADULT SOCIAL CARE,ADVANCE HEALTH CARE (UK) LTD,02/01/2024,756.00,6541-Domiciliary Care,THIRD PARTY PAYMENTS,PRIVATE CONTRACTOR,REVENUE
Walsall Council,http://opendatacommunities.org/id/metropolitan-district-council/walsall ,WC158-615,31.01.24,ADULT SOCIAL CARE,ADVANCE HEALTH CARE (UK) LTD,02/01/2024,"2,376.00",6541-Domiciliary Care,THIRD PARTY PAYMENTS,PRIVATE CONTRACTOR,REVENUE
Walsall Council,http://opendatacommunities.org/id/metropolitan-district-council/walsall ,WC158-616,31.01.24,ADULT SOCIAL CARE,ADVANCE HEALTH CARE (UK) LTD,02/01/2024,342.00,6541-Domiciliary Care,THIRD PARTY PAYMENTS,PRIVATE CONTRACTOR,REVENUE
Walsall Council,http://opendatacommunities.org/id/metropolitan-district-council/walsall ,WC158-617,31.01.24,ADULT SOCIAL CARE,ADVANCE HEALTH CARE (UK) LTD,02/01/2024,441.00,6541-Domiciliary Care,THIRD PARTY PAYMENTS,PRIVATE CONTRACTOR,REVENUE
Walsall Council,http://opendatacommunities.org/id/metropolitan-district-council/walsall ,WC158-618,31.01.24,ADULT SOCIAL CARE,ADVANCE HEALTH CARE (UK) LTD,02/01/2024,441.00,6541-Domiciliary Care,THIRD PARTY PAYMENTS,PRIVATE CONTRACTOR,REVENUE
Walsall Council,http://opendatacommunities.org/id/metropolitan-district-council/walsall ,WC158-619,31.01.24,ADULT SOCIAL CARE,ADVANCE HEALTH CARE (UK) LTD,02/01/2024,594.00,6541-Domiciliary Care,THIRD PARTY PAYMENTS,PRIVATE CONTRACTOR,REVENUE
Walsall Council,http://opendatacommunities.org/id/metropolitan-district-council/walsall ,WC158-620,31.01.24,ADULT SOCIAL CARE,ADVANCE HEALTH CARE (UK) LTD,02/01/2024,666.00,6541-Domiciliary Care,THIRD PARTY PAYMENTS,PRIVATE CONTRACTOR,REVENUE
Walsall Council,http://opendatacommunities.org/id/metropolitan-district-council/walsall ,WC158-621,31.01.24,ADULT SOCIAL CARE,ADVANCE HEALTH CARE (UK) LTD,02/01/2024,567.00,6541-Domiciliary Care,THIRD PARTY PAYMENTS,PRIVATE CONTRACTOR,REVENUE
Walsall Council,http://opendatacommunities.org/id/metropolitan-district-council/walsall ,WC158-622,31.01.24,ADULT SOCIAL CARE,ADVANCE HEALTH CARE (UK) LTD,02/01/2024,252.00,6541-Domiciliary Care,THIRD PARTY PAYMENTS,PRIVATE CONTRACTOR,REVENUE
Walsall Council,http://opendatacommunities.org/id/metropolitan-district-council/walsall ,WC158-623,31.01.24,ADULT SOCIAL CARE,ADVANCE HEALTH CARE (UK) LTD,02/01/2024,567.00,6541-Domiciliary Care,THIRD PARTY PAYMENTS,PRIVATE CONTRACTOR,REVENUE
Walsall Council,http://opendatacommunities.org/id/metropolitan-district-council/walsall ,WC158-624,31.01.24,ADULT SOCIAL CARE,ADVANCE HEALTH CARE (UK) LTD,02/01/2024,630.00,6541-Domiciliary Care,THIRD PARTY PAYMENTS,PRIVATE CONTRACTOR,REVENUE
Walsall Council,http://opendatacommunities.org/id/metropolitan-district-council/walsall ,WC158-625,31.01.24,ADULT SOCIAL CARE,ADVANCE HEALTH CARE (UK) LTD,02/01/2024,666.00,6541-Domiciliary Care,THIRD PARTY PAYMENTS,PRIVATE CONTRACTOR,REVENUE
Walsall Council,http://opendatacommunities.org/id/metropolitan-district-council/walsall ,WC158-626,31.01.24,ADULT SOCIAL CARE,ADVANCE HEALTH CARE (UK) LTD,02/01/2024,441.00,6541-Domiciliary Care,THIRD PARTY PAYMENTS,PRIVATE CONTRACTOR,REVENUE
Walsall Council,http://opendatacommunities.org/id/metropolitan-district-council/walsall ,WC158-627,31.01.24,ADULT SOCIAL CARE,ADVANCE HEALTH CARE (UK) LTD,02/01/2024,283.50,6541-Domiciliary Care,THIRD PARTY PAYMENTS,PRIVATE CONTRACTOR,REVENUE
Walsall Council,http://opendatacommunities.org/id/metropolitan-district-council/walsall ,WC158-628,31.01.24,ADULT SOCIAL CARE,ADVANCE HEALTH CARE (UK) LTD,02/01/2024,891.00,6541-Domiciliary Care,THIRD PARTY PAYMENTS,PRIVATE CONTRACTOR,REVENUE
Walsall Council,http://opendatacommunities.org/id/metropolitan-district-council/walsall ,WC158-629,31.01.24,ADULT SOCIAL CARE,ADVANCE HEALTH CARE (UK) LTD,02/01/2024,963.00,6541-Domiciliary Care,THIRD PARTY PAYMENTS,PRIVATE CONTRACTOR,REVENUE
Walsall Council,http://opendatacommunities.org/id/metropolitan-district-council/walsall ,WC158-630,31.01.24,ADULT SOCIAL CARE,ADVANCE HEALTH CARE (UK) LTD,02/01/2024,441.00,6541-Domiciliary Care,THIRD PARTY PAYMENTS,PRIVATE CONTRACTOR,REVENUE
Walsall Council,http://opendatacommunities.org/id/metropolitan-district-council/walsall ,WC158-631,31.01.24,ADULT SOCIAL CARE,ADVANCE HEALTH CARE (UK) LTD,02/01/2024,283.50,6541-Domiciliary Care,THIRD PARTY PAYMENTS,PRIVATE CONTRACTOR,REVENUE
Walsall Council,http://opendatacommunities.org/id/metropolitan-district-council/walsall ,WC158-632,31.01.24,ADULT SOCIAL CARE,ADVANCE HEALTH CARE (UK) LTD,02/01/2024,420.00,6541-Domiciliary Care,THIRD PARTY PAYMENTS,PRIVATE CONTRACTOR,REVENUE
Walsall Council,http://opendatacommunities.org/id/metropolitan-district-council/walsall ,WC158-633,31.01.24,ADULT SOCIAL CARE,ADVANCE HEALTH CARE (UK) LTD,02/01/2024,378.00,6541-Domiciliary Care,THIRD PARTY PAYMENTS,PRIVATE CONTRACTOR,REVENUE
Walsall Council,http://opendatacommunities.org/id/metropolitan-district-council/walsall ,WC158-634,31.01.24,ADULT SOCIAL CARE,ADVANCE HEALTH CARE (UK) LTD,02/01/2024,301.50,6541-Domiciliary Care,THIRD PARTY PAYMENTS,PRIVATE CONTRACTOR,REVENUE
Walsall Council,http://opendatacommunities.org/id/metropolitan-district-council/walsall ,WC158-635,31.01.24,ADULT SOCIAL CARE,ADVANCE HEALTH CARE (UK) LTD,02/01/2024,504.00,6541-Domiciliary Care,THIRD PARTY PAYMENTS,PRIVATE CONTRACTOR,REVENUE
Walsall Council,http://opendatacommunities.org/id/metropolitan-district-council/walsall ,WC158-636,31.01.24,ADULT SOCIAL CARE,ADVANCE HEALTH CARE (UK) LTD,02/01/2024,283.50,6541-Domiciliary Care,THIRD PARTY PAYMENTS,PRIVATE CONTRACTOR,REVENUE
Walsall Council,http://opendatacommunities.org/id/metropolitan-district-council/walsall ,WC158-637,31.01.24,ADULT SOCIAL CARE,ADVANCE HEALTH CARE (UK) LTD,02/01/2024,567.00,6541-Domiciliary Care,THIRD PARTY PAYMENTS,PRIVATE CONTRACTOR,REVENUE
Walsall Council,http://opendatacommunities.org/id/metropolitan-district-council/walsall ,WC158-638,31.01.24,ADULT SOCIAL CARE,ADVANCE HEALTH CARE (UK) LTD,02/01/2024,301.50,6541-Domiciliary Care,THIRD PARTY PAYMENTS,PRIVATE CONTRACTOR,REVENUE
Walsall Council,http://opendatacommunities.org/id/metropolitan-district-council/walsall ,WC158-639,31.01.24,ADULT SOCIAL CARE,ADVANCE HEALTH CARE (UK) LTD,02/01/2024,756.00,6541-Domiciliary Care,THIRD PARTY PAYMENTS,PRIVATE CONTRACTOR,REVENUE
Walsall Council,http://opendatacommunities.org/id/metropolitan-district-council/walsall ,WC158-640,31.01.24,ADULT SOCIAL CARE,ADVANCE HEALTH CARE (UK) LTD,02/01/2024,342.00,6541-Domiciliary Care,THIRD PARTY PAYMENTS,PRIVATE CONTRACTOR,REVENUE
Walsall Council,http://opendatacommunities.org/id/metropolitan-district-council/walsall ,WC158-641,31.01.24,ADULT SOCIAL CARE,ADVANCE HEALTH CARE (UK) LTD,02/01/2024,441.00,6541-Domiciliary Care,THIRD PARTY PAYMENTS,PRIVATE CONTRACTOR,REVENUE
Walsall Council,http://opendatacommunities.org/id/metropolitan-district-council/walsall ,WC158-642,31.01.24,ADULT SOCIAL CARE,ADVANCE HEALTH CARE (UK) LTD,02/01/2024,441.00,6541-Domiciliary Care,THIRD PARTY PAYMENTS,PRIVATE CONTRACTOR,REVENUE
Walsall Council,http://opendatacommunities.org/id/metropolitan-district-council/walsall ,WC158-643,31.01.24,ADULT SOCIAL CARE,ADVANCE HEALTH CARE (UK) LTD,02/01/2024,594.00,6541-Domiciliary Care,THIRD PARTY PAYMENTS,PRIVATE CONTRACTOR,REVENUE
Walsall Council,http://opendatacommunities.org/id/metropolitan-district-council/walsall ,WC158-644,31.01.24,ADULT SOCIAL CARE,ADVANCE HEALTH CARE (UK) LTD,10/01/2024,672.00,6554-Professional Services-Priv Contractor & Other Agencies,THIRD PARTY PAYMENTS,PRIVATE CONTRACTOR,REVENUE
Walsall Council,http://opendatacommunities.org/id/metropolitan-district-council/walsall ,WC158-645,31.01.24,ADULT SOCIAL CARE,ADVANCE HEALTH CARE (UK) LTD,10/01/2024,"1,053.00",6554-Professional Services-Priv Contractor & Other Agencies,THIRD PARTY PAYMENTS,PRIVATE CONTRACTOR,REVENUE
Walsall Council,http://opendatacommunities.org/id/metropolitan-district-council/walsall ,WC158-646,31.01.24,ADULT SOCIAL CARE,ADVANCE HEALTH CARE (UK) LTD,10/01/2024,283.50,6554-Professional Services-Priv Contractor & Other Agencies,THIRD PARTY PAYMENTS,PRIVATE CONTRACTOR,REVENUE
Walsall Council,http://opendatacommunities.org/id/metropolitan-district-council/walsall ,WC158-647,31.01.24,ADULT SOCIAL CARE,ADVANCE HEALTH CARE (UK) LTD,10/01/2024,270.00,6554-Professional Services-Priv Contractor & Other Agencies,THIRD PARTY PAYMENTS,PRIVATE CONTRACTOR,REVENUE
Walsall Council,http://opendatacommunities.org/id/metropolitan-district-council/walsall ,WC158-648,31.01.24,ADULT SOCIAL CARE,ADVANCE HEALTH CARE (UK) LTD,15/01/2024,567.00,6541-Domiciliary Care,THIRD PARTY PAYMENTS,PRIVATE CONTRACTOR,REVENUE
Walsall Council,http://opendatacommunities.org/id/metropolitan-district-council/walsall ,WC158-649,31.01.24,ADULT SOCIAL CARE,ADVANCE HEALTH CARE (UK) LTD,15/01/2024,252.00,6541-Domiciliary Care,THIRD PARTY PAYMENTS,PRIVATE CONTRACTOR,REVENUE
Walsall Council,http://opendatacommunities.org/id/metropolitan-district-council/walsall ,WC158-650,31.01.24,ADULT SOCIAL CARE,ADVANCE HEALTH CARE (UK) LTD,15/01/2024,567.00,6541-Domiciliary Care,THIRD PARTY PAYMENTS,PRIVATE CONTRACTOR,REVENUE
Walsall Council,http://opendatacommunities.org/id/metropolitan-district-council/walsall ,WC158-651,31.01.24,ADULT SOCIAL CARE,ADVANCE HEALTH CARE (UK) LTD,15/01/2024,630.00,6541-Domiciliary Care,THIRD PARTY PAYMENTS,PRIVATE CONTRACTOR,REVENUE
Walsall Council,http://opendatacommunities.org/id/metropolitan-district-council/walsall ,WC158-652,31.01.24,ADULT SOCIAL CARE,ADVANCE HEALTH CARE (UK) LTD,15/01/2024,441.00,6541-Domiciliary Care,THIRD PARTY PAYMENTS,PRIVATE CONTRACTOR,REVENUE
Walsall Council,http://opendatacommunities.org/id/metropolitan-district-council/walsall ,WC158-653,31.01.24,ADULT SOCIAL CARE,ADVANCE HEALTH CARE (UK) LTD,15/01/2024,283.50,6541-Domiciliary Care,THIRD PARTY PAYMENTS,PRIVATE CONTRACTOR,REVENUE
Walsall Council,http://opendatacommunities.org/id/metropolitan-district-council/walsall ,WC158-654,31.01.24,ADULT SOCIAL CARE,ADVANCE HEALTH CARE (UK) LTD,15/01/2024,963.00,6541-Domiciliary Care,THIRD PARTY PAYMENTS,PRIVATE CONTRACTOR,REVENUE
Walsall Council,http://opendatacommunities.org/id/metropolitan-district-council/walsall ,WC158-655,31.01.24,ADULT SOCIAL CARE,ADVANCE HEALTH CARE (UK) LTD,15/01/2024,-630.00,6541-Domiciliary Care,THIRD PARTY PAYMENTS,PRIVATE CONTRACTOR,REVENUE
Walsall Council,http://opendatacommunities.org/id/metropolitan-district-council/walsall ,WC158-656,31.01.24,ADULT SOCIAL CARE,ADVANCE HEALTH CARE (UK) LTD,15/01/2024,630.00,6541-Domiciliary Care,THIRD PARTY PAYMENTS,PRIVATE CONTRACTOR,REVENUE
Walsall Council,http://opendatacommunities.org/id/metropolitan-district-council/walsall ,WC158-657,31.01.24,ADULT SOCIAL CARE,ADVANCE HEALTH CARE (UK) LTD,15/01/2024,283.50,6541-Domiciliary Care,THIRD PARTY PAYMENTS,PRIVATE CONTRACTOR,REVENUE
Walsall Council,http://opendatacommunities.org/id/metropolitan-district-council/walsall ,WC158-658,31.01.24,ADULT SOCIAL CARE,ADVANCE HEALTH CARE (UK) LTD,15/01/2024,420.00,6541-Domiciliary Care,THIRD PARTY PAYMENTS,PRIVATE CONTRACTOR,REVENUE
Walsall Council,http://opendatacommunities.org/id/metropolitan-district-council/walsall ,WC158-659,31.01.24,ADULT SOCIAL CARE,ADVANCE HEALTH CARE (UK) LTD,15/01/2024,378.00,6541-Domiciliary Care,THIRD PARTY PAYMENTS,PRIVATE CONTRACTOR,REVENUE
Walsall Council,http://opendatacommunities.org/id/metropolitan-district-council/walsall ,WC158-660,31.01.24,ADULT SOCIAL CARE,ADVANCE HEALTH CARE (UK) LTD,15/01/2024,504.00,6541-Domiciliary Care,THIRD PARTY PAYMENTS,PRIVATE CONTRACTOR,REVENUE
Walsall Council,http://opendatacommunities.org/id/metropolitan-district-council/walsall ,WC158-661,31.01.24,ADULT SOCIAL CARE,ADVANCE HEALTH CARE (UK) LTD,15/01/2024,283.50,6541-Domiciliary Care,THIRD PARTY PAYMENTS,PRIVATE CONTRACTOR,REVENUE
Walsall Council,http://opendatacommunities.org/id/metropolitan-district-council/walsall ,WC158-662,31.01.24,ADULT SOCIAL CARE,ADVANCE HEALTH CARE (UK) LTD,15/01/2024,567.00,6541-Domiciliary Care,THIRD PARTY PAYMENTS,PRIVATE CONTRACTOR,REVENUE
Walsall Council,http://opendatacommunities.org/id/metropolitan-district-council/walsall ,WC158-663,31.01.24,ADULT SOCIAL CARE,ADVANCE HEALTH CARE (UK) LTD,15/01/2024,301.50,6541-Domiciliary Care,THIRD PARTY PAYMENTS,PRIVATE CONTRACTOR,REVENUE
Walsall Council,http://opendatacommunities.org/id/metropolitan-district-council/walsall ,WC158-664,31.01.24,ADULT SOCIAL CARE,ADVANCE HEALTH CARE (UK) LTD,15/01/2024,756.00,6541-Domiciliary Care,THIRD PARTY PAYMENTS,PRIVATE CONTRACTOR,REVENUE
Walsall Council,http://opendatacommunities.org/id/metropolitan-district-council/walsall ,WC158-665,31.01.24,ADULT SOCIAL CARE,ADVANCE HEALTH CARE (UK) LTD,15/01/2024,441.00,6541-Domiciliary Care,THIRD PARTY PAYMENTS,PRIVATE CONTRACTOR,REVENUE
Walsall Council,http://opendatacommunities.org/id/metropolitan-district-council/walsall ,WC158-666,31.01.24,ADULT SOCIAL CARE,ADVANCE HEALTH CARE (UK) LTD,15/01/2024,441.00,6541-Domiciliary Care,THIRD PARTY PAYMENTS,PRIVATE CONTRACTOR,REVENUE
Walsall Council,http://opendatacommunities.org/id/metropolitan-district-council/walsall ,WC158-667,31.01.24,ADULT SOCIAL CARE,ADVANCE HEALTH CARE (UK) LTD,15/01/2024,594.00,6541-Domiciliary Care,THIRD PARTY PAYMENTS,PRIVATE CONTRACTOR,REVENUE
Walsall Council,http://opendatacommunities.org/id/metropolitan-district-council/walsall ,WC158-668,31.01.24,ADULT SOCIAL CARE,ADVANCE HEALTH CARE (UK) LTD,15/01/2024,666.00,6541-Domiciliary Care,THIRD PARTY PAYMENTS,PRIVATE CONTRACTOR,REVENUE
Walsall Council,http://opendatacommunities.org/id/metropolitan-district-council/walsall ,WC158-669,31.01.24,ADULT SOCIAL CARE,ADVANCE HEALTH CARE (UK) LTD,15/01/2024,567.00,6541-Domiciliary Care,THIRD PARTY PAYMENTS,PRIVATE CONTRACTOR,REVENUE
Walsall Council,http://opendatacommunities.org/id/metropolitan-district-council/walsall ,WC158-670,31.01.24,ADULT SOCIAL CARE,ADVANCE HEALTH CARE (UK) LTD,15/01/2024,963.00,6541-Domiciliary Care,THIRD PARTY PAYMENTS,PRIVATE CONTRACTOR,REVENUE
Walsall Council,http://opendatacommunities.org/id/metropolitan-district-council/walsall ,WC158-671,31.01.24,ADULT SOCIAL CARE,ADVANCE HEALTH CARE (UK) LTD,15/01/2024,283.50,6541-Domiciliary Care,THIRD PARTY PAYMENTS,PRIVATE CONTRACTOR,REVENUE
Walsall Council,http://opendatacommunities.org/id/metropolitan-district-council/walsall ,WC158-672,31.01.24,ADULT SOCIAL CARE,ADVANCE HEALTH CARE (UK) LTD,15/01/2024,420.00,6541-Domiciliary Care,THIRD PARTY PAYMENTS,PRIVATE CONTRACTOR,REVENUE
Walsall Council,http://opendatacommunities.org/id/metropolitan-district-council/walsall ,WC158-673,31.01.24,ADULT SOCIAL CARE,ADVANCE HEALTH CARE (UK) LTD,15/01/2024,378.00,6541-Domiciliary Care,THIRD PARTY PAYMENTS,PRIVATE CONTRACTOR,REVENUE
Walsall Council,http://opendatacommunities.org/id/metropolitan-district-council/walsall ,WC158-674,31.01.24,ADULT SOCIAL CARE,ADVANCE HEALTH CARE (UK) LTD,15/01/2024,252.00,6541-Domiciliary Care,THIRD PARTY PAYMENTS,PRIVATE CONTRACTOR,REVENUE
Walsall Council,http://opendatacommunities.org/id/metropolitan-district-council/walsall ,WC158-675,31.01.24,ADULT SOCIAL CARE,ADVANCE HEALTH CARE (UK) LTD,15/01/2024,567.00,6541-Domiciliary Care,THIRD PARTY PAYMENTS,PRIVATE CONTRACTOR,REVENUE
Walsall Council,http://opendatacommunities.org/id/metropolitan-district-council/walsall ,WC158-676,31.01.24,ADULT SOCIAL CARE,ADVANCE HEALTH CARE (UK) LTD,15/01/2024,630.00,6541-Domiciliary Care,THIRD PARTY PAYMENTS,PRIVATE CONTRACTOR,REVENUE
Walsall Council,http://opendatacommunities.org/id/metropolitan-district-council/walsall ,WC158-677,31.01.24,ADULT SOCIAL CARE,ADVANCE HEALTH CARE (UK) LTD,15/01/2024,301.50,6541-Domiciliary Care,THIRD PARTY PAYMENTS,PRIVATE CONTRACTOR,REVENUE
Walsall Council,http://opendatacommunities.org/id/metropolitan-district-council/walsall ,WC158-678,31.01.24,ADULT SOCIAL CARE,ADVANCE HEALTH CARE (UK) LTD,15/01/2024,441.00,6541-Domiciliary Care,THIRD PARTY PAYMENTS,PRIVATE CONTRACTOR,REVENUE
Walsall Council,http://opendatacommunities.org/id/metropolitan-district-council/walsall ,WC158-679,31.01.24,ADULT SOCIAL CARE,ADVANCE HEALTH CARE (UK) LTD,15/01/2024,283.50,6541-Domiciliary Care,THIRD PARTY PAYMENTS,PRIVATE CONTRACTOR,REVENUE
Walsall Council,http://opendatacommunities.org/id/metropolitan-district-council/walsall ,WC158-680,31.01.24,ADULT SOCIAL CARE,ADVANCE HEALTH CARE (UK) LTD,15/01/2024,891.00,6541-Domiciliary Care,THIRD PARTY PAYMENTS,PRIVATE CONTRACTOR,REVENUE
Walsall Council,http://opendatacommunities.org/id/metropolitan-district-council/walsall ,WC158-681,31.01.24,ADULT SOCIAL CARE,ADVANCE HEALTH CARE (UK) LTD,15/01/2024,504.00,6541-Domiciliary Care,THIRD PARTY PAYMENTS,PRIVATE CONTRACTOR,REVENUE
Walsall Council,http://opendatacommunities.org/id/metropolitan-district-council/walsall ,WC158-682,31.01.24,ADULT SOCIAL CARE,ADVANCE HEALTH CARE (UK) LTD,15/01/2024,283.50,6541-Domiciliary Care,THIRD PARTY PAYMENTS,PRIVATE CONTRACTOR,REVENUE
Walsall Council,http://opendatacommunities.org/id/metropolitan-district-council/walsall ,WC158-683,31.01.24,ADULT SOCIAL CARE,ADVANCE HEALTH CARE (UK) LTD,15/01/2024,567.00,6541-Domiciliary Care,THIRD PARTY PAYMENTS,PRIVATE CONTRACTOR,REVENUE
Walsall Council,http://opendatacommunities.org/id/metropolitan-district-council/walsall ,WC158-684,31.01.24,ADULT SOCIAL CARE,ADVANCE HEALTH CARE (UK) LTD,15/01/2024,441.00,6541-Domiciliary Care,THIRD PARTY PAYMENTS,PRIVATE CONTRACTOR,REVENUE
Walsall Council,http://opendatacommunities.org/id/metropolitan-district-council/walsall ,WC158-685,31.01.24,ADULT SOCIAL CARE,ADVANCE HEALTH CARE (UK) LTD,15/01/2024,756.00,6541-Domiciliary Care,THIRD PARTY PAYMENTS,PRIVATE CONTRACTOR,REVENUE
Walsall Council,http://opendatacommunities.org/id/metropolitan-district-council/walsall ,WC158-686,31.01.24,ADULT SOCIAL CARE,ADVANCE HEALTH CARE (UK) LTD,15/01/2024,441.00,6541-Domiciliary Care,THIRD PARTY PAYMENTS,PRIVATE CONTRACTOR,REVENUE
Walsall Council,http://opendatacommunities.org/id/metropolitan-district-council/walsall ,WC158-687,31.01.24,ADULT SOCIAL CARE,ADVANCE HEALTH CARE (UK) LTD,15/01/2024,441.00,6541-Domiciliary Care,THIRD PARTY PAYMENTS,PRIVATE CONTRACTOR,REVENUE
Walsall Council,http://opendatacommunities.org/id/metropolitan-district-council/walsall ,WC158-688,31.01.24,ADULT SOCIAL CARE,ADVANCE HEALTH CARE (UK) LTD,15/01/2024,594.00,6541-Domiciliary Care,THIRD PARTY PAYMENTS,PRIVATE CONTRACTOR,REVENUE
Walsall Council,http://opendatacommunities.org/id/metropolitan-district-council/walsall ,WC158-689,31.01.24,ADULT SOCIAL CARE,ADVANCE HEALTH CARE (UK) LTD,15/01/2024,666.00,6541-Domiciliary Care,THIRD PARTY PAYMENTS,PRIVATE CONTRACTOR,REVENUE
Walsall Council,http://opendatacommunities.org/id/metropolitan-district-council/walsall ,WC158-690,31.01.24,ADULT SOCIAL CARE,ADVANCE HEALTH CARE (UK) LTD,30/01/2024,963.00,6541-Domiciliary Care,THIRD PARTY PAYMENTS,PRIVATE CONTRACTOR,REVENUE
Walsall Council,http://opendatacommunities.org/id/metropolitan-district-council/walsall ,WC158-691,31.01.24,ADULT SOCIAL CARE,ADVANCE HEALTH CARE (UK) LTD,30/01/2024,666.00,6541-Domiciliary Care,THIRD PARTY PAYMENTS,PRIVATE CONTRACTOR,REVENUE
Walsall Council,http://opendatacommunities.org/id/metropolitan-district-council/walsall ,WC158-692,31.01.24,ADULT SOCIAL CARE,ADVANCE HEALTH CARE (UK) LTD,30/01/2024,283.50,6541-Domiciliary Care,THIRD PARTY PAYMENTS,PRIVATE CONTRACTOR,REVENUE
Walsall Council,http://opendatacommunities.org/id/metropolitan-district-council/walsall ,WC158-693,31.01.24,ADULT SOCIAL CARE,ADVANCE HEALTH CARE (UK) LTD,30/01/2024,420.00,6541-Domiciliary Care,THIRD PARTY PAYMENTS,PRIVATE CONTRACTOR,REVENUE
Walsall Council,http://opendatacommunities.org/id/metropolitan-district-council/walsall ,WC158-694,31.01.24,ADULT SOCIAL CARE,ADVANCE HEALTH CARE (UK) LTD,30/01/2024,378.00,6541-Domiciliary Care,THIRD PARTY PAYMENTS,PRIVATE CONTRACTOR,REVENUE
Walsall Council,http://opendatacommunities.org/id/metropolitan-district-council/walsall ,WC158-695,31.01.24,ADULT SOCIAL CARE,ADVANCE HEALTH CARE (UK) LTD,30/01/2024,504.00,6541-Domiciliary Care,THIRD PARTY PAYMENTS,PRIVATE CONTRACTOR,REVENUE
Walsall Council,http://opendatacommunities.org/id/metropolitan-district-council/walsall ,WC158-696,31.01.24,ADULT SOCIAL CARE,ADVANCE HEALTH CARE (UK) LTD,30/01/2024,283.50,6541-Domiciliary Care,THIRD PARTY PAYMENTS,PRIVATE CONTRACTOR,REVENUE
Walsall Council,http://opendatacommunities.org/id/metropolitan-district-council/walsall ,WC158-697,31.01.24,ADULT SOCIAL CARE,ADVANCE HEALTH CARE (UK) LTD,30/01/2024,567.00,6541-Domiciliary Care,THIRD PARTY PAYMENTS,PRIVATE CONTRACTOR,REVENUE
Walsall Council,http://opendatacommunities.org/id/metropolitan-district-council/walsall ,WC158-698,31.01.24,ADULT SOCIAL CARE,ADVANCE HEALTH CARE (UK) LTD,30/01/2024,256.50,6541-Domiciliary Care,THIRD PARTY PAYMENTS,PRIVATE CONTRACTOR,REVENUE
Walsall Council,http://opendatacommunities.org/id/metropolitan-district-council/walsall ,WC158-699,31.01.24,ADULT SOCIAL CARE,ADVANCE HEALTH CARE (UK) LTD,30/01/2024,567.00,6541-Domiciliary Care,THIRD PARTY PAYMENTS,PRIVATE CONTRACTOR,REVENUE
Walsall Council,http://opendatacommunities.org/id/metropolitan-district-council/walsall ,WC158-700,31.01.24,ADULT SOCIAL CARE,ADVANCE HEALTH CARE (UK) LTD,30/01/2024,756.00,6541-Domiciliary Care,THIRD PARTY PAYMENTS,PRIVATE CONTRACTOR,REVENUE
Walsall Council,http://opendatacommunities.org/id/metropolitan-district-council/walsall ,WC158-701,31.01.24,ADULT SOCIAL CARE,ADVANCE HEALTH CARE (UK) LTD,30/01/2024,441.00,6541-Domiciliary Care,THIRD PARTY PAYMENTS,PRIVATE CONTRACTOR,REVENUE
Walsall Council,http://opendatacommunities.org/id/metropolitan-district-council/walsall ,WC158-702,31.01.24,ADULT SOCIAL CARE,ADVANCE HEALTH CARE (UK) LTD,30/01/2024,441.00,6541-Domiciliary Care,THIRD PARTY PAYMENTS,PRIVATE CONTRACTOR,REVENUE
Walsall Council,http://opendatacommunities.org/id/metropolitan-district-council/walsall ,WC158-703,31.01.24,ADULT SOCIAL CARE,ADVANCE HEALTH CARE (UK) LTD,30/01/2024,594.00,6541-Domiciliary Care,THIRD PARTY PAYMENTS,PRIVATE CONTRACTOR,REVENUE
Walsall Council,http://opendatacommunities.org/id/metropolitan-district-council/walsall ,WC158-704,31.01.24,ADULT SOCIAL CARE,ADVANCE HEALTH CARE (UK) LTD,30/01/2024,252.00,6541-Domiciliary Care,THIRD PARTY PAYMENTS,PRIVATE CONTRACTOR,REVENUE
Walsall Council,http://opendatacommunities.org/id/metropolitan-district-council/walsall ,WC158-705,31.01.24,ADULT SOCIAL CARE,ADVANCE HEALTH CARE (UK) LTD,30/01/2024,567.00,6541-Domiciliary Care,THIRD PARTY PAYMENTS,PRIVATE CONTRACTOR,REVENUE
Walsall Council,http://opendatacommunities.org/id/metropolitan-district-council/walsall ,WC158-706,31.01.24,ADULT SOCIAL CARE,ADVANCE HEALTH CARE (UK) LTD,30/01/2024,630.00,6541-Domiciliary Care,THIRD PARTY PAYMENTS,PRIVATE CONTRACTOR,REVENUE
Walsall Council,http://opendatacommunities.org/id/metropolitan-district-council/walsall ,WC158-707,31.01.24,ADULT SOCIAL CARE,ADVANCE HEALTH CARE (UK) LTD,30/01/2024,441.00,6541-Domiciliary Care,THIRD PARTY PAYMENTS,PRIVATE CONTRACTOR,REVENUE
Walsall Council,http://opendatacommunities.org/id/metropolitan-district-council/walsall ,WC158-708,31.01.24,ADULT SOCIAL CARE,ADVANCE HEALTH CARE (UK) LTD,30/01/2024,283.50,6541-Domiciliary Care,THIRD PARTY PAYMENTS,PRIVATE CONTRACTOR,REVENUE
Walsall Council,http://opendatacommunities.org/id/metropolitan-district-council/walsall ,WC158-709,31.01.24,ADULT SOCIAL CARE,ADVANCE HEALTH CARE (UK) LTD,30/01/2024,891.00,6541-Domiciliary Care,THIRD PARTY PAYMENTS,PRIVATE CONTRACTOR,REVENUE
Walsall Council,http://opendatacommunities.org/id/metropolitan-district-council/walsall ,WC158-710,31.01.24,ADULT SOCIAL CARE,ADVANCE HEALTH CARE (UK) LTD,30/01/2024,441.00,6541-Domiciliary Care,THIRD PARTY PAYMENTS,PRIVATE CONTRACTOR,REVENUE
Walsall Council,http://opendatacommunities.org/id/metropolitan-district-council/walsall ,WC158-711,31.01.24,ADULT SOCIAL CARE,ADVANCE HEALTH CARE (UK) LTD,30/01/2024,283.50,6541-Domiciliary Care,THIRD PARTY PAYMENTS,PRIVATE CONTRACTOR,REVENUE
Walsall Council,http://opendatacommunities.org/id/metropolitan-district-council/walsall ,WC158-712,31.01.24,ADULT SOCIAL CARE,ADVANCE HEALTH CARE (UK) LTD,30/01/2024,420.00,6541-Domiciliary Care,THIRD PARTY PAYMENTS,PRIVATE CONTRACTOR,REVENUE
Walsall Council,http://opendatacommunities.org/id/metropolitan-district-council/walsall ,WC158-713,31.01.24,ADULT SOCIAL CARE,ADVANCE HEALTH CARE (UK) LTD,30/01/2024,378.00,6541-Domiciliary Care,THIRD PARTY PAYMENTS,PRIVATE CONTRACTOR,REVENUE
Walsall Council,http://opendatacommunities.org/id/metropolitan-district-council/walsall ,WC158-714,31.01.24,ADULT SOCIAL CARE,ADVANCE HEALTH CARE (UK) LTD,30/01/2024,666.00,6541-Domiciliary Care,THIRD PARTY PAYMENTS,PRIVATE CONTRACTOR,REVENUE
Walsall Council,http://opendatacommunities.org/id/metropolitan-district-council/walsall ,WC158-715,31.01.24,ADULT SOCIAL CARE,ADVANCE HEALTH CARE (UK) LTD,30/01/2024,756.00,6541-Domiciliary Care,THIRD PARTY PAYMENTS,PRIVATE CONTRACTOR,REVENUE
Walsall Council,http://opendatacommunities.org/id/metropolitan-district-council/walsall ,WC158-716,31.01.24,ADULT SOCIAL CARE,ADVANCE HEALTH CARE (UK) LTD,30/01/2024,441.00,6541-Domiciliary Care,THIRD PARTY PAYMENTS,PRIVATE CONTRACTOR,REVENUE
Walsall Council,http://opendatacommunities.org/id/metropolitan-district-council/walsall ,WC158-717,31.01.24,ADULT SOCIAL CARE,ADVANCE HEALTH CARE (UK) LTD,30/01/2024,441.00,6541-Domiciliary Care,THIRD PARTY PAYMENTS,PRIVATE CONTRACTOR,REVENUE
Walsall Council,http://opendatacommunities.org/id/metropolitan-district-council/walsall ,WC158-718,31.01.24,ADULT SOCIAL CARE,ADVANCE HEALTH CARE (UK) LTD,30/01/2024,594.00,6541-Domiciliary Care,THIRD PARTY PAYMENTS,PRIVATE CONTRACTOR,REVENUE
Walsall Council,http://opendatacommunities.org/id/metropolitan-district-council/walsall ,WC158-719,31.01.24,ADULT SOCIAL CARE,ADVANCE HEALTH CARE (UK) LTD,30/01/2024,567.00,6541-Domiciliary Care,THIRD PARTY PAYMENTS,PRIVATE CONTRACTOR,REVENUE
Walsall Council,http://opendatacommunities.org/id/metropolitan-district-council/walsall ,WC158-720,31.01.24,ADULT SOCIAL CARE,ADVANCE HEALTH CARE (UK) LTD,30/01/2024,963.00,6541-Domiciliary Care,THIRD PARTY PAYMENTS,PRIVATE CONTRACTOR,REVENUE
Walsall Council,http://opendatacommunities.org/id/metropolitan-district-council/walsall ,WC158-721,31.01.24,ADULT SOCIAL CARE,ADVANCE HEALTH CARE (UK) LTD,30/01/2024,252.00,6541-Domiciliary Care,THIRD PARTY PAYMENTS,PRIVATE CONTRACTOR,REVENUE
Walsall Council,http://opendatacommunities.org/id/metropolitan-district-council/walsall ,WC158-722,31.01.24,ADULT SOCIAL CARE,ADVANCE HEALTH CARE (UK) LTD,30/01/2024,567.00,6541-Domiciliary Care,THIRD PARTY PAYMENTS,PRIVATE CONTRACTOR,REVENUE
Walsall Council,http://opendatacommunities.org/id/metropolitan-district-council/walsall ,WC158-723,31.01.24,ADULT SOCIAL CARE,ADVANCE HEALTH CARE (UK) LTD,30/01/2024,630.00,6541-Domiciliary Care,THIRD PARTY PAYMENTS,PRIVATE CONTRACTOR,REVENUE
Walsall Council,http://opendatacommunities.org/id/metropolitan-district-council/walsall ,WC158-724,31.01.24,ADULT SOCIAL CARE,ADVANCE HEALTH CARE (UK) LTD,30/01/2024,441.00,6541-Domiciliary Care,THIRD PARTY PAYMENTS,PRIVATE CONTRACTOR,REVENUE
Walsall Council,http://opendatacommunities.org/id/metropolitan-district-council/walsall ,WC158-725,31.01.24,ADULT SOCIAL CARE,ADVANCE HEALTH CARE (UK) LTD,30/01/2024,283.50,6541-Domiciliary Care,THIRD PARTY PAYMENTS,PRIVATE CONTRACTOR,REVENUE
Walsall Council,http://opendatacommunities.org/id/metropolitan-district-council/walsall ,WC158-726,31.01.24,ADULT SOCIAL CARE,ADVANCE HEALTH CARE (UK) LTD,30/01/2024,891.00,6541-Domiciliary Care,THIRD PARTY PAYMENTS,PRIVATE CONTRACTOR,REVENUE
Walsall Council,http://opendatacommunities.org/id/metropolitan-district-council/walsall ,WC158-727,31.01.24,ADULT SOCIAL CARE,ADVANCE HEALTH CARE (UK) LTD,30/01/2024,504.00,6541-Domiciliary Care,THIRD PARTY PAYMENTS,PRIVATE CONTRACTOR,REVENUE
Walsall Council,http://opendatacommunities.org/id/metropolitan-district-council/walsall ,WC158-728,31.01.24,ADULT SOCIAL CARE,ADVANCE HEALTH CARE (UK) LTD,30/01/2024,283.50,6541-Domiciliary Care,THIRD PARTY PAYMENTS,PRIVATE CONTRACTOR,REVENUE
Walsall Council,http://opendatacommunities.org/id/metropolitan-district-council/walsall ,WC158-729,31.01.24,ADULT SOCIAL CARE,ADVANCE HEALTH CARE (UK) LTD,30/01/2024,567.00,6541-Domiciliary Care,THIRD PARTY PAYMENTS,PRIVATE CONTRACTOR,REVENUE
Walsall Council,http://opendatacommunities.org/id/metropolitan-district-council/walsall ,WC158-730,31.01.24,ADULT SOCIAL CARE,ADVANCE HEALTH CARE (UK) LTD,30/01/2024,441.00,6541-Domiciliary Care,THIRD PARTY PAYMENTS,PRIVATE CONTRACTOR,REVENUE
Walsall Council,http://opendatacommunities.org/id/metropolitan-district-council/walsall ,WC158-731,31.01.24,CHILDRENS CAPITAL,ADVANCED CONTRACTS (MIDLANDS) LTD,22/01/2024,"14,505.24",7155-Site Works Contractors,CAPITAL,"NEW CONSTRUCTION,CONVERSION & RENOVATION",CAPITAL
Walsall Council,http://opendatacommunities.org/id/metropolitan-district-council/walsall ,WC158-732,31.01.24,CHILDRENS,ADVENTURELAND DAY NURSERY,16/01/2024,"7,438.50",1184-Other-Grants to Other Orgs,SUPPLIES & SERVICES,GRANTS (EXP) & SUBSCRIPTIONS,REVENUE
Walsall Council,http://opendatacommunities.org/id/metropolitan-district-council/walsall ,WC158-733,31.01.24,CHILDRENS,ADVENTURELAND DAY NURSERY,31/01/2024,"2,727.45",1184-Other-Grants to Other Orgs,SUPPLIES & SERVICES,GRANTS (EXP) & SUBSCRIPTIONS,REVENUE
Walsall Council,http://opendatacommunities.org/id/metropolitan-district-council/walsall ,WC158-734,31.01.24,CHILDRENS,ADVENTURELAND DAY NURSERY,16/01/2024,-583.20,1184-Other-Grants to Other Orgs,SUPPLIES & SERVICES,GRANTS (EXP) & SUBSCRIPTIONS,REVENUE
Walsall Council,http://opendatacommunities.org/id/metropolitan-district-council/walsall ,WC158-735,31.01.24,CHILDRENS,ADVENTURELAND DAY NURSERY,16/01/2024,"26,855.63",1184-Other-Grants to Other Orgs,SUPPLIES & SERVICES,GRANTS (EXP) & SUBSCRIPTIONS,REVENUE
Walsall Council,http://opendatacommunities.org/id/metropolitan-district-council/walsall ,WC158-736,31.01.24,CHILDRENS,ADVENTURELAND DAY NURSERY,31/01/2024,"9,847.06",1184-Other-Grants to Other Orgs,SUPPLIES & SERVICES,GRANTS (EXP) & SUBSCRIPTIONS,REVENUE
Walsall Council,http://opendatacommunities.org/id/metropolitan-district-council/walsall ,WC158-737,31.01.24,ADULT SOCIAL CARE,ADVINIA CARE HOMES LTD - HAMMERWICH HALL CARE HOME,16/01/2024,"2,137.32",6541-Residential,THIRD PARTY PAYMENTS,PRIVATE CONTRACTOR,REVENUE
Walsall Council,http://opendatacommunities.org/id/metropolitan-district-council/walsall ,WC158-738,31.01.24,ADULT SOCIAL CARE,ADVINIA CARE HOMES LTD - HAMMERWICH HALL CARE HOME,16/01/2024,280.00,6541-Residential,THIRD PARTY PAYMENTS,PRIVATE CONTRACTOR,REVENUE
Walsall Council,http://opendatacommunities.org/id/metropolitan-district-council/walsall ,WC158-739,31.01.24,ADULT SOCIAL CARE,ADVINIA CARE HOMES LTD - HAMMERWICH HALL CARE HOME,16/01/2024,280.00,6541-Residential EMI,THIRD PARTY PAYMENTS,PRIVATE CONTRACTOR,REVENUE
Walsall Council,http://opendatacommunities.org/id/metropolitan-district-council/walsall ,WC158-740,31.01.24,ADULT SOCIAL CARE,ADVINIA CARE HOMES LTD - HAMMERWICH HALL CARE HOME,16/01/2024,"2,413.36",6541-Residential EMI,THIRD PARTY PAYMENTS,PRIVATE CONTRACTOR,REVENUE
Walsall Council,http://opendatacommunities.org/id/metropolitan-district-council/walsall ,WC158-741,31.01.24,ADULT SOCIAL CARE,REDACTED,03/01/2024,"1,642.08",6541-Direct Payment,THIRD PARTY PAYMENTS,PRIVATE CONTRACTOR,REVENUE
Walsall Council,http://opendatacommunities.org/id/metropolitan-district-council/walsall ,WC158-742,31.01.24,ADULT SOCIAL CARE,REDACTED,03/01/2024,"1,260.00",6541-Direct Payment,THIRD PARTY PAYMENTS,PRIVATE CONTRACTOR,REVENUE
Walsall Council,http://opendatacommunities.org/id/metropolitan-district-council/walsall ,WC158-743,31.01.24,CHILDRENS,REDACTED,11/01/2024,734.08,6223-Special Guardianship Orders,TRANSFER PAYMENTS,CHILDREN SOCIAL SERVICES CLIENT,REVENUE
Walsall Council,http://opendatacommunities.org/id/metropolitan-district-council/walsall ,WC158-744,31.01.24,ADULT SOCIAL CARE,REDACTED,03/01/2024,"2,836.32",6541-Direct Payment,THIRD PARTY PAYMENTS,PRIVATE CONTRACTOR,REVENUE
Walsall Council,http://opendatacommunities.org/id/metropolitan-district-council/walsall ,WC158-745,31.01.24,"ECONOMY, ENVIRONMENT & COMMUNITIES",AIR PLANTS DUST EXTRACTION LTD,12/01/2024,690.00,6414-Operational Maintenance,PREMISES,REPAIRS & MAINTENANCE,REVENUE
Walsall Council,http://opendatacommunities.org/id/metropolitan-district-council/walsall ,WC158-746,31.01.24,RESOURCES AND TRANSFORMATION,AIRTECH CONTROLS LTD,08/01/2024,320.00,6310-Planned Maintenance,PREMISES,REPAIRS & MAINTENANCE,REVENUE
Walsall Council,http://opendatacommunities.org/id/metropolitan-district-council/walsall ,WC158-747,31.01.24,CHILDRENS CAPITAL,AIRTECH CONTROLS LTD,22/01/2024,"3,211.00",7155-Site Works Contractors,CAPITAL,"NEW CONSTRUCTION,CONVERSION & RENOVATION",CAPITAL
Walsall Council,http://opendatacommunities.org/id/metropolitan-district-council/walsall ,WC158-748,31.01.24,RESOURCES AND TRANSFORMATION,AIRTECH CONTROLS LTD,29/01/2024,320.00,6310-Planned Maintenance,PREMISES,REPAIRS & MAINTENANCE,REVENUE
Walsall Council,http://opendatacommunities.org/id/metropolitan-district-council/walsall ,WC158-749,31.01.24,ADULT SOCIAL CARE,REDACTED,03/01/2024,"1,125.44",6541-Direct Payment,THIRD PARTY PAYMENTS,PRIVATE CONTRACTOR,REVENUE
Walsall Council,http://opendatacommunities.org/id/metropolitan-district-council/walsall ,WC158-750,31.01.24,ADULT SOCIAL CARE,REDACTED,03/01/2024,513.88,6541-Direct Payment,THIRD PARTY PAYMENTS,PRIVATE CONTRACTOR,REVENUE
Walsall Council,http://opendatacommunities.org/id/metropolitan-district-council/walsall ,WC158-751,31.01.24,ADULT SOCIAL CARE,REDACTED,03/01/2024,267.44,6541-Direct Payment,THIRD PARTY PAYMENTS,PRIVATE CONTRACTOR,REVENUE
Walsall Council,http://opendatacommunities.org/id/metropolitan-district-council/walsall ,WC158-752,31.01.24,ADULT SOCIAL CARE,REDACTED,03/01/2024,"1,396.00",6541-Direct Payment,THIRD PARTY PAYMENTS,PRIVATE CONTRACTOR,REVENUE
Walsall Council,http://opendatacommunities.org/id/metropolitan-district-council/walsall ,WC158-753,31.01.24,ADULT SOCIAL CARE,REDACTED,03/01/2024,"1,393.28",6541-Direct Payment,THIRD PARTY PAYMENTS,PRIVATE CONTRACTOR,REVENUE
Walsall Council,http://opendatacommunities.org/id/metropolitan-district-council/walsall ,WC158-754,31.01.24,ADULT SOCIAL CARE,ALDBOURNE NURSING HOME LTD,16/01/2024,"5,920.00",6541-Nursing EMI,THIRD PARTY PAYMENTS,PRIVATE CONTRACTOR,REVENUE
Walsall Council,http://opendatacommunities.org/id/metropolitan-district-council/walsall ,WC158-755,31.01.24,CHILDRENS,ALDRIDGE & BARONS LIMITED,02/01/2024,"2,811.60",6241-Hire of Vehicle with Driver,TRANSPORT,DIRECT TRANSPORT COSTS,REVENUE
Walsall Council,http://opendatacommunities.org/id/metropolitan-district-council/walsall ,WC158-756,31.01.24,CHILDRENS,ALDRIDGE & BARONS LIMITED,02/01/2024,"3,182.50",6241-Hire of Vehicle with Driver,TRANSPORT,DIRECT TRANSPORT COSTS,REVENUE
Walsall Council,http://opendatacommunities.org/id/metropolitan-district-council/walsall ,WC158-757,31.01.24,CHILDRENS,ALDRIDGE & BARONS LIMITED,02/01/2024,"1,858.50",6241-Hire of Vehicle with Driver,TRANSPORT,DIRECT TRANSPORT COSTS,REVENUE
Walsall Council,http://opendatacommunities.org/id/metropolitan-district-council/walsall ,WC158-758,31.01.24,CHILDRENS,ALDRIDGE & BARONS LIMITED,02/01/2024,"1,818.30",6241-Hire of Vehicle with Driver,TRANSPORT,DIRECT TRANSPORT COSTS,REVENUE
Walsall Council,http://opendatacommunities.org/id/metropolitan-district-council/walsall ,WC158-759,31.01.24,CHILDRENS,ALDRIDGE & BARONS LIMITED,02/01/2024,"3,454.60",6241-Hire of Vehicle with Driver,TRANSPORT,DIRECT TRANSPORT COSTS,REVENUE
Walsall Council,http://opendatacommunities.org/id/metropolitan-district-council/walsall ,WC158-760,31.01.24,CHILDRENS,ALDRIDGE & BARONS LIMITED,02/01/2024,"2,232.00",6241-Hire of Vehicle with Driver,TRANSPORT,DIRECT TRANSPORT COSTS,REVENUE
Walsall Council,http://opendatacommunities.org/id/metropolitan-district-council/walsall ,WC158-761,31.01.24,CHILDRENS,ALDRIDGE & BARONS LIMITED,02/01/2024,"2,400.00",6241-Hire of Vehicle with Driver,TRANSPORT,DIRECT TRANSPORT COSTS,REVENUE
Walsall Council,http://opendatacommunities.org/id/metropolitan-district-council/walsall ,WC158-762,31.01.24,CHILDRENS,ALDRIDGE & BARONS LIMITED,02/01/2024,"2,755.00",6241-Hire of Vehicle with Driver,TRANSPORT,DIRECT TRANSPORT COSTS,REVENUE
Walsall Council,http://opendatacommunities.org/id/metropolitan-district-council/walsall ,WC158-763,31.01.24,CHILDRENS,ALDRIDGE & BARONS LIMITED,02/01/2024,"2,743.22",6241-Hire of Vehicle with Driver,TRANSPORT,DIRECT TRANSPORT COSTS,REVENUE
Walsall Council,http://opendatacommunities.org/id/metropolitan-district-council/walsall ,WC158-764,31.01.24,CHILDRENS,ALDRIDGE & BARONS LIMITED,02/01/2024,"2,223.00",6241-Hire of Vehicle with Driver,TRANSPORT,DIRECT TRANSPORT COSTS,REVENUE
Walsall Council,http://opendatacommunities.org/id/metropolitan-district-council/walsall ,WC158-765,31.01.24,CHILDRENS,ALDRIDGE & BARONS LIMITED,02/01/2024,"2,250.00",6241-Hire of Vehicle with Driver,TRANSPORT,DIRECT TRANSPORT COSTS,REVENUE
Walsall Council,http://opendatacommunities.org/id/metropolitan-district-council/walsall ,WC158-766,31.01.24,CHILDRENS,ALDRIDGE & BARONS LIMITED,02/01/2024,"3,000.00",6241-Hire of Vehicle with Driver,TRANSPORT,DIRECT TRANSPORT COSTS,REVENUE
Walsall Council,http://opendatacommunities.org/id/metropolitan-district-council/walsall ,WC158-767,31.01.24,CHILDRENS,ALDRIDGE & BARONS LIMITED,02/01/2024,"1,800.00",6241-Hire of Vehicle with Driver,TRANSPORT,DIRECT TRANSPORT COSTS,REVENUE
Walsall Council,http://opendatacommunities.org/id/metropolitan-district-council/walsall ,WC158-768,31.01.24,CHILDRENS,ALDRIDGE & BARONS LIMITED,02/01/2024,"3,173.80",6241-Hire of Vehicle with Driver,TRANSPORT,DIRECT TRANSPORT COSTS,REVENUE
Walsall Council,http://opendatacommunities.org/id/metropolitan-district-council/walsall ,WC158-769,31.01.24,CHILDRENS,ALDRIDGE & BARONS LIMITED,02/01/2024,"2,434.00",6241-Hire of Vehicle with Driver,TRANSPORT,DIRECT TRANSPORT COSTS,REVENUE
Walsall Council,http://opendatacommunities.org/id/metropolitan-district-council/walsall ,WC158-770,31.01.24,CHILDRENS,ALDRIDGE & BARONS LIMITED,02/01/2024,"2,938.60",6241-Hire of Vehicle with Driver,TRANSPORT,DIRECT TRANSPORT COSTS,REVENUE
Walsall Council,http://opendatacommunities.org/id/metropolitan-district-council/walsall ,WC158-771,31.01.24,CHILDRENS,ALDRIDGE & BARONS LIMITED,02/01/2024,"2,860.00",6241-Hire of Vehicle with Driver,TRANSPORT,DIRECT TRANSPORT COSTS,REVENUE
Walsall Council,http://opendatacommunities.org/id/metropolitan-district-council/walsall ,WC158-772,31.01.24,CHILDRENS,ALDRIDGE & BARONS LIMITED,02/01/2024,"2,600.00",6241-Hire of Vehicle with Driver,TRANSPORT,DIRECT TRANSPORT COSTS,REVENUE
Walsall Council,http://opendatacommunities.org/id/metropolitan-district-council/walsall ,WC158-773,31.01.24,CHILDRENS,ALDRIDGE & BARONS LIMITED,02/01/2024,"3,680.00",6241-Hire of Vehicle with Driver,TRANSPORT,DIRECT TRANSPORT COSTS,REVENUE
Walsall Council,http://opendatacommunities.org/id/metropolitan-district-council/walsall ,WC158-774,31.01.24,CHILDRENS,ALDRIDGE & BARONS LIMITED,02/01/2024,"3,200.00",6241-Hire of Vehicle with Driver,TRANSPORT,DIRECT TRANSPORT COSTS,REVENUE
Walsall Council,http://opendatacommunities.org/id/metropolitan-district-council/walsall ,WC158-775,31.01.24,CHILDRENS,ALDRIDGE & BARONS LIMITED,02/01/2024,"3,552.00",6241-Hire of Vehicle with Driver,TRANSPORT,DIRECT TRANSPORT COSTS,REVENUE
Walsall Council,http://opendatacommunities.org/id/metropolitan-district-council/walsall ,WC158-776,31.01.24,CHILDRENS,ALDRIDGE & BARONS LIMITED,02/01/2024,"3,110.40",6241-Hire of Vehicle with Driver,TRANSPORT,DIRECT TRANSPORT COSTS,REVENUE
Walsall Council,http://opendatacommunities.org/id/metropolitan-district-council/walsall ,WC158-777,31.01.24,CHILDRENS,ALDRIDGE & BARONS LIMITED,02/01/2024,"2,761.50",6241-Hire of Vehicle with Driver,TRANSPORT,DIRECT TRANSPORT COSTS,REVENUE
Walsall Council,http://opendatacommunities.org/id/metropolitan-district-council/walsall ,WC158-778,31.01.24,CHILDRENS,ALDRIDGE & BARONS LIMITED,02/01/2024,"3,000.00",6241-Hire of Vehicle with Driver,TRANSPORT,DIRECT TRANSPORT COSTS,REVENUE
Walsall Council,http://opendatacommunities.org/id/metropolitan-district-council/walsall ,WC158-779,31.01.24,CHILDRENS,ALDRIDGE & BARONS LIMITED,02/01/2024,"3,600.00",6241-Hire of Vehicle with Driver,TRANSPORT,DIRECT TRANSPORT COSTS,REVENUE
Walsall Council,http://opendatacommunities.org/id/metropolitan-district-council/walsall ,WC158-780,31.01.24,CHILDRENS,ALDRIDGE & BARONS LIMITED,02/01/2024,"1,980.00",6241-Hire of Vehicle with Driver,TRANSPORT,DIRECT TRANSPORT COSTS,REVENUE
Walsall Council,http://opendatacommunities.org/id/metropolitan-district-council/walsall ,WC158-781,31.01.24,CHILDRENS,ALDRIDGE & BARONS LIMITED,02/01/2024,"2,860.00",6241-Hire of Vehicle with Driver,TRANSPORT,DIRECT TRANSPORT COSTS,REVENUE
Walsall Council,http://opendatacommunities.org/id/metropolitan-district-council/walsall ,WC158-782,31.01.24,CHILDRENS,ALDRIDGE & BARONS LIMITED,02/01/2024,"2,853.80",6241-Hire of Vehicle with Driver,TRANSPORT,DIRECT TRANSPORT COSTS,REVENUE
Walsall Council,http://opendatacommunities.org/id/metropolitan-district-council/walsall ,WC158-783,31.01.24,CHILDRENS,ALDRIDGE & BARONS LIMITED,02/01/2024,"2,160.00",6241-Hire of Vehicle with Driver,TRANSPORT,DIRECT TRANSPORT COSTS,REVENUE
Walsall Council,http://opendatacommunities.org/id/metropolitan-district-council/walsall ,WC158-784,31.01.24,CHILDRENS,ALDRIDGE & BARONS LIMITED,02/01/2024,"2,717.00",6241-Hire of Vehicle with Driver,TRANSPORT,DIRECT TRANSPORT COSTS,REVENUE
Walsall Council,http://opendatacommunities.org/id/metropolitan-district-council/walsall ,WC158-785,31.01.24,CHILDRENS,ALDRIDGE & BARONS LIMITED,02/01/2024,"2,500.00",6241-Hire of Vehicle with Driver,TRANSPORT,DIRECT TRANSPORT COSTS,REVENUE
Walsall Council,http://opendatacommunities.org/id/metropolitan-district-council/walsall ,WC158-786,31.01.24,CHILDRENS,ALDRIDGE & BARONS LIMITED,02/01/2024,"2,200.00",6241-Hire of Vehicle with Driver,TRANSPORT,DIRECT TRANSPORT COSTS,REVENUE
Walsall Council,http://opendatacommunities.org/id/metropolitan-district-council/walsall ,WC158-787,31.01.24,CHILDRENS,ALDRIDGE & BARONS LIMITED,29/01/2024,"1,200.00",6241-Hire of Vehicle with Driver,TRANSPORT,DIRECT TRANSPORT COSTS,REVENUE
Walsall Council,http://opendatacommunities.org/id/metropolitan-district-council/walsall ,WC158-788,31.01.24,CHILDRENS,ALDRIDGE & BARONS LIMITED,29/01/2024,"1,450.00",6241-Hire of Vehicle with Driver,TRANSPORT,DIRECT TRANSPORT COSTS,REVENUE
Walsall Council,http://opendatacommunities.org/id/metropolitan-district-council/walsall ,WC158-789,31.01.24,CHILDRENS,ALDRIDGE & BARONS LIMITED,29/01/2024,"1,443.80",6241-Hire of Vehicle with Driver,TRANSPORT,DIRECT TRANSPORT COSTS,REVENUE
Walsall Council,http://opendatacommunities.org/id/metropolitan-district-council/walsall ,WC158-790,31.01.24,CHILDRENS,ALDRIDGE & BARONS LIMITED,29/01/2024,"1,170.00",6241-Hire of Vehicle with Driver,TRANSPORT,DIRECT TRANSPORT COSTS,REVENUE
Walsall Council,http://opendatacommunities.org/id/metropolitan-district-council/walsall ,WC158-791,31.01.24,CHILDRENS,ALDRIDGE & BARONS LIMITED,29/01/2024,"1,125.00",6241-Hire of Vehicle with Driver,TRANSPORT,DIRECT TRANSPORT COSTS,REVENUE
Walsall Council,http://opendatacommunities.org/id/metropolitan-district-council/walsall ,WC158-792,31.01.24,CHILDRENS,ALDRIDGE & BARONS LIMITED,29/01/2024,"1,502.00",6241-Hire of Vehicle with Driver,TRANSPORT,DIRECT TRANSPORT COSTS,REVENUE
Walsall Council,http://opendatacommunities.org/id/metropolitan-district-council/walsall ,WC158-793,31.01.24,CHILDRENS,ALDRIDGE & BARONS LIMITED,29/01/2024,"1,080.00",6241-Hire of Vehicle with Driver,TRANSPORT,DIRECT TRANSPORT COSTS,REVENUE
Walsall Council,http://opendatacommunities.org/id/metropolitan-district-council/walsall ,WC158-794,31.01.24,CHILDRENS,ALDRIDGE & BARONS LIMITED,29/01/2024,"1,430.00",6241-Hire of Vehicle with Driver,TRANSPORT,DIRECT TRANSPORT COSTS,REVENUE
Walsall Council,http://opendatacommunities.org/id/metropolitan-district-council/walsall ,WC158-795,31.01.24,CHILDRENS,ALDRIDGE & BARONS LIMITED,29/01/2024,"1,840.00",6241-Hire of Vehicle with Driver,TRANSPORT,DIRECT TRANSPORT COSTS,REVENUE
Walsall Council,http://opendatacommunities.org/id/metropolitan-district-council/walsall ,WC158-796,31.01.24,CHILDRENS,ALDRIDGE & BARONS LIMITED,29/01/2024,"1,440.00",6241-Hire of Vehicle with Driver,TRANSPORT,DIRECT TRANSPORT COSTS,REVENUE
Walsall Council,http://opendatacommunities.org/id/metropolitan-district-council/walsall ,WC158-797,31.01.24,CHILDRENS,ALDRIDGE & BARONS LIMITED,29/01/2024,"1,598.40",6241-Hire of Vehicle with Driver,TRANSPORT,DIRECT TRANSPORT COSTS,REVENUE
Walsall Council,http://opendatacommunities.org/id/metropolitan-district-council/walsall ,WC158-798,31.01.24,CHILDRENS,ALDRIDGE & BARONS LIMITED,29/01/2024,"1,284.16",6241-Hire of Vehicle with Driver,TRANSPORT,DIRECT TRANSPORT COSTS,REVENUE
Walsall Council,http://opendatacommunities.org/id/metropolitan-district-council/walsall ,WC158-799,31.01.24,CHILDRENS,ALDRIDGE & BARONS LIMITED,29/01/2024,789.00,6241-Hire of Vehicle with Driver,TRANSPORT,DIRECT TRANSPORT COSTS,REVENUE
Walsall Council,http://opendatacommunities.org/id/metropolitan-district-council/walsall ,WC158-800,31.01.24,CHILDRENS,ALDRIDGE & BARONS LIMITED,29/01/2024,"1,250.00",6241-Hire of Vehicle with Driver,TRANSPORT,DIRECT TRANSPORT COSTS,REVENUE
Walsall Council,http://opendatacommunities.org/id/metropolitan-district-council/walsall ,WC158-801,31.01.24,CHILDRENS,ALDRIDGE & BARONS LIMITED,29/01/2024,990.00,6241-Hire of Vehicle with Driver,TRANSPORT,DIRECT TRANSPORT COSTS,REVENUE
Walsall Council,http://opendatacommunities.org/id/metropolitan-district-council/walsall ,WC158-802,31.01.24,CHILDRENS,ALDRIDGE & BARONS LIMITED,29/01/2024,928.00,6241-Hire of Vehicle with Driver,TRANSPORT,DIRECT TRANSPORT COSTS,REVENUE
Walsall Council,http://opendatacommunities.org/id/metropolitan-district-council/walsall ,WC158-803,31.01.24,CHILDRENS,ALDRIDGE & BARONS LIMITED,29/01/2024,"1,405.80",6241-Hire of Vehicle with Driver,TRANSPORT,DIRECT TRANSPORT COSTS,REVENUE
Walsall Council,http://opendatacommunities.org/id/metropolitan-district-council/walsall ,WC158-804,31.01.24,CHILDRENS,ALDRIDGE & BARONS LIMITED,29/01/2024,"1,507.50",6241-Hire of Vehicle with Driver,TRANSPORT,DIRECT TRANSPORT COSTS,REVENUE
Walsall Council,http://opendatacommunities.org/id/metropolitan-district-council/walsall ,WC158-805,31.01.24,CHILDRENS,ALDRIDGE & BARONS LIMITED,29/01/2024,531.00,6241-Hire of Vehicle with Driver,TRANSPORT,DIRECT TRANSPORT COSTS,REVENUE
